Workbook

Sheet Calculation Window
B1: A Recharge-Based Nitrate-Dilution Model for New Jersey V7.0 for Excel 2010 | G1: EXPLANATION | Q1: Solve for A (acres/system) | AA1: Lot size & impervious cover relation from TR-55
R2: solve for A: | BB2: Basin Factor | BD2: 1
B3: Adjusted Trela-Douglas Model Input Parameters | G3: Change only those variables in yellow boxes to the left. | Q3: (4.4186HM)/(CqA(1-0.179A^-0.5708)) = Rmax | CA3: Abbottstown | CB3: 1 | CE3: Absecon City (Atlantic Co.) | CG3: Aberdeen Twp. (Monmouth Co.) | CH3: 323
B4: parameter | D4: value | E4: units | G4: Use drop-down pick lists for soil and municipality. | AA4: Lot Size | AB4: Impervious Cover | AS4: Adjust dilution model to account for impervious surface on lots | BG4: =+C10 -> Wellsboro | CA4: Adelphia | CB4: 2 | CE4: Atlantic City (Atlantic Co.) | CG4: Absecon City (Atlantic Co.) | CH4: 1
B5: population density: | D5: 3 | E5: people/home | G5: After entering all parameters, click the 'SOLVE' button and | R5: where: | AB5: TR-55 | AC5: curve | BG5: =+C11 -> Lambertville City (Hunterdon Co.) | CA5: Adelphia Variant | CB5: 3 | CE5: Brigantine City (Atlantic Co.) | CG5: Alexandria Twp. (Hunterdon Co.) | CH5: 259
B6: human nitrate loading rate | D6: 10 | E6: pounds/person/year | G6: then check "OK" in order to calculate the minimum lot size | Q6: H = population density = | T6: =+H -> 3 | U6: people/home | AA6: =1/8 -> 0.125 | AB6: 0.65 | AC6: =0.179*AA6^-0.5708 -> 0.5865928912 | BR6: Graphing Values | CA6: Adrian | CB6: 4 | CE6: Buena Boro. (Atlantic Co.) | CG6: Allamuchy Twp. (Warren Co.) | CH6: 545
B7: NO3 target: | D7: 2 | E7: mg/l | G7: needed to dilute nitrate in the effluent to the specified target. | Q7: M = human nitrate loading rate | T7: =+M -> 10 | U7: pounds/person/year | AA7: 0.25 | AB7: 0.38 | AC7: 0.3949197687 | AS7: Trela-Douglas | BG7: GSR-32 Analysis | BR7: lot size | BS7: from GSR-32 | BT7: TD w/ adj | CA7: Albia | CB7: 5 | CE7: Buena Vista Twp. (Atlantic Co.) | CG7: Allendale Boro. (Bergen Co.) | CH7: 24
G8: Click the 'Print Results' button to print a summary sheet of results. | Q8: Cq = NO3 target = | T8: =+Cq -> 2 | U8: mg/l | AA8: =1/3 -> 0.3333333333 | AB8: 0.3 | AC8: 0.3351149811 | AS8: Lot Size | AT8: % imp. | AU8: modified lot | AV8: necessary recharge | BC8: 3 | BD8: 5.2 | BE8: 10 | CA8: Alden | CB8: 6 | CE8: Corbin City (Atlantic Co.) | CG8: Allenhurst Boro. (Monmouth Co.) | CH8: 324
B9: Ground-Water Recharge Methodology Input Parameters | G9: Click the 'Read Me!' button for some more explanation | AA9: 0.5 | AB9: 0.25 | AC9: 0.2658771118 | AV9: w/o impervious adj | AW9: w/ impervious adj | BB9: acres | BC9: in/yr | BD9: in/yr | BE9: in/yr | BG9: =VLOOKUP(+C10,CA3:CB331,2) -> 314 | BH9: =VLOOKUP(+C11,CG3:CH569,2) -> 275 | BR9: 0 | BS9: =+S -> 11.5477515 | CA9: Alloway | CB9: 7 | CE9: Egg Harbor City (Atlantic Co.) | CG9: Allentown Boro. (Monmouth Co.) | CH9: 325
B10: Soil | C10: Wellsboro | G10: Detailed explanations are in the Metadata worksheet. | Q10: Rmax = max ground water recharge = | T10: =+S -> 11.5477515 | U10: inches/year | AA10: 1 | AB10: 0.2 | AC10: 0.179 | AS10: 40 | AT10: =0.179*AS10^-0.5708 -> 0.02179702327 | AU10: =+AS10*(1-AT10) -> 39.12811907 | AV10: =4.4186*H*M/(Cq*AS10) -> 1.656975 | AW10: =4.4186*H*M/(Cq*AU10) -> 1.69389691 | BB10: 20 | BC10: 2.283221919 | BD10: 1.317243415 | BE10: 0.6849665758 | BH10: CF = | BI10: =+VLOOKUP(+BH9,'Municipality Codes'!A5:G571,5+BM14) -> 1.39393 | BR10: =MAX(1+A,40) -> 40 | BS10: =+S -> 11.5477515 | CA10: Alluvial Land | CB10: 8 | CE10: Egg Harbor Twp. (Atlantic Co.) | CG10: Alloway Twp. (Salem Co.) | CH10: 464
B11: Municipality | C11: Lambertville City (Hunterdon Co.) | AA11: 2 | AB11: 0.12 | AC11: 0.1205105614 | AS11: 35 | AT11: 0.0235233403 | AU11: 34.17668309 | AV11: 1.893685714 | AW11: 1.939304637 | BB11: 19 | BC11: 2.405783117 | BD11: 1.387951798 | BE11: 0.7217349352 | BH11: RF | BI11: RC | BL11: FALSE | BM11: =IF(BL11,0,0) -> 0 | BR11: =+AS10 -> 40 | BT11: =+AW10 -> 1.69389691 | CA11: Alluvial Land-Wet | CB11: 9 | CE11: Estell Manor City (Atlantic Co.) | CG11: Alpha Boro. (Warren Co.) | CH11: 546
AS12: 30 | AT12: 0.02568693098 | AU12: 29.22939207 | AV12: 2.2093 | AW12: 2.267546305 | BB12: 18 | BC12: 2.542185692 | BD12: 1.466645591 | BE12: 0.7626557075 | BH12: =VLOOKUP(+BG9,'Soil Codes'!$A$5:$H$333,4) -> 13.55 | BI12: =VLOOKUP(+BG9,'Soil Codes'!$A$5:$W$333,19) -> 7.34 | BL12: TRUE | BM12: =IF(BL12,1,0) -> 1 | BR12: =+AS11 -> 35 | BT12: =+AW11 -> 1.939304637 | CA12: Amwell | CB12: 10 | CE12: Folsom Boro. (Atlantic Co.) | CG12: Alpine Boro. (Bergen Co.) | CH12: 25
B13: Notes | AS13: 25 | AT13: 0.02850420114 | AU13: 24.28739497 | AV13: 2.65116 | AW13: 2.728946438 | BB13: 17 | BC13: 2.694908396 | BD13: 1.554754844 | BE13: 0.8084725188 | BH13: =VLOOKUP(+BG9,'Soil Codes'!$A$5:$H$333,8) -> 11.25 | BI13: =VLOOKUP(+BG9,'Soil Codes'!$A$5:$W$333,23) -> 6.09 | BL13: FALSE | BM13: =IF(BL13,2,0) -> 0 | BR13: 30 | BT13: 2.267546305 | CA13: Annandale | CB13: 11 | CE13: Galloway Twp. (Atlantic Co.) | CG13: Andover Boro. (Sussex Co.) | CH13: 500
AS14: 20 | AT14: 0.03237614299 | AU14: 19.35247714 | AV14: 3.31395 | AW14: 3.424832879 | BB14: 16 | BC14: 2.867058317 | BD14: 1.654072106 | BE14: 0.8601174952 | BH14: =VLOOKUP(+BG9,'Soil Codes'!$A$5:$H$333,7) -> 10.44 | BI14: =VLOOKUP(+BG9,'Soil Codes'!$A$5:$W$333,22) -> 5.65 | BM14: =SUM(BM11:BM13) -> 1 | BR14: 25 | BT14: 2.728946438 | CA14: Appoquinimink-Broadkill | CB14: 12 | CE14: Hamilton Twp. (Atlantic Co.) | CG14: Andover Twp. (Sussex Co.) | CH14: 501
B15: =IF(hydric_soil=0,"Hydric or urban soil. Can't use this method."," ") ->  | AS15: 18 | AT15: 0.03438297766 | AU15: 17.3811064 | AV15: 3.682166667 | AW15: 3.813278537 | BB15: 15 | BC15: 3.062583148 | BD15: 1.766874893 | BE15: 0.9187749445 | BH15: =VLOOKUP(+BG9,'Soil Codes'!$A$5:$H$333,6) -> 9.08 | BI15: =VLOOKUP(+BG9,'Soil Codes'!$A$5:$W$333,21) -> 4.92 | BR15: 20 | BT15: 3.424832879 | CA15: Appoquinimink-Transquaking-Mispillion | CB15: 13 | CE15: Hammonton Town (Atlantic Co.) | CG15: Asbury Park City (Monmouth Co.) | CH15: 326
B16: =IF(BM14=2,+B51,+B50) -> Under average conditions, recharge on the pervious portions of this lot is approximately | D16: =IF(hydric_soil=1,+S,"N.A.") -> 11.5477515 | E16: inches/year | G16: See Division of Watershed Management guidelines for | AS16: 16 | AT16: 0.03677404006 | AU16: 15.41161536 | AV16: 4.1424375 | AW16: 4.300587476 | BB16: 14 | BC16: 3.286575646 | BD16: 1.896101334 | BE16: 0.9859726939 | BH16: =VLOOKUP(+BG9,'Soil Codes'!$A$5:$J$256,5) -> 3.44 | BI16: =VLOOKUP(+BG9,'Soil Codes'!$A$5:$Z$333,20) -> 2.57 | BR16: 18 | BT16: 3.813278537 | CA16: Aquents | CB16: 14 | CE16: Linwood City (Atlantic Co.) | CG16: Atlantic City (Atlantic Co.) | CH16: 2
G17: how to apply this model in support of permit applications. | AS17: 14 | AT17: 0.03968653185 | AU17: 13.44438855 | AV17: 4.734214286 | AW17: 4.929863469 | BB17: 13 | BC17: 3.545720582 | BD17: 2.045608028 | BE17: 1.063716175 | BH17: =VLOOKUP(+BG9,'Soil Codes'!$A$5:$J$256,9) -> 1.47 | BI17: =VLOOKUP(+BG9,'Soil Codes'!$A$5:$Z$333,24) -> 1.1 | BR17: 16 | BT17: 4.300587476 | CA17: Arendtsville | CB17: 15 | CE17: Longport Boro. (Atlantic Co.) | CG17: Atlantic Highlands Boro. (Monmouth Co.) | CH17: 327
AS18: 12 | AT18: 0.0433367537 | AU18: 11.47995896 | AV18: 5.52325 | AW18: 5.773452698 | BB18: 12 | BC18: 3.848968465 | BD18: 2.22055873 | BE18: 1.15469054 | BH18: =VLOOKUP(+BG9,'Soil Codes'!$A$5:$J$256,10) -> 0 | BI18: =VLOOKUP(+BG9,'Soil Codes'!$A$5:$Z$333,25) -> 0 | BR18: 14 | BT18: 4.929863469 | CA18: Arnot-Lordstown | CB18: 16 | CE18: Margate City (Atlantic Co.) | CG18: Audubon Boro. (Camden Co.) | CH18: 134
AS19: 10 | AT19: 0.04808980665 | AU19: 9.519101933 | AV19: 6.6279 | AW19: 6.96273666 | BB19: 11 | BC19: 4.20858253 | BD19: 2.428028382 | BE19: 1.262574759 | BR19: 12 | BT19: 5.773452698 | CA19: Arnot-Lordstown rock outcrop | CB19: 17 | CE19: Mullica Twp. (Atlantic Co.) | CG19: Audubon Park Boro. (Camden Co.) | CH19: 135
B20: =IF(BM14=2,+B47,+B46) -> Net average recharge (adjusted for impervious cover) | D20: =+D16*(1-ISC) -> 10.8134145 | E20: inches/year | T20: =0.179*A^-0.5708 -> 0.06359134083 | AS20: 9 | AT20: 0.0510706525 | AU20: 8.540364128 | AV20: 7.364333333 | AW20: 7.760676127 | BB20: 10 | BC20: 4.64182444 | BD20: 2.677975638 | BE20: 1.392547332 | BR20: 10 | BT20: 6.96273666 | CA20: Atherton | CB20: 18 | CE20: Northfield City (Atlantic Co.) | CG20: Avalon Boro. (Cape May Co.) | CH20: 171
AS21: 8 | AT21: 0.05462220985 | AU21: 7.563022321 | AV21: 8.284875 | AW21: 8.763560014 | BB21: 9 | BC21: 5.173784085 | BD21: 2.984875433 | BE21: 1.552135225 | BR21: 9 | BT21: 7.760676127 | CA21: Athol | CB21: 19 | CE21: Pleasantville City (Atlantic Co.) | CG21: Avon-By-The-Sea Boro. (Monmouth Co.) | CH21: 328
Q22: A = land required to dilute effluent = | T22: 6.12932273 | U22: acres/system | AS22: 7 | AT22: 0.05894827077 | AU22: 6.587362105 | AV22: 9.468428571 | AW22: 10.06153889 | BB22: 8 | BC22: 5.842373343 | BD22: 3.370600005 | BE22: 1.752712003 | BG22: % imperv. | BH22: LULC | BI22: recharge (in/yr) | BJ22: LULC | BR22: 8 | BT22: 8.763560014 | CA22: Atsion | CB22: 20 | CE22: Port Republic City (Atlantic Co.) | CG22: Barnegat Light Boro. (Ocean Co.) | CH22: 415
AS23: 6 | AT23: 0.06437011681 | AU23: 5.613779299 | AV23: 11.0465 | AW23: 11.80648481 | BB23: 7 | BC23: 6.707692594 | BD23: 3.86982265 | BE23: 2.012307778 | BG23: 0 | BH23: 0 | BI23: =+BH12*$BI$10*BF-BI12 -> 11.5477515 | BJ23: landscape open space | BR23: 7 | BT23: 10.06153889 | CA23: Aura | CB23: 21 | CE23: Somers Point City (Atlantic Co.) | CG23: Barnegat Twp. (Ocean Co.) | CH23: 416
B24: Minimum recharge area needed to dilute nitrate: | S24: LHS = | T24: =4.4186*H*M/(Cq*A*(1-0.179*A^-0.5708)) -> 11.54776766 | AS24: 5 | AT24: 0.07143004973 | AU24: 4.642849751 | AV24: 13.2558 | AW24: 14.27549965 | BB24: 6 | BC24: 7.870989871 | BD24: 4.540955695 | BE24: 2.361296961 | BG24: 0.17 | BH24: 4 | BI24: 9.5917125 | BJ24: 1-2 acre | BR24: 6 | BT24: 11.80648481 | CA24: Barclay | CB24: 22 | CE24: Ventnor City (Atlantic Co.) | CG24: Barrington Boro. (Camden Co.) | CH24: 136
S25: RHS = | T25: =+S -> 11.5477515 | AS25: 4.5 | AT25: 0.07585764015 | AU25: 4.158640619 | AV25: 14.72866667 | AW25: 15.93765994 | BB25: 5 | BC25: 9.516999767 | BD25: 5.490576788 | BE25: 2.85509993 | BG25: 0.23 | BH25: 3 | BI25: 8.9026292 | BJ25: 1/2 - 1 acre | BR25: 5 | BT25: 14.27549965 | CA25: Bartley | CB25: 23 | CE25: Weymouth Twp. (Atlantic Co.) | CG25: Bass River Twp. (Burlington Co.) | CH25: 94
C26: =IF(hydric_soil=1,+A,"N.A.") -> 6.12932273 | D26: acres/system | AS26: 4 | AT26: 0.08113293518 | AU26: 3.675468259 | AV26: 16.56975 | AW26: 18.03280435 | BB26: 4.5 | BC26: 10.62510663 | BD26: 6.129869207 | BE26: 3.187531988 | BG26: 0.33 | BH26: 2 | BI26: 7.7368844 | BJ26: 1/8 - 1/2 acre | BR26: 4.5 | BT26: 15.93765994 | CA26: Bath | CB26: 24 | CE26: Allendale Boro. (Bergen Co.) | CG26: Bay Head Boro. (Ocean Co.) | CH26: 417
S27: equation to solve | T27: =+LHS-RHS -> 1.615589359e-05 | AS27: 3.5 | AT27: 0.08755863677 | AU27: 3.193544771 | AV27: 18.93685714 | AW27: 20.7540538 | BB27: 4 | BC27: 12.02186956 | BD27: 6.935693979 | BE27: 3.606560869 | BG27: 0.65 | BH27: 1 | BI27: 2.2251192 | BJ27: 1/8 acre | BR27: 4 | BT27: 18.03280435 | CA27: Bayboro | CB27: 25 | CE27: Alpine Boro. (Bergen Co.) | CG27: Bayonne City (Hudson Co.) | CH27: 247
AS28: 3 | AT28: 0.09561195949 | AU28: 2.713164122 | AV28: 22.093 | AW28: 24.42867332 | BB28: 3.5 | BC28: 13.83603587 | BD28: 7.982328385 | BE28: 4.15081076 | BG28: 0.85 | BH28: 5 | BI28: 0.9490771 | BJ28: landscape commercial | BR28: 3.5 | BT28: 20.7540538 | CA28: Bedington | CB28: 26 | CE28: Bergenfield Boro. (Bergen Co.) | CG28: Beach Haven Boro. (Ocean Co.) | CH28: 418
AS29: 2.5 | AT29: 0.1060984096 | AU29: 2.234753976 | AV29: 26.5116 | AW29: 29.65829828 | BB29: 3 | BC29: 16.28578222 | BD29: 9.395643586 | BE29: 4.885734665 | BG29: 1 | BH29: 6 | BI29: 0 | BJ29: unlanscaped commercial | BR29: 3 | BT29: 24.42867332 | CA29: Berks | CB29: 27 | CE29: Bogota Boro. (Bergen Co.) | CG29: Beachwood Boro. (Ocean Co.) | CH29: 419
S30: Initial Guess: | T30: 0.1 | AS30: 2 | AT30: 0.1205105614 | AU30: 1.758978877 | AV30: 33.1395 | AW30: 37.68038426 | BB30: 2.5 | BC30: 19.77219885 | BD30: 11.4070378 | BE30: 5.931659656 | BR30: 2.5 | BT30: 29.65829828 | CA30: Berryland | CB30: 28 | CE30: Carlstadt Boro. (Bergen Co.) | CG30: Bedminster Twp. (Somerset Co.) | CH30: 479
AS31: 1.5 | AT31: 0.1420169366 | AU31: 1.286974595 | AV31: 44.186 | AW31: 51.49985109 | BB31: 2 | BC31: 25.12025617 | BD31: 14.49245548 | BE31: 7.536076852 | BR31: 2 | BT31: 37.68038426 | CA31: Berryland Variant | CB31: 29 | CE31: Cliffside Park Boro. (Bergen Co.) | CG31: Belleville Town (Essex Co.) | CH31: 201
AS32: 1 | AT32: 0.179 | AU32: 0.821 | AV32: 66.279 | AW32: 80.72959805 | BB32: 1.5 | BC32: 34.33323406 | BD32: 19.80763503 | BE32: 10.29997022 | BR32: 1.5 | BT32: 51.49985109 | CA32: Bertie | CB32: 30 | CE32: Closter Boro. (Bergen Co.) | CG32: Bellmawr Boro. (Camden Co.) | CH32: 137
AS33: 0.75 | AT33: 0.2109444298 | AU33: 0.5917916777 | AV33: 88.372 | AW33: 111.9971816 | BB33: 1 | BC33: 53.81973203 | BD33: 31.0498454 | BE33: 16.14591961 | BR33: 1 | BT33: 80.72959805 | CA33: Bibb | CB33: 31 | CE33: Cresskill Boro. (Bergen Co.) | CG33: Belmar Boro. (Monmouth Co.) | CH33: 329
AS34: 0.5 | AT34: 0.2658771118 | AU34: 0.3670614441 | AV34: 132.558 | AW34: 180.5664993 | BB34: 0.75 | BC34: 74.66478774 | BD34: 43.07583908 | BE34: 22.39943632 | BR34: 0.75 | BT34: 111.9971816 | CA34: Biddeford | CB34: 32 | CE34: Demarest Boro. (Bergen Co.) | CG34: Belvidere Town (Warren Co.) | CH34: 547
R35: Mass Balance Check on Answer | AS35: =1/3 -> 0.3333333333 | AT35: 0.3351149811 | AU35: 0.2216283396 | AV35: 198.837 | AW35: 299.0547153 | BB35: 0.5 | BC35: 120.3776662 | BD35: 69.44865359 | BE35: 36.11329987 | BR35: 0.5 | BT35: 180.5664993 | CA35: Bigapple | CB35: 33 | CE35: Dumont Boro. (Bergen Co.) | CG35: Bergenfield Boro. (Bergen Co.) | CH35: 26
AS36: 0.25 | AT36: 0.3949197687 | AU36: 0.1512700578 | AV36: 265.116 | AW36: 438.1501598 | BB36: =1/3 -> 0.3333333333 | BC36: 199.3698102 | BD36: 115.0210443 | BE36: 59.81094305 | BG36: =1/(LINEST(BG23:BG29,BI23:BI29)) -> -12.55455379 | BR36: 0.3333333333 | BT36: 299.0547153 | CA36: Bigapple-urban land | CB36: 34 | CE36: East Rutherford Boro. (Bergen Co.) | CG36: Berkeley Heights Twp. (Union Co.) | CH36: 524
R37: Nitrate loading: | T37: =+H*M*0.454 -> 13.62 | U37: kg/year | AS37: =1/8 -> 0.125 | AT37: 0.5865928912 | AU37: 0.0516758886 | AV37: 530.232 | AW37: 1282.590427 | BB37: 0.25 | BC37: 292.1001065 | BD37: 168.5192922 | BE37: 87.63003195 | BR37: 0.25 | BT37: 438.1501598 | CA37: Birdsboro | CB37: 35 | CE37: Edgewater Boro. (Bergen Co.) | CG37: Berkeley Twp. (Ocean Co.) | CH37: 420
R38: Nitrate leaving: | T38: =+Rnet*A*Cq*43560*7.48/(12*1000*1000*0.264) -> 13.63357123 | U38: kg/year | BB38: =1/8 -> 0.125 | BC38: 855.0602844 | BD38: 493.3040102 | BE38: 256.5180853 | BR38: 0.125 | BT38: 1282.590427 | CA38: Boonton | CB38: 36 | CE38: Elmwood Park Boro. (Bergen Co.) | CG38: Berlin Boro. (Camden Co.) | CH38: 138
R39: error | T39: =(+T37-T38)/T37 -> -0.0009964189382 | CA39: Boonton-Rock Outcrop | CB39: 37 | CE39: Emerson Boro. (Bergen Co.) | CG39: Berlin Twp. (Camden Co.) | CH39: 139
CA40: Bowmansville | CB40: 38 | CE40: Englewood City (Bergen Co.) | CG40: Bernards Twp. (Somerset Co.) | CH40: 480
CA41: Braceville | CB41: 39 | CE41: Englewood Cliffs Boro. (Bergen Co.) | CG41: Bernardsville Boro. (Somerset Co.) | CH41: 481
B42: hydric/urban soil? (1=no, 0=yes) | CA42: Broadkill | CB42: 40 | CE42: Fair Lawn Boro. (Bergen Co.) | CG42: Bethlehem Twp. (Hunterdon Co.) | CH42: 260
B43: =VLOOKUP(+BG9,'Soil Codes'!$A$5:$AH$333,34) -> 1 | CA43: Bucks | CB43: 41 | CE43: Fairview Boro. (Bergen Co.) | CG43: Beverly City (Burlington Co.) | CH43: 95
CA44: Buddtown | CB44: 42 | CE44: Fort Lee Boro. (Bergen Co.) | CG44: Blairstown Twp. (Warren Co.) | CH44: 548
CA45: Buddtown-Deptford | CB45: 43 | CE45: Franklin Lakes Boro. (Bergen Co.) | CG45: Bloomfield Town (Essex Co.) | CH45: 202
B46: Net average recharge (adjusted for impervious cover) | CA46: Buddtown-urban land | CB46: 44 | CE46: Garfield City (Bergen Co.) | CG46: Bloomingdale Boro. (Passaic Co.) | CH46: 448
B47: Net drought recharge (adjusted for impervious cover) | CA47: Califon | CB47: 45 | CE47: Glen Rock Boro. (Bergen Co.) | CG47: Bloomsbury Boro. (Hunterdon Co.) | CH47: 261
CA48: Carlisle | CB48: 46 | CE48: Hackensack City (Bergen Co.) | CG48: Bogota Boro. (Bergen Co.) | CH48: 27
CA49: Catden | CB49: 47 | CE49: Harrington Park Boro. (Bergen Co.) | CG49: Boonton Town (Morris Co.) | CH49: 376
B50: Under average conditions, recharge on the pervious portions of this lot is approximately | CA50: Catden-Natchaug | CB50: 48 | CE50: Hasbrouck Heights Boro. (Bergen Co.) | CG50: Boonton Twp. (Morris Co.) | CH50: 377
B51: Under drought conditions, recharge on the pervious portions of this lot is approximately | CA51: Chalfont | CB51: 49 | CE51: Haworth Boro. (Bergen Co.) | CG51: Bordentown City (Burlington Co.) | CH51: 96
CA52: Charlton-rock outcrop | CB52: 50 | CE52: Hillsdale Boro. (Bergen Co.) | CG52: Bordentown Twp. (Burlington Co.) | CH52: 97
CA53: Chatfield-Hollis-Rock outcrop | CB53: 51 | CE53: Hohokus Boro. (Bergen Co.) | CG53: Bound Brook Boro. (Somerset Co.) | CH53: 482
CA54: Chenango | CB54: 52 | CE54: Leonia Boro. (Bergen Co.) | CG54: Bradley Beach Boro. (Monmouth Co.) | CH54: 330
CA55: Chicone | CB55: 53 | CE55: Little Fy Boro. (Bergen Co.) | CG55: Branchburg Twp. (Somerset Co.) | CH55: 483
CA56: Chillum | CB56: 54 | CE56: Lodi Boro. (Bergen Co.) | CG56: Branchville Boro. (Sussex Co.) | CH56: 502
CA57: Chippewa | CB57: 55 | CE57: Lyndhurst Twp. (Bergen Co.) | CG57: Brick Twp. (Ocean Co.) | CH57: 421
CA58: Clay Pits | CB58: 56 | CE58: Mahwah Twp. (Bergen Co.) | CG58: Bridgeton City (Cumberland Co.) | CH58: 187
CA59: Clayey Land | CB59: 57 | CE59: Maywood Boro. (Bergen Co.) | CG59: Bridgewater Twp. (Somerset Co.) | CH59: 484
CA60: Coastal Beach | CB60: 58 | CE60: Midland Park Boro. (Bergen Co.) | CG60: Brielle Boro. (Monmouth Co.) | CH60: 331
CA61: Cokesbury | CB61: 59 | CE61: Montvale Boro. (Bergen Co.) | CG61: Brigantine City (Atlantic Co.) | CH61: 3
CA62: Colemantown | CB62: 60 | CE62: Moonachie Boro. (Bergen Co.) | CG62: Brooklawn Boro. (Camden Co.) | CH62: 140
CA63: Collington | CB63: 61 | CE63: New Milford Boro. (Bergen Co.) | CG63: Buena Boro. (Atlantic Co.) | CH63: 4
CA64: Colonie | CB64: 62 | CE64: North Arlington Boro. (Bergen Co.) | CG64: Buena Vista Twp. (Atlantic Co.) | CH64: 5
CA65: Colts Neck | CB65: 63 | CE65: Northvale Boro. (Bergen Co.) | CG65: Burlington City (Burlington Co.) | CH65: 98
CA66: Croton | CB66: 64 | CE66: Norwood Boro. (Bergen Co.) | CG66: Burlington Twp. (Burlington Co.) | CH66: 99
CA67: Cut And Fill Land* | CB67: 65 | CE67: Oakland Boro. (Bergen Co.) | CG67: Butler Boro. (Morris Co.) | CH67: 378
CA68: Delaware | CB68: 66 | CE68: Old Tappan Boro. (Bergen Co.) | CG68: Byram Twp. (Sussex Co.) | CH68: 503
CA69: Dennisville | CB69: 67 | CE69: Oradell Boro. (Bergen Co.) | CG69: Caldwell Boro. (Essex Co.) | CH69: 203
CA70: Donlonton | CB70: 68 | CE70: Palisades Park Boro. (Bergen Co.) | CG70: Califon Boro. (Hunterdon Co.) | CH70: 262
CA71: Downer | CB71: 69 | CE71: Paramus Boro. (Bergen Co.) | CG71: Camden City (Camden Co.) | CH71: 141
CA72: Doylestown | CB72: 70 | CE72: Park Ridge Boro. (Bergen Co.) | CG72: Cape May City (Cape May Co.) | CH72: 172
CA73: Dragston | CB73: 71 | CE73: Ramsey Boro. (Bergen Co.) | CG73: Cape May Point Boro. (Cape May Co.) | CH73: 173
CA74: Duffield | CB74: 72 | CE74: Ridgefield Boro. (Bergen Co.) | CG74: Carlstadt Boro. (Bergen Co.) | CH74: 28
AO75: 3 | CA75: Dune Land | CB75: 73 | CE75: Ridgefield Park Village (Bergen Co.) | CG75: Carneys Point Twp. (Salem Co.) | CH75: 465
AO76: 100 | CA76: Dunellen | CB76: 74 | CE76: Ridgewood Village (Bergen Co.) | CG76: Carteret Boro. (Middlesex Co.) | CH76: 298
AO77: 40 | CA77: Dunellen Variant | CB77: 75 | CE77: River Edge Boro. (Bergen Co.) | CG77: Cedar Grove Twp. (Essex Co.) | CH77: 204
AO78: 5.2 | CA78: Edneyville | CB78: 76 | CE78: River Vale Twp. (Bergen Co.) | CG78: Chatham Boro. (Morris Co.) | CH78: 379
CA79: Edneyville Material | CB79: 77 | CE79: Rochelle Park Twp. (Bergen Co.) | CG79: Chatham Twp. (Morris Co.) | CH79: 380
CA80: Edneyville-Parker-Rock Outcrop | CB80: 78 | CE80: Rockleigh Boro. (Bergen Co.) | CG80: Chesilhurst Boro. (Camden Co.) | CH80: 143
CA81: Elkton | CB81: 79 | CE81: Rutherford Boro. (Bergen Co.) | CG81: Chester Boro. (Morris Co.) | CH81: 381
CA82: Ellington (Middlesex) | CB82: 80 | CE82: Saddle Brook Twp. (Bergen Co.) | CG82: Chester Twp. (Morris Co.) | CH82: 382
CA83: Ellington (Morris) | CB83: 81 | CE83: Saddle River Boro. (Bergen Co.) | CG83: Chesterfield Twp. (Burlington Co.) | CH83: 100
CA84: Evesboro | CB84: 82 | CE84: South Hackensack Twp. (Bergen Co.) | CG84: Chy Hill Twp. (Camden Co.) | CH84: 142
CA85: Fallsington | CB85: 83 | CE85: Teaneck Twp. (Bergen Co.) | CG85: Cinnaminson Twp. (Burlington Co.) | CH85: 101
CA86: Fallsington Variant | CB86: 84 | CE86: Tenafly Boro. (Bergen Co.) | CG86: Clark Twp. (Union Co.) | CH86: 525
CA87: Farmington-rock outcrop | CB87: 85 | CE87: Teterboro Boro. (Bergen Co.) | CG87: Clayton Boro. (Gloucester Co.) | CH87: 223
CA88: Farmington-Wassaic-rock outcrop | CB88: 86 | CE88: Upper Saddle River Boro. (Bergen Co.) | CG88: Clementon Boro. (Camden Co.) | CH88: 144
CA89: Fill Land * | CB89: 87 | CE89: Waldwick Boro. (Bergen Co.) | CG89: Cliffside Park Boro. (Bergen Co.) | CH89: 29
CA90: Fluvaquents | CB90: 88 | CE90: Wallington Boro. (Bergen Co.) | CG90: Clifton City (Passaic Co.) | CH90: 449
CA91: Fort Mott | CB91: 89 | CE91: Washington Twp. (Bergen Co.) | CG91: Clinton Town (Hunterdon Co.) | CH91: 263
CA92: Fredon | CB92: 90 | CE92: Westwood Boro. (Bergen Co.) | CG92: Clinton Twp. (Hunterdon Co.) | CH92: 264
CA93: Freehold | CB93: 91 | CE93: Wood-Ridge Boro. (Bergen Co.) | CG93: Closter Boro. (Bergen Co.) | CH93: 30
CA94: Fresh Water Marsh | CB94: 92 | CE94: Woodcliff Lake Boro. (Bergen Co.) | CG94: Collingswood Boro. (Camden Co.) | CH94: 145
CA95: Fripp | CB95: 93 | CE95: Wyckoff Twp. (Bergen Co.) | CG95: Colts Neck Twp. (Monmouth Co.) | CH95: 332
CA96: Galestown | CB96: 94 | CE96: Bass River Twp. (Burlington Co.) | CG96: Commercial Twp. (Cumberland Co.) | CH96: 188
CA97: Galloway | CB97: 95 | CE97: Beverly City (Burlington Co.) | CG97: Corbin City (Atlantic Co.) | CH97: 6
CA98: Galloway variant | CB98: 96 | CE98: Bordentown City (Burlington Co.) | CG98: Cranbury Twp. (Middlesex Co.) | CH98: 299
CA99: Galway | CB99: 97 | CE99: Bordentown Twp. (Burlington Co.) | CG99: Cranford Twp. (Union Co.) | CH99: 526
CA100: Gladstone | CB100: 98 | CE100: Burlington City (Burlington Co.) | CG100: Cresskill Boro. (Bergen Co.) | CH100: 31
CA101: Glassboro and Woodstown | CB101: 99 | CE101: Burlington Twp. (Burlington Co.) | CG101: Deal Boro. (Monmouth Co.) | CH101: 333
CA102: Gravel Pits | CB102: 100 | CE102: Chesterfield Twp. (Burlington Co.) | CG102: Deerfield Twp. (Cumberland Co.) | CH102: 189
CA103: Great Piece | CB103: 101 | CE103: Cinnaminson Twp. (Burlington Co.) | CG103: Delanco Twp. (Burlington Co.) | CH103: 102
CA104: Haledon | CB104: 102 | CE104: Delanco Twp. (Burlington Co.) | CG104: Delaware Twp. (Hunterdon Co.) | CH104: 265
CA105: Haledon-Wet Variant | CB105: 103 | CE105: Delran Twp. (Burlington Co.) | CG105: Delran Twp. (Burlington Co.) | CH105: 103
CA106: Halsey | CB106: 104 | CE106: Eastampton Twp. (Burlington Co.) | CG106: Demarest Boro. (Bergen Co.) | CH106: 32
CA107: Hammonton | CB107: 105 | CE107: Edgewater Park Twp. (Burlington Co.) | CG107: Dennis Twp. (Cape May Co.) | CH107: 174
CA108: Hasbrouck | CB108: 106 | CE108: Evesham Twp. (Burlington Co.) | CG108: Denville Twp. (Morris Co.) | CH108: 383
CA109: Hazen | CB109: 107 | CE109: Fieldsboro Boro. (Burlington Co.) | CG109: Deptford Twp. (Gloucester Co.) | CH109: 224
CA110: Hazleton | CB110: 108 | CE110: Florence Twp. (Burlington Co.) | CG110: Dover Town (Morris Co.) | CH110: 384
CA111: Hero | CB111: 109 | CE111: Hainesport Twp. (Burlington Co.) | CG111: Dover Twp. (Ocean Co.) | CH111: 422
CA112: Hibernia | CB112: 110 | CE112: Lumberton Twp. (Burlington Co.) | CG112: Downe Twp. (Cumberland Co.) | CH112: 190
CA113: Hinckley | CB113: 111 | CE113: Mansfield Twp. (Burlington Co.) | CG113: Dumont Boro. (Bergen Co.) | CH113: 33
CA114: Hinckley-urban land | CB114: 112 | CE114: Maple Shade Twp. (Burlington Co.) | CG114: Dunellen Boro. (Middlesex Co.) | CH114: 300
CA115: Hollis-rock outcrop-Chatfield | CB115: 113 | CE115: Medford Lakes Boro. (Burlington Co.) | CG115: Eagleswood Twp. (Ocean Co.) | CH115: 423
CA116: Holmdel | CB116: 114 | CE116: Medford Twp. (Burlington Co.) | CG116: East Amwell Twp. (Hunterdon Co.) | CH116: 266
CA117: Holyoke | CB117: 115 | CE117: Moorestown Twp. (Burlington Co.) | CG117: East Brunswick Twp. (Middlesex Co.) | CH117: 301
CA118: Holyoke-Rock Outcrop (Morris) | CB118: 116 | CE118: Mount Holly Twp. (Burlington Co.) | CG118: East Greenwich Twp. (Gloucester Co.) | CH118: 225
CA119: Holyoke-Rock Outcrop (Passaic) | CB119: 117 | CE119: Mount Laurel Twp. (Burlington Co.) | CG119: East Hanover Twp. (Morris Co.) | CH119: 385
CA120: Hooksan | CB120: 118 | CE120: New Hanover Twp. (Burlington Co.) | CG120: East Newark Boro. (Hudson Co.) | CH120: 248
CA121: Hooksan Variant | CB121: 119 | CE121: North Hanover Twp. (Burlington Co.) | CG121: East Orange City (Essex Co.) | CH121: 205
CA122: Hoosic | CB122: 120 | CE122: Palmyra Boro. (Burlington Co.) | CG122: East Rutherford Boro. (Bergen Co.) | CH122: 34
CA123: Horseneck | CB123: 121 | CE123: Pemberton Boro. (Burlington Co.) | CG123: East Windsor Twp. (Mercer Co.) | CH123: 285
CA124: Horseneck-urban land | CB124: 122 | CE124: Pemberton Twp. (Burlington Co.) | CG124: Eastampton Twp. (Burlington Co.) | CH124: 104
CA125: Howell | CB125: 123 | CE125: Riverside Twp. (Burlington Co.) | CG125: Eatontown Boro. (Monmouth Co.) | CH125: 334
CA126: Humaquepts | CB126: 124 | CE126: Riverton Boro. (Burlington Co.) | CG126: Edgewater Boro. (Bergen Co.) | CH126: 35
CA127: Ingleside | CB127: 125 | CE127: Shamong Twp. (Burlington Co.) | CG127: Edgewater Park Twp. (Burlington Co.) | CH127: 105
CA128: Jade Run | CB128: 126 | CE128: Southampton Twp. (Burlington Co.) | CG128: Edison Twp. (Middlesex Co.) | CH128: 302
CA129: Jade Run-urban land | CB129: 127 | CE129: Springfield Twp. (Burlington Co.) | CG129: Egg Harbor City (Atlantic Co.) | CH129: 7
CA130: Jade Run-Weeksville-urban land | CB130: 128 | CE130: Tabernacle Twp. (Burlington Co.) | CG130: Egg Harbor Twp. (Atlantic Co.) | CH130: 8
CA131: Keansburg | CB131: 129 | CE131: Washington Twp. (Burlington Co.) | CG131: Elizabeth City (Union Co.) | CH131: 527
CA132: Keyport | CB132: 130 | CE132: Westampton Twp. (Burlington Co.) | CG132: Elk Twp. (Gloucester Co.) | CH132: 226
CA133: Keyport Soils | CB133: 131 | CE133: Willingboro Twp. (Burlington Co.) | CG133: Elmer Boro. (Salem Co.) | CH133: 466
CA134: Klej | CB134: 132 | CE134: Woodland Twp. (Burlington Co.) | CG134: Elmwood Park Boro. (Bergen Co.) | CH134: 36
CA135: Klinesville | CB135: 133 | CE135: Wrightstown Boro. (Burlington Co.) | CG135: Elsinboro Twp. (Salem Co.) | CH135: 467
CA136: Knickerbocker | CB136: 134 | CE136: Audubon Boro. (Camden Co.) | CG136: Emerson Boro. (Bergen Co.) | CH136: 37
CA137: Kresson | CB137: 135 | CE137: Audubon Park Boro. (Camden Co.) | CG137: Englewood City (Bergen Co.) | CH137: 38
CA138: Lackawanna | CB138: 136 | CE138: Barrington Boro. (Camden Co.) | CG138: Englewood Cliffs Boro. (Bergen Co.) | CH138: 39
CA139: Lakehurst | CB139: 137 | CE139: Bellmawr Boro. (Camden Co.) | CG139: Englishtown Boro. (Monmouth Co.) | CH139: 335
CA140: Lakeland | CB140: 138 | CE140: Berlin Boro. (Camden Co.) | CG140: Essex Fells Boro. (Essex Co.) | CH140: 206
CA141: Lakewood | CB141: 139 | CE141: Berlin Twp. (Camden Co.) | CG141: Estell Manor City (Atlantic Co.) | CH141: 9
CA142: Lamington | CB142: 140 | CE142: Brooklawn Boro. (Camden Co.) | CG142: Evesham Twp. (Burlington Co.) | CH142: 106
CA143: Lansdale | CB143: 141 | CE143: Camden City (Camden Co.) | CG143: Ewing Twp. (Mercer Co.) | CH143: 286
CA144: Lansdowne | CB144: 142 | CE144: Chy Hill Twp. (Camden Co.) | CG144: Fair Haven Boro. (Monmouth Co.) | CH144: 336
CA145: Lansdowne Variant | CB145: 143 | CE145: Chesilhurst Boro. (Camden Co.) | CG145: Fair Lawn Boro. (Bergen Co.) | CH145: 40
CA146: Lawrenceville | CB146: 144 | CE146: Clementon Boro. (Camden Co.) | CG146: Fairfield Boro. (Essex Co.) | CH146: 207
CA147: Legore | CB147: 145 | CE147: Collingswood Boro. (Camden Co.) | CG147: Fairfield Twp. (Cumberland Co.) | CH147: 191
CA148: Lehigh | CB148: 146 | CE148: Gibbsboro Boro. (Camden Co.) | CG148: Fairview Boro. (Bergen Co.) | CH148: 41
CA149: Lenni | CB149: 147 | CE149: Gloucester City (Camden Co.) | CG149: Fanwood Boro. (Union Co.) | CH149: 528
CA150: Lenoir | CB150: 148 | CE150: Gloucester Twp. (Camden Co.) | CG150: Far Hills Boro. (Somerset Co.) | CH150: 485
CA151: Leon | CB151: 149 | CE151: Haddon Heights Boro. (Camden Co.) | CG151: Farmingdale Boro. (Monmouth Co.) | CH151: 337
CA152: Livingston | CB152: 150 | CE152: Haddon Twp. (Camden Co.) | CG152: Fieldsboro Boro. (Burlington Co.) | CH152: 107
CA153: Loamy Alluvial Land | CB153: 151 | CE153: Haddonfield Boro. (Camden Co.) | CG153: Flemington Boro. (Hunterdon Co.) | CH153: 267
CA154: Lordstown-Wallpack | CB154: 152 | CE154: Hi-Nella Boro. (Camden Co.) | CG154: Florence Twp. (Burlington Co.) | CH154: 108
CA155: Lyons | CB155: 153 | CE155: Laurel Springs Boro. (Camden Co.) | CG155: Florham Park Boro. (Morris Co.) | CH155: 386
CA156: Made Land* | CB156: 154 | CE156: Lawnside Boro. (Camden Co.) | CG156: Folsom Boro. (Atlantic Co.) | CH156: 10
CA157: Manahawkin | CB157: 155 | CE157: Lindenwold Boro. (Camden Co.) | CG157: Fort Lee Boro. (Bergen Co.) | CH157: 42
CA158: Manlius-Nassau | CB158: 156 | CE158: Magnolia Boro. (Camden Co.) | CG158: Frankford Twp. (Sussex Co.) | CH158: 504
CA159: Mannington-Nanticoke | CB159: 157 | CE159: Merchantville Boro. (Camden Co.) | CG159: Franklin Boro. (Sussex Co.) | CH159: 505
CA160: Mannington-Nanticoke-Udorthents | CB160: 158 | CE160: Mount Ephraim Boro. (Camden Co.) | CG160: Franklin Lakes Boro. (Bergen Co.) | CH160: 43
CA161: Marlton | CB161: 159 | CE161: Oaklyn Boro. (Camden Co.) | CG161: Franklin Twp. (Gloucester Co.) | CH161: 227
CA162: Marsh | CB162: 160 | CE162: Pennsauken Twp. (Camden Co.) | CG162: Franklin Twp. (Hunterdon Co.) | CH162: 268
CA163: Matapeake | CB163: 161 | CE163: Pine Hill Boro. (Camden Co.) | CG163: Franklin Twp. (Somerset Co.) | CH163: 486
CA164: Matawan | CB164: 162 | CE164: Pine Valley Boro. (Camden Co.) | CG164: Franklin Twp. (Warren Co.) | CH164: 549
CA165: Matlock | CB165: 163 | CE165: Runnemede Boro. (Camden Co.) | CG165: Fredon Twp. (Sussex Co.) | CH165: 506
CA166: Mattapex | CB166: 164 | CE166: Somerdale Boro. (Camden Co.) | CG166: Freehold Boro. (Monmouth Co.) | CH166: 338
CA167: Meckesville | CB167: 165 | CE167: Stratford Boro. (Camden Co.) | CG167: Freehold Twp. (Monmouth Co.) | CH167: 339
CA168: Middlebury | CB168: 166 | CE168: Tavistock Boro. (Camden Co.) | CG168: Frelinghuysen Twp. (Warren Co.) | CH168: 550
CA169: Minoa | CB169: 167 | CE169: Voorhees Twp. (Camden Co.) | CG169: Frenchtown Boro. (Hunterdon Co.) | CH169: 269
CA170: Mispillion-Transquaking-Appoquinimink | CB170: 168 | CE170: Waterford Twp. (Camden Co.) | CG170: Galloway Twp. (Atlantic Co.) | CH170: 11
CA171: Moderately Wet Land | CB171: 169 | CE171: Winslow Twp. (Camden Co.) | CG171: Garfield City (Bergen Co.) | CH171: 44
CA172: Mount Lucas | CB172: 170 | CE172: Woodlynne Boro. (Camden Co.) | CG172: Garwood Boro. (Union Co.) | CH172: 529
CA173: Muck | CB173: 171 | CE173: Avalon Boro. (Cape May Co.) | CG173: Gibbsboro Boro. (Camden Co.) | CH173: 146
CA174: Muck, Shallow, Over Clay | CB174: 172 | CE174: Cape May City (Cape May Co.) | CG174: Glassboro Boro. (Gloucester Co.) | CH174: 228
CA175: Muck, Shallow, Over Loam | CB175: 173 | CE175: Cape May Point Boro. (Cape May Co.) | CG175: Glen Gardner Boro. (Hunterdon Co.) | CH175: 270
CA176: Mullica | CB176: 174 | CE176: Dennis Twp. (Cape May Co.) | CG176: Glen Ridge Boro. (Essex Co.) | CH176: 208
CA177: Muttontown | CB177: 175 | CE177: Lower Twp. (Cape May Co.) | CG177: Glen Rock Boro. (Bergen Co.) | CH177: 45
CA178: Nassau | CB178: 176 | CE178: Middle Twp. (Cape May Co.) | CG178: Gloucester City (Camden Co.) | CH178: 147
CA179: Nassau-Rock Outcrop (Sussex) | CB179: 177 | CE179: North Wildwood City (Cape May Co.) | CG179: Gloucester Twp. (Camden Co.) | CH179: 148
CA180: Nassau-Rock Outcrop (Warren) | CB180: 178 | CE180: Ocean City (Cape May Co.) | CG180: Green Brook Twp. (Somerset Co.) | CH180: 487
CA181: Natchaug | CB181: 179 | CE181: Sea Isle City (Cape May Co.) | CG181: Green Twp. (Sussex Co.) | CH181: 507
CA182: Neshaminy | CB182: 180 | CE182: Stone Harbor Boro. (Cape May Co.) | CG182: Greenwich Twp. (Cumberland Co.) | CH182: 192
CA183: Neshaminy Variant | CB183: 181 | CE183: Upper Twp. (Cape May Co.) | CG183: Greenwich Twp. (Gloucester Co.) | CH183: 229
CA184: Netcong | CB184: 182 | CE184: West Cape May Boro. (Cape May Co.) | CG184: Greenwich Twp. (Warren Co.) | CH184: 551
CA185: Nixon | CB185: 183 | CE185: West Wildwood Boro. (Cape May Co.) | CG185: Guttenberg Town (Hudson Co.) | CH185: 249
CA186: Nixon Variant | CB186: 184 | CE186: Wildwood City (Cape May Co.) | CG186: Hackensack City (Bergen Co.) | CH186: 46
CA187: Nixonton | CB187: 185 | CE187: Wildwood Crest Boro. (Cape May Co.) | CG187: Hackettstown Town (Warren Co.) | CH187: 552
CA188: Norton | CB188: 186 | CE188: Woodbine Boro. (Cape May Co.) | CG188: Haddon Heights Boro. (Camden Co.) | CH188: 149
CA189: Norwich | CB189: 187 | CE189: Bridgeton City (Cumberland Co.) | CG189: Haddon Twp. (Camden Co.) | CH189: 150
CA190: Ochrepts | CB190: 188 | CE190: Commercial Twp. (Cumberland Co.) | CG190: Haddonfield Boro. (Camden Co.) | CH190: 151
CA191: Oquaga | CB191: 189 | CE191: Deerfield Twp. (Cumberland Co.) | CG191: Hainesport Twp. (Burlington Co.) | CH191: 109
CA192: Oquaga-Rock Outcrop | CB192: 190 | CE192: Downe Twp. (Cumberland Co.) | CG192: Haledon Boro. (Passaic Co.) | CH192: 450
CA193: Oquaga-Swartswood Rock Outcrop | CB193: 191 | CE193: Fairfield Twp. (Cumberland Co.) | CG193: Hamburg Boro. (Sussex Co.) | CH193: 508
CA194: Othello | CB194: 192 | CE194: Greenwich Twp. (Cumberland Co.) | CG194: Hamilton Twp. (Atlantic Co.) | CH194: 12
CA195: Otisville | CB195: 193 | CE195: Hopewell Twp. (Cumberland Co.) | CG195: Hamilton Twp. (Mercer Co.) | CH195: 287
CA196: Palms | CB196: 194 | CE196: Lawrence Twp. (Cumberland Co.) | CG196: Hammonton Town (Atlantic Co.) | CH196: 13
CA197: Palmyra | CB197: 195 | CE197: Maurice River Twp. (Cumberland Co.) | CG197: Hampton Boro. (Hunterdon Co.) | CH197: 271
CA198: Parker | CB198: 196 | CE198: Millville City (Cumberland Co.) | CG198: Hampton Twp. (Sussex Co.) | CH198: 509
CA199: Parker-Rock Outcrop | CB199: 197 | CE199: Shiloh Boro. (Cumberland Co.) | CG199: Hanover Twp. (Morris Co.) | CH199: 387
CA200: Parsippany | CB200: 198 | CE200: Stow Creek Twp. (Cumberland Co.) | CG200: Harding Twp. (Morris Co.) | CH200: 388
... 369 more rows

Sheet Printout
B2: =+'Calculation Window'!B1:E1 -> A Recharge-Based Nitrate-Dilution Model for New Jersey V7.0 for Excel 2010
C4: Adjusted Trela-Douglas Model Input Parameters
C5: population density: | E5: =+'Calculation Window'!D5 -> 3 | F5: people/home
C6: nitrate loading rage | E6: =+'Calculation Window'!D6 -> 10 | F6: pounds/person/year
C7: NO3 target: | E7: =+'Calculation Window'!D7 -> 2 | F7: mg/l
C9: Ground-Water Recharge Methodology Input Parameters
C10: Soil | D10: =+'Calculation Window'!BG4 -> Wellsboro
C11: Municipality | D11: =+'Calculation Window'!BG5 -> Lambertville City (Hunterdon Co.)
C13: =IF(+'Calculation Window'!B43=0,"Hydric or urban soil. Can't use this method."," ") -> 
C15: Minimum recharge area needed to dilute nitrate
E16: =+'Calculation Window'!C26 -> 6.12932273 | F16: acres/system
C19: =IF('Calculation Window'!BM14=2,+Printout!B62,Printout!B61) -> Average recharge on this soil type in this municipality to a totally pervious lot is approximately
E20: =+'Calculation Window'!D16 -> 11.5477515 | F20: inches/year
C23: Impervious percentage on building lots of this size | E23: =IF(+'Calculation Window'!B43=0,"N.A.",+'Calculation Window'!T20) -> 0.06359134083
C26: =IF('Calculation Window'!BM14=2,C66,C65) -> Average recharge adjusted for impervious cover | E26: =+E20*(1-E23) -> 10.8134145 | F26: inches/year
C29: This method assumes the maximum recharge rate to the pervious portion of the lot.
C32: =TODAY() -> 2016-09-01
B61: Average recharge on this soil type in this municipality to a totally pervious lot is approximately
B62: Drought recharge on this soil type in this municipality to a totally pervious lot is approximately
C65: Average recharge adjusted for impervious cover
C66: Drought recharge adjusted for impervious cover

Sheet ReadMe
B3: BRIEF EXPLANATION

Sheet Metadata
A2: METADATA FOR THE FILE
A3: NJ_NO3_DILUTION_V50.XLS
A7: 1. IDENTIFICATION INFORMATION
A9: 1.1 CITATION
A11: MS Excel Workbook Implementing A Recharge-Based
A12: Nitrate-Dilution Model for New Jersey, version 5.0
A14: Jeffrey L. Hoffman and Robert J. Canace, 2002
A17: 1.2 DESCRIPTION
A19: 1.2.1 ABSTRACT
A21: Nitrate (NO3) is a constituent found in the effluent from individual
A22: on-site wastewater disposal systems (septic tanks.)
A23: Ensuring that nitrate concentrations in ground water do not
A24: exceed targets should be one goal when planning
A25: or reviewing proposed developments that will use septic tanks.
A26: The method presented here combines a model of nitrate
A27: dilution (based on Trela and Douglas, 1978) with ground-water
A28: recharge (Charles and others, 1993) to estimate the minimum lot size
A29: needed to provide enough recharge to dilute nitrate to a specified
A30: target. This method is intended to be a guide for estimating the
A31: impact of nitrate from septic tanks on ground-water quality in reference.
A32: to a specified target.
A34: Trela and Douglas (1978) presented a model of nitrate dilution
A35: in ground water. That model required inputs of
A36: per capita water demand, residents per household, NO3
A37: concentration in effluent, recharge on the lot, and NO3
A38: ground-water target. This model has been modified to require
A39: estimates of residents per household, net per capita NO3 loading
A40: rate from the septic tank, and NO3 target.
A42: The New Jersey Geological Survey's (NJGS) method for estimating
A43: ground-water recharge (Charles and others, 1993) is a water-
A44: budget approach applicable only to New Jersey. It requires
A45: knowledge of the municipality, soil, land use, and basin factor. With
A46: these four variables it can estimate ground-water recharge on a
A47: particular site. In this spreadsheet the user inputs municipality, soil
A48: type, and basin factor (which shouldn't be changed without a
A49: site-specific study). The model then determines an appropriate land use
A50: based on how much area is needed to generate recharge to dilute the
A51: nitrate to the specified target.
A53: The methodology presented in this spreadsheet uses the
A54: NJGS' recharge methodology to provide the necessary
A55: recharge for the modified Trela-Douglas model. Because it is an
A56: estimation of nitrate in ground water under 'as built' conditions
A57: it must solve the two equations simultaneously. The result
A58: is the minimum acerage required to provide enough recharge
A59: to dilute the effluent coming out of one septic tank to the target.
A61: This methodology is not intended to predict nitrate concentrations
A62: downgradient of an individual septic tank. It is intended to
A63: estimate net impact of a number of homes on ground-water
A64: nitrate concentrations at a point downgradient of the homes.
A66: The methodology assumes that all of the assumptions in the
A67: underlying Trela-Douglas nitrate dilution model and the
A68: NJGS ground-water recharge model are appropriate to the
A69: site being analyzed. See the original documentation for a
A70: more thorough discussion of the necessary assumptions
A71: and how they affect and limit the analysis.
A73: The NJGS now recommends using a basin factor of 1.0, instead
A74: of 1.3 as used by Charles and others (1993). This is
A75: based on a calibration of basin-wide recharge volume
A76: from this methodology to revised stream baseflow estimations
A77: (Hoffman, 1999a). This factor should not be changed. The basin
A78: factor is used in the spreadsheet to calculate recharge but is
A79: not explicatly a variable the user can alter.
A81: One important limiting factor is that the NJGS ground-water
A82: recharge methodology does not apply to wetlands, surface
A83: water or hydric soils.
A85: This digital product consists of an EXCEL spread-
A86: sheet which incorporates these factors.
A87: When first opened, this file displays, on the left, a calculation
A88: window. The user enters, in the cells colored yellow, the
A89: parameters needed by the Trela-Douglas and NJGS models.
A91: 1.2.2. LIST OF FILES AND BRIEF DESCRIPTION
A93: NJ_NO3_DILUTION_V50.XLS
A94: An Excel spreadsheet which contains the calculations necessary for
A95: solving the modified Trela-Douglas nitrate dilution and NJGS ground-
A96: dilution and NJGS ground-water recharge models.
A98: This file contains 5 worksheets:
A100: Metadata - This metadata file.
A102: Calculation Window - A worksheet in which the user enters
A103: the required input parameters. Clicking the solve button
A104: runs a macro which calculates the minimum land area needed to
A105: capture enough recharge to dilute the nitrate in the effluent to the .
A106: target. Clicking on the 'print' button prints a summary
A107: sheet to the computer's printer.
A109: Municipality codes - A list of all municpalities
A110: in New Jersey with a code assigned just for
A111: this report. This worksheet contains the climate
A112: factor for each municipality. These data are from
A113: Appendix 6 of Charles and others (1993).
A115: Soil codes - A list of all soils in New Jersey with
A116: a code assigned just for this report. This worksheet
A117: includes the recharge factor and recharge constant
A118: for each soil. These data are from Appendix 5
A119: of Charles and others (1993).
A121: Printout - A series of cells formatted for printout of the results.
A123: 1.2.3. LIST OF KEYWORDS
A125: nitrate, dilution, septic tanks, recharge, dilution model,
A126: ground-water recharge, land use, land cover, soils, New Jersey
A129: 1.3. GEOGRAPHIC EXTENT
A131: State of New Jersey
A133: 1.4. CONTACT INFORMATION
A135: Jeffrey L. Hoffman, Research Scientist
A136: Robert J. Canace, Section Chief
A137: New Jersey Geological Survey
A138: Division of Science, Research and Technology
A139: New Jersey Department of Environmental Protection
A140: PO Box 427
A141: Trenton, NJ 08625
A142: phone: (609) 984-6587
A143: email: Jeffrey.L.Hoffman@dep.state.nj.us
A144: Bob.Canace@dep.state.nj.us
A147: 2. DATA CREATION & QUALITY INFORMATION
A149: 2.1 NAME OF DATA
A151: NJ_NO3_DILUTION_V50.XLS
A153: 2.2 DESCRIPTION OF THE TYPE OF DATA
A155: The data consist of an EXCEL spreadsheet which incorporates
A156: the equations necessary to estimate the land area needed
A157: to provide enough recharge to dilute nitrate coming from a
A158: septic tank to target. The equations come from the
A159: Trela-Douglas nitrate dilution model (Trela and Douglas, 1978)
A160: and the NJGS ground-water recharge methodology (Charles
A161: and others, 1993).
A163: This spreadsheet also includes a calculation worksheet
A164: which allows the user to input the necessary variables.
A165: The method is specific to a municipality and soil.
A167: 2.3. DATA SOURCES
A169: The data and equations are from Trela and Douglas (1978) and
A170: Charles and others (1993).
A172: A report documenting the development of this method is
A173: in preparation.
A175: 2.4 DATA ORGANIZER
A177: Jeffrey L. Hoffman
A179: 2.5 DATE OF COMPILATION
A181: September 2000 (version 2.0)
A182: May 2001 (version 3.0)
A183: June 2001 (version 3.1)
A184: July 2001 (versions 4.0 and 4.1)
A185: May 2002 (version 5.0)
A188: 2.6 DATA CREATION AND ACCURACY
A190: The basic factors of the ground-water recharge methodology
A191: were created by Charles and others (1993). See that report
A192: for a description of how the factors were created.
A194: A digital version of these factors was transferred
A195: to the NJ Geological Survey's geographical information
A196: system where it is used to calculate ground-water
A197: recharge for counties and watersheds (Hoffman, 1999b).
A199: This digital version was downloaded into an EXCEL
A200: spreadsheet and reformatted.
A202: The basic equations for calculating ground-water
A203: recharge are from Charles and others (1993). (Appendix 7 of that
A204: report describes how these equations were developed.) These
A205: equations were added to the 'Calculation Window' worksheet.
A207: 2.7 PREVIOUS VERSIONS
A209: Version 2.0 was the first version officially released. Earlier versions
A210: were circulated within the DEP for comment.
A211: Version 3.0 modifies the nitrate loading portion to more explicitely
A212: account for nitrate mass loading directly and to not account for
A213: volume of septic effluent in diluting the nitrate.
A214: Version 3.1 added a few minor reporting lines relating to impervious
A215: surface cover and reduction in average recharge.
A216: Version 4.0 removed the term 'carrying-capacity' from the title and
A217: descriptions. This version also included some more minor changes
A218: in layout and reporting.
A219: Version 4.1 modified the way the basin factor is handled.
A220: Verson 5.0 corrects a mathematical error made in the equations. The
A221: impervious surface cover modification was erronously applies
A222: twice in previous versions.
A224: 2.8. NECESSARY SOFTWARE SETUP
A226: This spreadsheet was developed using the EXCEL spreadsheet
A227: software. Use of brand, commercial or trade names is for
A228: identification purposes only and does not constitute endorsement by
A229: the New Jersey Geological Survey.
A231: The file NJ_NO3_DILUTION_50.XLS is an EXCEL 97
A232: spreadsheet. When Excel starts to load the file it will indicate that
A233: the spreadsheet wants to run macros. The user must indicate that
A234: this is acceptable by clicking the 'ok' button. This is because the
A235: spreadsheet calculates the minimum lot size by running a macro.
A236: Not allowing macros to execute will prevent the spreadsheet
A237: from performing as desired.
A239: Additionally, the calculations require access to a special solver routine.
A240: The program must have access to the file SOLVER.XLA. This is an
A241: add-in file to EXCEL 97 that must be activated by issuing the
A242: following commands:
A243: 1) On the 'Tools' menu pick the 'Add-Ins' option .
A244: 2) Check off the box in front of 'Solver Add-In.' (If this is not an
A245: option, use the browse command to locate the file
A246: SOLVER.XLA and pick this file.) Then click the 'OK' button.
A248: The spreadsheet cannot perform the mathematics necessary
A249: if this add-in is not accessible.
A251: Users have discovered that the SOLVER.XLA file is dependent upon
A252: the version of Excel. The SOLVER.XLA file for Excel 97 is not the
A253: same as SOLVER.XLA for Excel 2000. It is important to install the
A254: version of the solver that came with the Excel program.
A256: The calculation window does not automatically update the appropriate
A257: lot size as parameters are entered (as it does for the municipality
A258: and soil). The user must click on the 'SOLVE' button to do this. This
A259: runs an Excel macro which calculates the appropriate area.
A260: The macro responds with a command box titled 'Solver
A261: Results.' If the solver finds an acceptable solution the user should
A262: indicate in this command to "Keep Solver Solution" and then click
A263: on the "ok" button.
... 56 more rows

Sheet Municipality Codes
E2: Climate Factors
A3: Municipality Codes Data Window | E3: original | F3: revised 2008
A4: code | B4: County | C4: Municipality | F4: average | G4: drought
A5: 1 | B5: Atlantic Co. | C5: Absecon City | E5: 1.18 | F5: 1.2574 | G5: 1.21758
A6: 2 | B6: Atlantic Co. | C6: Atlantic City | E6: 1.18 | F6: 1.19074 | G6: 1.15009
A7: 3 | B7: Atlantic Co. | C7: Brigantine City | E7: 1.18 | F7: 1.20303 | G7: 1.14446
A8: 4 | B8: Atlantic Co. | C8: Buena Boro. | E8: 1.35 | F8: 1.3398 | G8: 1.12537
A9: 5 | B9: Atlantic Co. | C9: Buena Vista Twp. | E9: 1.35 | F9: 1.34474 | G9: 1.14264 | Q9: 5
A10: 6 | B10: Atlantic Co. | C10: Corbin City | E10: 1.33 | F10: 1.31766 | G10: 1.2245
A11: 7 | B11: Atlantic Co. | C11: Egg Harbor City | E11: 1.39 | F11: 1.37581 | G11: 1.27235
A12: 8 | B12: Atlantic Co. | C12: Egg Harbor Twp. | E12: 1.2 | F12: 1.2929 | G12: 1.22323
A13: 9 | B13: Atlantic Co. | C13: Estell Manor City | E13: 1.33 | F13: 1.33746 | G13: 1.23406
A14: 10 | B14: Atlantic Co. | C14: Folsom Boro. | E14: 1.36 | F14: 1.35523 | G14: 1.12591
A15: 11 | B15: Atlantic Co. | C15: Galloway Twp. | E15: 1.27 | F15: 1.31771 | G15: 1.25576
A16: 12 | B16: Atlantic Co. | C16: Hamilton Twp. | E16: 1.32 | F16: 1.3482 | G16: 1.19862
A17: 13 | B17: Atlantic Co. | C17: Hammonton Town | E17: 1.36 | F17: 1.38079 | G17: 1.18549
A18: 14 | B18: Atlantic Co. | C18: Linwood City | E18: 1.18 | F18: 1.24883 | G18: 1.18746
A19: 15 | B19: Atlantic Co. | C19: Longport Boro. | E19: 1.18 | F19: 1.20372 | G19: 1.14059
A20: 16 | B20: Atlantic Co. | C20: Margate City | E20: 1.18 | F20: 1.19728 | G20: 1.14163
A21: 17 | B21: Atlantic Co. | C21: Mullica Twp. | E21: 1.36 | F21: 1.37999 | G21: 1.21974
A22: 18 | B22: Atlantic Co. | C22: Northfield City | E22: 1.18 | F22: 1.25379 | G22: 1.19979
A23: 19 | B23: Atlantic Co. | C23: Pleasantville City | E23: 1.18 | F23: 1.24502 | G23: 1.20109
A24: 20 | B24: Atlantic Co. | C24: Port Republic City | E24: 1.4 | F24: 1.34944 | G24: 1.29631
A25: 21 | B25: Atlantic Co. | C25: Somers Point City | E25: 1.18 | F25: 1.26038 | G25: 1.18845
A26: 22 | B26: Atlantic Co. | C26: Ventnor City | E26: 1.18 | F26: 1.18863 | G26: 1.13934
A27: 23 | B27: Atlantic Co. | C27: Weymouth Twp. | E27: 1.33 | F27: 1.34404 | G27: 1.22032
A28: 24 | B28: Bergen Co. | C28: Allendale Boro. | E28: 1.59 | F28: 1.64298 | G28: 1.35689
A29: 25 | B29: Bergen Co. | C29: Alpine Boro. | E29: 1.49 | F29: 1.56821 | G29: 1.33381
A30: 26 | B30: Bergen Co. | C30: Bergenfield Boro. | E30: 1.58 | F30: 1.54896 | G30: 1.30825
A31: 27 | B31: Bergen Co. | C31: Bogota Boro. | E31: 1.39 | F31: 1.51946 | G31: 1.28699
A32: 28 | B32: Bergen Co. | C32: Carlstadt Boro. | E32: 1.4 | F32: 1.48291 | G32: 1.25043
A33: 29 | B33: Bergen Co. | C33: Cliffside Park Boro. | E33: 1.39 | F33: 1.48804 | G33: 1.31031
A34: 30 | B34: Bergen Co. | C34: Closter Boro. | E34: 1.59 | F34: 1.5739 | G34: 1.32269
A35: 31 | B35: Bergen Co. | C35: Cresskill Boro. | E35: 1.51 | F35: 1.55741 | G35: 1.32455
A36: 32 | B36: Bergen Co. | C36: Demarest Boro. | E36: 1.57 | F36: 1.56478 | G36: 1.32437
A37: 33 | B37: Bergen Co. | C37: Dumont Boro. | E37: 1.59 | F37: 1.56085 | G37: 1.31191
A38: 34 | B38: Bergen Co. | C38: East Rutherford Boro. | E38: 1.41 | F38: 1.4756 | G38: 1.23075
A39: 35 | B39: Bergen Co. | C39: Edgewater Boro. | E39: 1.39 | F39: 1.48971 | G39: 1.31837
A40: 36 | B40: Bergen Co. | C40: Elmwood Park Boro. | E40: 1.59 | F40: 1.55137 | G40: 1.26181
A41: 37 | B41: Bergen Co. | C41: Emerson Boro. | E41: 1.59 | F41: 1.5796 | G41: 1.30903
A42: 38 | B42: Bergen Co. | C42: Englewood City | E42: 1.39 | F42: 1.53065 | G42: 1.32221
A43: 39 | B43: Bergen Co. | C43: Englewood Cliffs Boro. | E43: 1.39 | F43: 1.52698 | G43: 1.33722
A44: 40 | B44: Bergen Co. | C44: Fair Lawn Boro. | E44: 1.59 | F44: 1.57297 | G44: 1.27868
A45: 41 | B45: Bergen Co. | C45: Fairview Boro. | E45: 1.39 | F45: 1.48372 | G45: 1.29668
A46: 42 | B46: Bergen Co. | C46: Fort Lee Boro. | E46: 1.39 | F46: 1.50663 | G46: 1.32438
A47: 43 | B47: Bergen Co. | C47: Franklin Lakes Boro. | E47: 1.59 | F47: 1.67189 | G47: 1.35982
A48: 44 | B48: Bergen Co. | C48: Garfield City | E48: 1.59 | F48: 1.52988 | G48: 1.25218
A49: 45 | B49: Bergen Co. | C49: Glen Rock Boro. | E49: 1.59 | F49: 1.59222 | G49: 1.2936
A50: 46 | B50: Bergen Co. | C50: Hackensack City | E50: 1.56 | F50: 1.52912 | G50: 1.28012
A51: 47 | B51: Bergen Co. | C51: Harrington Park Boro. | E51: 1.59 | F51: 1.58285 | G51: 1.31986
A52: 48 | B52: Bergen Co. | C52: Hasbrouck Heights Boro. | E52: 1.56 | F52: 1.51122 | G52: 1.25751
A53: 49 | B53: Bergen Co. | C53: Haworth Boro. | E53: 1.59 | F53: 1.57027 | G53: 1.31203
A54: 50 | B54: Bergen Co. | C54: Hillsdale Boro. | E54: 1.59 | F54: 1.5998 | G54: 1.32136
A55: 51 | B55: Bergen Co. | C55: Hohokus Boro. | E55: 1.59 | F55: 1.60918 | G55: 1.32033
A56: 52 | B56: Bergen Co. | C56: Leonia Boro. | E56: 1.39 | F56: 1.51357 | G56: 1.31243
A57: 53 | B57: Bergen Co. | C57: Little Fy Boro. | E57: 1.39 | F57: 1.49937 | G57: 1.27384
A58: 54 | B58: Bergen Co. | C58: Lodi Boro. | E58: 1.59 | F58: 1.52435 | G58: 1.26049
A59: 55 | B59: Bergen Co. | C59: Lyndhurst Twp. | E59: 1.4 | F59: 1.45288 | G59: 1.20224
A60: 56 | B60: Bergen Co. | C60: Mahwah Twp. | E60: 1.74 | F60: 1.69914 | G60: 1.42813
A61: 57 | B61: Bergen Co. | C61: Maywood Boro. | E61: 1.59 | F61: 1.53925 | G61: 1.27585
A62: 58 | B62: Bergen Co. | C62: Midland Park Boro. | E62: 1.59 | F62: 1.62303 | G62: 1.32376
A63: 59 | B63: Bergen Co. | C63: Montvale Boro. | E63: 1.59 | F63: 1.62209 | G63: 1.35002
A64: 60 | B64: Bergen Co. | C64: Moonachie Boro. | E64: 1.39 | F64: 1.49492 | G64: 1.25912
A65: 61 | B65: Bergen Co. | C65: New Milford Boro. | E65: 1.59 | F65: 1.5556 | G65: 1.30046
A66: 62 | B66: Bergen Co. | C66: North Arlington Boro. | E66: 1.39 | F66: 1.44192 | G66: 1.18763
A67: 63 | B67: Bergen Co. | C67: Northvale Boro. | E67: 1.59 | F67: 1.58982 | G67: 1.32665
A68: 64 | B68: Bergen Co. | C68: Norwood Boro. | E68: 1.59 | F68: 1.58267 | G68: 1.32548
A69: 65 | B69: Bergen Co. | C69: Oakland Boro. | E69: 1.72 | F69: 1.71442 | G69: 1.40014
A70: 66 | B70: Bergen Co. | C70: Old Tappan Boro. | E70: 1.59 | F70: 1.59535 | G70: 1.3254
A71: 67 | B71: Bergen Co. | C71: Oradell Boro. | E71: 1.59 | F71: 1.56981 | G71: 1.30196
A72: 68 | B72: Bergen Co. | C72: Palisades Park Boro. | E72: 1.39 | F72: 1.50288 | G72: 1.30658
A73: 69 | B73: Bergen Co. | C73: Paramus Boro. | E73: 1.59 | F73: 1.56885 | G73: 1.29007
A74: 70 | B74: Bergen Co. | C74: Park Ridge Boro. | E74: 1.59 | F74: 1.61258 | G74: 1.33709
A75: 71 | B75: Bergen Co. | C75: Ramsey Boro. | E75: 1.59 | F75: 1.66302 | G75: 1.3873
A76: 72 | B76: Bergen Co. | C76: Ridgefield Boro. | E76: 1.39 | F76: 1.49089 | G76: 1.28998
A77: 73 | B77: Bergen Co. | C77: Ridgefield Park Village | E77: 1.39 | F77: 1.50603 | G77: 1.29007
A78: 74 | B78: Bergen Co. | C78: Ridgewood Village | E78: 1.59 | F78: 1.6033 | G78: 1.30907
A79: 75 | B79: Bergen Co. | C79: River Edge Boro. | E79: 1.59 | F79: 1.55282 | G79: 1.292
A80: 76 | B80: Bergen Co. | C80: River Vale Twp. | E80: 1.59 | F80: 1.59651 | G80: 1.32452
A81: 77 | B81: Bergen Co. | C81: Rochelle Park Twp. | E81: 1.59 | F81: 1.54434 | G81: 1.27186
A82: 78 | B82: Bergen Co. | C82: Rockleigh Boro. | E82: 1.59 | F82: 1.58564 | G82: 1.32838
A83: 79 | B83: Bergen Co. | C83: Rutherford Boro. | E83: 1.45 | F83: 1.47887 | G83: 1.2219
A84: 80 | B84: Bergen Co. | C84: Saddle Brook Twp. | E84: 1.59 | F84: 1.54447 | G84: 1.2658
A85: 81 | B85: Bergen Co. | C85: Saddle River Boro. | E85: 1.59 | F85: 1.62384 | G85: 1.34136
A86: 82 | B86: Bergen Co. | C86: South Hackensack Twp. | E86: 1.43 | F86: 1.50855 | G86: 1.2698
A87: 83 | B87: Bergen Co. | C87: Teaneck Twp. | E87: 1.45 | F87: 1.52905 | G87: 1.30012
A88: 84 | B88: Bergen Co. | C88: Tenafly Boro. | E88: 1.41 | F88: 1.54608 | G88: 1.32849
A89: 85 | B89: Bergen Co. | C89: Teterboro Boro. | E89: 1.4 | F89: 1.50747 | G89: 1.26418
A90: 86 | B90: Bergen Co. | C90: Upper Saddle River Boro. | E90: 1.59 | F90: 1.64159 | G90: 1.37177
A91: 87 | B91: Bergen Co. | C91: Waldwick Boro. | E91: 1.59 | F91: 1.62808 | G91: 1.33644
A92: 88 | B92: Bergen Co. | C92: Wallington Boro. | E92: 1.59 | F92: 1.50951 | G92: 1.2406
A93: 89 | B93: Bergen Co. | C93: Washington Twp. | E93: 1.59 | F93: 1.59342 | G93: 1.31125
A94: 90 | B94: Bergen Co. | C94: Westwood Boro. | E94: 1.59 | F94: 1.58735 | G94: 1.3129
A95: 91 | B95: Bergen Co. | C95: Wood-Ridge Boro. | E95: 1.52 | F95: 1.61202 | G95: 1.33343
A96: 92 | B96: Bergen Co. | C96: Woodcliff Lake Boro. | E96: 1.59 | F96: 1.50386 | G96: 1.24652
A97: 93 | B97: Bergen Co. | C97: Wyckoff Twp. | E97: 1.59 | F97: 1.63929 | G97: 1.33509
A98: 94 | B98: Burlington Co. | C98: Bass River Twp. | E98: 1.45 | F98: 1.43908 | G98: 1.36621
A99: 95 | B99: Burlington Co. | C99: Beverly City | E99: 1.41 | F99: 1.45533 | G99: 1.30686
A100: 96 | B100: Burlington Co. | C100: Bordentown City | E100: 1.43 | F100: 1.47224 | G100: 1.36094
A101: 97 | B101: Burlington Co. | C101: Bordentown Twp. | E101: 1.43 | F101: 1.47104 | G101: 1.3574
A102: 98 | B102: Burlington Co. | C102: Burlington City | E102: 1.41 | F102: 1.47133 | G102: 1.34267
A103: 99 | B103: Burlington Co. | C103: Burlington Twp. | E103: 1.41 | F103: 1.46591 | G103: 1.33241
A104: 100 | B104: Burlington Co. | C104: Chesterfield Twp. | E104: 1.43 | F104: 1.46053 | G104: 1.33156
A105: 101 | B105: Burlington Co. | C105: Cinnaminson Twp. | E105: 1.41 | F105: 1.40867 | G105: 1.25024
A106: 102 | B106: Burlington Co. | C106: Delanco Twp. | E106: 1.41 | F106: 1.44312 | G106: 1.28545
A107: 103 | B107: Burlington Co. | C107: Delran Twp. | E107: 1.41 | F107: 1.42867 | G107: 1.27029
A108: 104 | B108: Burlington Co. | C108: Eastampton Twp. | E108: 1.44 | F108: 1.45062 | G108: 1.30608
A109: 105 | B109: Burlington Co. | C109: Edgewater Park Twp. | E109: 1.41 | F109: 1.45304 | G109: 1.30438
A110: 106 | B110: Burlington Co. | C110: Evesham Twp. | E110: 1.42 | F110: 1.41579 | G110: 1.31707
A111: 107 | B111: Burlington Co. | C111: Fieldsboro Boro. | E111: 1.43 | F111: 1.47573 | G111: 1.36637
A112: 108 | B112: Burlington Co. | C112: Florence Twp. | E112: 1.43 | F112: 1.47626 | G112: 1.35906
A113: 109 | B113: Burlington Co. | C113: Hainesport Twp. | E113: 1.42 | F113: 1.44226 | G113: 1.29964
A114: 110 | B114: Burlington Co. | C114: Lumberton Twp. | E114: 1.44 | F114: 1.4426 | G114: 1.30495
A115: 111 | B115: Burlington Co. | C115: Mansfield Twp. | E115: 1.44 | F115: 1.46481 | G115: 1.33718
A116: 112 | B116: Burlington Co. | C116: Maple Shade Twp. | E116: 1.41 | F116: 1.39789 | G116: 1.2719
A117: 113 | B117: Burlington Co. | C117: Medford Lakes Boro. | E117: 1.43 | F117: 1.43529 | G117: 1.32661
A118: 114 | B118: Burlington Co. | C118: Medford Twp. | E118: 1.43 | F118: 1.43142 | G118: 1.31912
A119: 115 | B119: Burlington Co. | C119: Moorestown Twp. | E119: 1.41 | F119: 1.42044 | G119: 1.2775
A120: 116 | B120: Burlington Co. | C120: Mount Holly Twp. | E120: 1.44 | F120: 1.44904 | G120: 1.30381
A121: 117 | B121: Burlington Co. | C121: Mount Laurel Twp. | E121: 1.41 | F121: 1.42526 | G121: 1.29714
A122: 118 | B122: Burlington Co. | C122: New Hanover Twp. | E122: 1.44 | F122: 1.46304 | G122: 1.3159
A123: 119 | B123: Burlington Co. | C123: North Hanover Twp. | E123: 1.44 | F123: 1.4592 | G123: 1.31611
A124: 120 | B124: Burlington Co. | C124: Palmyra Boro. | E124: 1.41 | F124: 1.39276 | G124: 1.22332
A125: 121 | B125: Burlington Co. | C125: Pemberton Boro. | E125: 1.44 | F125: 1.44902 | G125: 1.30863
A126: 122 | B126: Burlington Co. | C126: Pemberton Twp. | E126: 1.44 | F126: 1.46207 | G126: 1.32366
A127: 123 | B127: Burlington Co. | C127: Riverside Twp. | E127: 1.41 | F127: 1.43338 | G127: 1.27108
A128: 124 | B128: Burlington Co. | C128: Riverton Boro. | E128: 1.41 | F128: 1.40378 | G128: 1.23486
A129: 125 | B129: Burlington Co. | C129: Shamong Twp. | E129: 1.43 | F129: 1.43096 | G129: 1.30445
A130: 126 | B130: Burlington Co. | C130: Southampton Twp. | E130: 1.44 | F130: 1.44777 | G130: 1.32083
A131: 127 | B131: Burlington Co. | C131: Springfield Twp. | E131: 1.44 | F131: 1.4565 | G131: 1.31566
A132: 128 | B132: Burlington Co. | C132: Tabernacle Twp. | E132: 1.43 | F132: 1.45024 | G132: 1.33698
A133: 129 | B133: Burlington Co. | C133: Washington Twp. | E133: 1.41 | F133: 1.42882 | G133: 1.32213
A134: 130 | B134: Burlington Co. | C134: Westampton Twp. | E134: 1.42 | F134: 1.4517 | G134: 1.30619
A135: 131 | B135: Burlington Co. | C135: Willingboro Twp. | E135: 1.41 | F135: 1.4482 | G135: 1.29895
A136: 132 | B136: Burlington Co. | C136: Woodland Twp. | E136: 1.45 | F136: 1.47667 | G136: 1.36718
A137: 133 | B137: Burlington Co. | C137: Wrightstown Boro. | E137: 1.44 | F137: 1.45585 | G137: 1.31121
A138: 134 | B138: Camden Co. | C138: Audubon Boro. | E138: 1.36 | F138: 1.35535 | G138: 1.27979
A139: 135 | B139: Camden Co. | C139: Audubon Park Boro. | E139: 1.36 | F139: 1.34667 | G139: 1.26409
A140: 136 | B140: Camden Co. | C140: Barrington Boro. | E140: 1.36 | F140: 1.3625 | G140: 1.30026
A141: 137 | B141: Camden Co. | C141: Bellmawr Boro. | E141: 1.36 | F141: 1.3384 | G141: 1.2723
A142: 138 | B142: Camden Co. | C142: Berlin Boro. | E142: 1.42 | F142: 1.39046 | G142: 1.29749
A143: 139 | B143: Camden Co. | C143: Berlin Twp. | E143: 1.42 | F143: 1.39722 | G143: 1.30758
A144: 140 | B144: Camden Co. | C144: Brooklawn Boro. | E144: 1.36 | F144: 1.32353 | G144: 1.24556
A145: 141 | B145: Camden Co. | C145: Camden City | E145: 1.36 | F145: 1.34259 | G145: 1.21898
A146: 142 | B146: Camden Co. | C146: Chy Hill Twp. | E146: 1.39 | F146: 1.39094 | G146: 1.30081
A147: 143 | B147: Camden Co. | C147: Chesilhurst Boro. | E147: 1.39 | F147: 1.38732 | G147: 1.23357
A148: 144 | B148: Camden Co. | C148: Clementon Boro. | E148: 1.36 | F148: 1.37795 | G148: 1.30508
A149: 145 | B149: Camden Co. | C149: Collingswood Boro. | E149: 1.36 | F149: 1.35639 | G149: 1.26013
A150: 146 | B150: Camden Co. | C150: Gibbsboro Boro. | E150: 1.36 | F150: 1.39047 | G150: 1.32042
A151: 147 | B151: Camden Co. | C151: Gloucester City | E151: 1.36 | F151: 1.32925 | G151: 1.2438
A152: 148 | B152: Camden Co. | C152: Gloucester Twp. | E152: 1.36 | F152: 1.35466 | G152: 1.27858
A153: 149 | B153: Camden Co. | C153: Haddon Heights Boro. | E153: 1.36 | F153: 1.35767 | G153: 1.28979
A154: 150 | B154: Camden Co. | C154: Haddon Twp. | E154: 1.36 | F154: 1.35115 | G154: 1.26443
A155: 151 | B155: Camden Co. | C155: Haddonfield Boro. | E155: 1.36 | F155: 1.37418 | G155: 1.29686
A156: 152 | B156: Camden Co. | C156: Hi-Nella Boro. | E156: 1.36 | F156: 1.3695 | G156: 1.31224
A157: 153 | B157: Camden Co. | C157: Laurel Springs Boro. | E157: 1.36 | F157: 1.37354 | G157: 1.31134
A158: 154 | B158: Camden Co. | C158: Lawnside Boro. | E158: 1.36 | F158: 1.37241 | G158: 1.31037
A159: 155 | B159: Camden Co. | C159: Lindenwold Boro. | E159: 1.36 | F159: 1.3783 | G159: 1.31095
A160: 156 | B160: Camden Co. | C160: Magnolia Boro. | E160: 1.36 | F160: 1.36718 | G160: 1.30915
A161: 157 | B161: Camden Co. | C161: Merchantville Boro. | E161: 1.4 | F161: 1.37421 | G161: 1.2483
A162: 158 | B162: Camden Co. | C162: Mount Ephraim Boro. | E162: 1.36 | F162: 1.34302 | G162: 1.27085
A163: 159 | B163: Camden Co. | C163: Oaklyn Boro. | E163: 1.36 | F163: 1.35183 | G163: 1.26643
A164: 160 | B164: Camden Co. | C164: Pennsauken Twp. | E164: 1.39 | F164: 1.37531 | G164: 1.23538
A165: 161 | B165: Camden Co. | C165: Pine Hill Boro. | E165: 1.37 | F165: 1.37381 | G165: 1.29177
A166: 162 | B166: Camden Co. | C166: Pine Valley Boro. | E166: 1.36 | F166: 1.3779 | G166: 1.29289
A167: 163 | B167: Camden Co. | C167: Runnemede Boro. | E167: 1.36 | F167: 1.34758 | G167: 1.28923
A168: 164 | B168: Camden Co. | C168: Somerdale Boro. | E168: 1.36 | F168: 1.37142 | G168: 1.31363
A169: 165 | B169: Camden Co. | C169: Stratford Boro. | E169: 1.36 | F169: 1.37085 | G169: 1.31173
A170: 166 | B170: Camden Co. | C170: Tavistock Boro. | E170: 1.36 | F170: 1.37472 | G170: 1.30915
A171: 167 | B171: Camden Co. | C171: Voorhees Twp. | E171: 1.38 | F171: 1.39595 | G171: 1.32176
A172: 168 | B172: Camden Co. | C172: Waterford Twp. | E172: 1.41 | F172: 1.40104 | G172: 1.25151
A173: 169 | B173: Camden Co. | C173: Winslow Twp. | E173: 1.38 | F173: 1.37264 | G173: 1.20429
A174: 170 | B174: Camden Co. | C174: Woodlynne Boro. | E174: 1.36 | F174: 1.34513 | G174: 1.24443
A175: 171 | B175: Cape May Co. | C175: Avalon Boro. | E175: 1.3 | F175: 1.25538 | G175: 1.12177
A176: 172 | B176: Cape May Co. | C176: Cape May City | E176: 1.22 | F176: 1.2254 | G176: 1.11734
A177: 173 | B177: Cape May Co. | C177: Cape May Point Boro. | E177: 1.22 | F177: 1.22554 | G177: 1.12789
A178: 174 | B178: Cape May Co. | C178: Dennis Twp. | E178: 1.33 | F178: 1.3206 | G178: 1.21193
A179: 175 | B179: Cape May Co. | C179: Lower Twp. | E179: 1.22 | F179: 1.24244 | G179: 1.14277
A180: 176 | B180: Cape May Co. | C180: Middle Twp. | E180: 1.27 | F180: 1.28177 | G180: 1.17284
A181: 177 | B181: Cape May Co. | C181: North Wildwood City | E181: 1.22 | F181: 1.23727 | G181: 1.1066
A182: 178 | B182: Cape May Co. | C182: Ocean City | E182: 1.22 | F182: 1.24082 | G182: 1.15102
A183: 179 | B183: Cape May Co. | C183: Sea Isle City | E183: 1.33 | F183: 1.26187 | G183: 1.13558
A184: 180 | B184: Cape May Co. | C184: Stone Harbor Boro. | E184: 1.22 | F184: 1.24745 | G184: 1.11316
A185: 181 | B185: Cape May Co. | C185: Upper Twp. | E185: 1.33 | F185: 1.3069 | G185: 1.2043
A186: 182 | B186: Cape May Co. | C186: West Cape May Boro. | E186: 1.22 | F186: 1.22719 | G186: 1.12689
A187: 183 | B187: Cape May Co. | C187: West Wildwood Boro. | E187: 1.22 | F187: 1.24195 | G187: 1.11977
A188: 184 | B188: Cape May Co. | C188: Wildwood City | E188: 1.22 | F188: 1.23511 | G188: 1.10855
A189: 185 | B189: Cape May Co. | C189: Wildwood Crest Boro. | E189: 1.22 | F189: 1.23147 | G189: 1.10866
A190: 186 | B190: Cape May Co. | C190: Woodbine Boro. | E190: 1.33 | F190: 1.33468 | G190: 1.22435
A191: 187 | B191: Cumberland Co. | C191: Bridgeton City | E191: 1.32 | F191: 1.30595 | G191: 1.14632
A192: 188 | B192: Cumberland Co. | C192: Commercial Twp. | E192: 1.32 | F192: 1.31051 | G192: 1.23717
A193: 189 | B193: Cumberland Co. | C193: Deerfield Twp. | E193: 1.32 | F193: 1.31353 | G193: 1.14346
A194: 190 | B194: Cumberland Co. | C194: Downe Twp. | E194: 1.32 | F194: 1.29356 | G194: 1.21726
A195: 191 | B195: Cumberland Co. | C195: Fairfield Twp. | E195: 1.32 | F195: 1.29686 | G195: 1.15997
A196: 192 | B196: Cumberland Co. | C196: Greenwich Twp. | E196: 1.33 | F196: 1.30351 | G196: 1.12943
A197: 193 | B197: Cumberland Co. | C197: Hopewell Twp. | E197: 1.33 | F197: 1.30858 | G197: 1.13586
A198: 194 | B198: Cumberland Co. | C198: Lawrence Twp. | E198: 1.32 | F198: 1.29466 | G198: 1.19009
A199: 195 | B199: Cumberland Co. | C199: Maurice River Twp. | E199: 1.33 | F199: 1.33261 | G199: 1.23401
A200: 196 | B200: Cumberland Co. | C200: Millville City | E200: 1.32 | F200: 1.31575 | G200: 1.19995
A201: 197 | B201: Cumberland Co. | C201: Shiloh Boro. | E201: 1.35 | F201: 1.31396 | G201: 1.12856
... 370 more rows

Sheet Soil Codes
A3: Soil Codes Data Window | D3: Recharge Factors by Soil Code | S3: Recharge Constants by Soil Code
A4: code | B4: Soil | D4: 0 | E4: 1 | F4: 2 | G4: 3 | H4: 4 | I4: 5 | J4: 6 | K4: 7 | L4: 8 | M4: 9 | N4: 10 | O4: 11 | P4: 12 | Q4: 13 | S4: 0 | T4: 1 | U4: 2 | V4: 3 | W4: 4 | X4: 5 | Y4: 6 | Z4: 7 | AA4: 8 | AB4: 9 | AC4: 10 | AD4: 11 | AE4: 12 | AF4: 13 | AH4: wet/urban?
A5: 1 | B5: Abbottstown | D5: 14.7 | E5: 5.14 | F5: 9.85 | G5: 11.32 | H5: 12.2 | I5: 2.2 | J5: 0 | K5: 6.68 | L5: 12.15 | M5: 16.37 | N5: 10.13 | O5: 15.19 | P5: 17.75 | Q5: 15.68 | S5: 9.38 | T5: 3.28 | U5: 6.28 | V5: 7.22 | W5: 7.79 | X5: 1.41 | Y5: 0 | Z5: 4.53 | AA5: 7.65 | AB5: 11 | AC5: 6.18 | AD5: 9.85 | AE5: 12.37 | AF5: 10.32 | AH5: =IF(SUM(D5:AF5)=0,0,1) -> 1
A6: 2 | B6: Adelphia | D6: 20.73 | E6: 7.26 | F6: 13.89 | G6: 15.96 | H6: 17.21 | I6: 3.11 | J6: 0 | K6: 10.53 | L6: 18.26 | M6: 23.14 | N6: 16.4 | O6: 21.06 | P6: 22.56 | Q6: 23.43 | S6: 16.52 | T6: 5.78 | U6: 11.07 | V6: 12.72 | W6: 13.71 | X6: 2.48 | Y6: 0 | Z6: 6.8 | AA6: 14.65 | AB6: 19.64 | AC6: 13.19 | AD6: 16.83 | AE6: 18.24 | AF6: 20.35 | AH6: =IF(SUM(D6:AF6)=0,0,1) -> 1
A7: 3 | B7: Adelphia Variant | D7: 20.97 | E7: 7.34 | F7: 14.05 | G7: 16.15 | H7: 17.4 | I7: 3.15 | J7: 0 | K7: 9.97 | L7: 18.17 | M7: 23.57 | N7: 16.06 | O7: 21.35 | P7: 23.03 | Q7: 23.84 | S7: 16.96 | T7: 5.94 | U7: 11.36 | V7: 13.06 | W7: 14.08 | X7: 2.54 | Y7: 0 | Z7: 6.23 | AA7: 14.64 | AB7: 20.31 | AC7: 12.86 | AD7: 17.32 | AE7: 18.97 | AF7: 20.97 | AH7: =IF(SUM(D7:AF7)=0,0,1) -> 1
A8: 4 | B8: Adrian | D8: 0 | E8: 0 | F8: 0 | G8: 0 | H8: 0 | I8: 0 | J8: 0 | K8: 0 | L8: 0 | M8: 0 | N8: 0 | O8: 0 | P8: 0 | Q8: 0 | S8: 0 | T8: 0 | U8: 0 | V8: 0 | W8: 0 | X8: 0 | Y8: 0 | Z8: 0 | AA8: 0 | AB8: 0 | AC8: 0 | AD8: 0 | AE8: 0 | AF8: 0 | AH8: =IF(SUM(D8:AF8)=0,0,1) -> 0
A9: 5 | B9: Albia | D9: 15.96 | E9: 5.59 | F9: 10.69 | G9: 12.29 | H9: 13.25 | I9: 2.39 | J9: 0 | K9: 5.15 | L9: 12.25 | M9: 18.4 | N9: 9.3 | O9: 16.66 | P9: 20.48 | Q9: 17.36 | S9: 11.65 | T9: 4.08 | U9: 7.81 | V9: 8.97 | W9: 9.67 | X9: 1.75 | Y9: 0 | Z9: 0.94 | AA9: 7.54 | AB9: 14.72 | AC9: 4.23 | AD9: 12.52 | AE9: 17.4 | AF9: 13.38 | AH9: =IF(SUM(D9:AF9)=0,0,1) -> 1
A10: 6 | B10: Alden | D10: 0 | E10: 0 | F10: 0 | G10: 0 | H10: 0 | I10: 0 | J10: 0 | K10: 0 | L10: 0 | M10: 0 | N10: 0 | O10: 0 | P10: 0 | Q10: 0 | S10: 0 | T10: 0 | U10: 0 | V10: 0 | W10: 0 | X10: 0 | Y10: 0 | Z10: 0 | AA10: 0 | AB10: 0 | AC10: 0 | AD10: 0 | AE10: 0 | AF10: 0 | AH10: 0
A11: 7 | B11: Alloway | D11: 13.81 | E11: 4.83 | F11: 9.25 | G11: 10.63 | H11: 11.46 | I11: 2.07 | J11: 0 | K11: 6.48 | L11: 12.05 | M11: 16.65 | N11: 10.09 | O11: 14.98 | P11: 17.09 | Q11: 16.43 | S11: 7.72 | T11: 2.7 | U11: 5.18 | V11: 5.95 | W11: 6.41 | X11: 1.16 | Y11: 0 | Z11: 2.39 | AA11: 7.37 | AB11: 11.62 | AC11: 5.93 | AD11: 9.52 | AE11: 11.28 | AF11: 11.78 | AH11: 1
A12: 8 | B12: Alluvial Land | D12: 0 | E12: 0 | F12: 0 | G12: 0 | H12: 0 | I12: 0 | J12: 0 | K12: 0 | L12: 0 | M12: 0 | N12: 0 | O12: 0 | P12: 0 | Q12: 0 | S12: 0 | T12: 0 | U12: 0 | V12: 0 | W12: 0 | X12: 0 | Y12: 0 | Z12: 0 | AA12: 0 | AB12: 0 | AC12: 0 | AD12: 0 | AE12: 0 | AF12: 0 | AH12: =IF(SUM(D12:AF12)=0,0,1) -> 0
A13: 9 | B13: Alluvial Land-Wet | D13: 0 | E13: 0 | F13: 0 | G13: 0 | H13: 0 | I13: 0 | J13: 0 | K13: 0 | L13: 0 | M13: 0 | N13: 0 | O13: 0 | P13: 0 | Q13: 0 | S13: 0 | T13: 0 | U13: 0 | V13: 0 | W13: 0 | X13: 0 | Y13: 0 | Z13: 0 | AA13: 0 | AB13: 0 | AC13: 0 | AD13: 0 | AE13: 0 | AF13: 0 | AH13: =IF(SUM(D13:AF13)=0,0,1) -> 0
A14: 10 | B14: Amwell | D14: 13.3 | E14: 4.65 | F14: 8.91 | G14: 10.24 | H14: 11.04 | I14: 1.99 | J14: 0 | K14: 6.05 | L14: 11 | M14: 14.83 | N14: 9.17 | O14: 13.75 | P14: 16.11 | Q14: 14.2 | S14: 6.93 | T14: 2.43 | U14: 4.64 | V14: 5.34 | W14: 5.75 | X14: 1.04 | Y14: 0 | Z14: 3.1 | AA14: 5.53 | AB14: 8.34 | AC14: 4.33 | AD14: 7.34 | AE14: 9.55 | AF14: 7.74 | AH14: =IF(SUM(D14:AF14)=0,0,1) -> 1
A15: 11 | B15: Annandale | D15: 14.16 | E15: 4.96 | F15: 9.49 | G15: 10.91 | H15: 11.76 | I15: 2.12 | J15: 0 | K15: 5.1 | L15: 11.53 | M15: 15.89 | N15: 9.43 | O15: 14.67 | P15: 17.33 | Q15: 15.17 | S15: 8.86 | T15: 3.1 | U15: 5.93 | V15: 6.82 | W15: 7.35 | X15: 1.33 | Y15: 0 | Z15: 0.92 | AA15: 7.05 | AB15: 10.52 | AC15: 5.52 | AD15: 9.33 | AE15: 11.95 | AF15: 9.81 | AH15: =IF(SUM(D15:AF15)=0,0,1) -> 1
A16: 12 | B16: Appoquinimink-Broadkill | D16: 0 | E16: 0 | F16: 0 | G16: 0 | H16: 0 | I16: 0 | J16: 0 | K16: 0 | L16: 0 | M16: 0 | N16: 0 | O16: 0 | P16: 0 | Q16: 0 | S16: 0 | T16: 0 | U16: 0 | V16: 0 | W16: 0 | X16: 0 | Y16: 0 | Z16: 0 | AA16: 0 | AB16: 0 | AC16: 0 | AD16: 0 | AE16: 0 | AF16: 0 | AH16: 0
A17: 13 | B17: Appoquinimink-Transquaking-Mispillion | D17: 0 | E17: 0 | F17: 0 | G17: 0 | H17: 0 | I17: 0 | J17: 0 | K17: 0 | L17: 0 | M17: 0 | N17: 0 | O17: 0 | P17: 0 | Q17: 0 | S17: 0 | T17: 0 | U17: 0 | V17: 0 | W17: 0 | X17: 0 | Y17: 0 | Z17: 0 | AA17: 0 | AB17: 0 | AC17: 0 | AD17: 0 | AE17: 0 | AF17: 0 | AH17: 0
A18: 14 | B18: Aquents | D18: 0 | E18: 0 | F18: 0 | G18: 0 | H18: 0 | I18: 0 | J18: 0 | K18: 0 | L18: 0 | M18: 0 | N18: 0 | O18: 0 | P18: 0 | Q18: 0 | S18: 0 | T18: 0 | U18: 0 | V18: 0 | W18: 0 | X18: 0 | Y18: 0 | Z18: 0 | AA18: 0 | AB18: 0 | AC18: 0 | AD18: 0 | AE18: 0 | AF18: 0 | AH18: =IF(SUM(D18:AF18)=0,0,1) -> 0
A19: 15 | B19: Arendtsville | D19: 19.45 | E19: 6.81 | F19: 13.03 | G19: 14.97 | H19: 16.14 | I19: 2.92 | J19: 0 | K19: 9.76 | L19: 17.06 | M19: 21.31 | N19: 14.96 | O19: 20.2 | P19: 21.52 | Q19: 21.21 | S19: 14.46 | T19: 5.06 | U19: 9.69 | V19: 11.14 | W19: 12.01 | X19: 2.17 | Y19: 0 | Z19: 5.27 | AA19: 12.61 | AB19: 16.91 | AC19: 10.63 | AD19: 15.58 | AE19: 16.74 | AF19: 16.99 | AH19: =IF(SUM(D19:AF19)=0,0,1) -> 1
A20: 16 | B20: Arnot-Lordstown | D20: 13.32 | E20: 4.66 | F20: 8.92 | G20: 10.26 | H20: 11.05 | I20: 2 | J20: 0 | K20: 5.17 | L20: 10.63 | M20: 15.51 | N20: 8.42 | O20: 13.94 | P20: 17.38 | Q20: 14.57 | S20: 6.73 | T20: 2.36 | U20: 4.51 | V20: 5.18 | W20: 5.59 | X20: 1.01 | Y20: 0 | Z20: 0.24 | AA20: 4.26 | AB20: 9.42 | AC20: 2.11 | AD20: 7.48 | AE20: 11.77 | AF20: 8.24 | AH20: 1
A21: 17 | B21: Arnot-Lordstown rock outcrop | D21: 13.24 | E21: 4.63 | F21: 8.87 | G21: 10.19 | H21: 10.99 | I21: 1.99 | J21: 0 | K21: 4.76 | L21: 10.34 | M21: 15.24 | N21: 8.03 | O21: 13.81 | P21: 16.96 | Q21: 14.38 | S21: 7.32 | T21: 2.56 | U21: 4.89 | V21: 5.63 | W21: 6.07 | X21: 1.1 | Y21: 0 | Z21: -1.16 | AA21: 4.07 | AB21: 9.89 | AC21: 1.43 | AD21: 8.03 | AE21: 12.15 | AF21: 8.76 | AH21: 1
A22: 18 | B22: Atherton | D22: 0 | E22: 0 | F22: 0 | G22: 0 | H22: 0 | I22: 0 | J22: 0 | K22: 0 | L22: 0 | M22: 0 | N22: 0 | O22: 0 | P22: 0 | Q22: 0 | S22: 0 | T22: 0 | U22: 0 | V22: 0 | W22: 0 | X22: 0 | Y22: 0 | Z22: 0 | AA22: 0 | AB22: 0 | AC22: 0 | AD22: 0 | AE22: 0 | AF22: 0 | AH22: =IF(SUM(D22:AF22)=0,0,1) -> 0
A23: 19 | B23: Athol | D23: 20.74 | E23: 7.26 | F23: 13.89 | G23: 15.97 | H23: 17.21 | I23: 3.11 | J23: 0 | K23: 10.83 | L23: 18.62 | M23: 22.33 | N23: 16.75 | O23: 21.41 | P23: 22.66 | Q23: 22.17 | S23: 16.85 | T23: 5.9 | U23: 11.29 | V23: 12.97 | W23: 13.99 | X23: 2.53 | Y23: 0 | Z23: 7.83 | AA23: 15.51 | AB23: 18.82 | AC23: 13.98 | AD23: 17.81 | AE23: 18.91 | AF23: 18.77 | AH23: 1
A24: 20 | B24: Atsion | D24: 0 | E24: 0 | F24: 0 | G24: 0 | H24: 0 | I24: 0 | J24: 0 | K24: 0 | L24: 0 | M24: 0 | N24: 0 | O24: 0 | P24: 0 | Q24: 0 | S24: 0 | T24: 0 | U24: 0 | V24: 0 | W24: 0 | X24: 0 | Y24: 0 | Z24: 0 | AA24: 0 | AB24: 0 | AC24: 0 | AD24: 0 | AE24: 0 | AF24: 0 | AH24: 0
A25: 21 | B25: Aura | D25: 19.61 | E25: 6.86 | F25: 13.14 | G25: 15.1 | H25: 16.27 | I25: 2.94 | J25: 0 | K25: 10.74 | L25: 17.4 | M25: 21.94 | N25: 15.72 | O25: 19.91 | P25: 21.26 | Q25: 22.29 | S25: 14.6 | T25: 5.11 | U25: 9.78 | V25: 11.24 | W25: 12.12 | X25: 2.19 | Y25: 0 | Z25: 6.41 | AA25: 12.96 | AB25: 17.7 | AC25: 11.69 | AD25: 14.87 | AE25: 16.13 | AF25: 18.49 | AH25: 1
A26: 22 | B26: Barclay | D26: 16.66 | E26: 5.83 | F26: 11.16 | G26: 12.82 | H26: 13.82 | I26: 2.5 | J26: 0 | K26: 7.42 | L26: 13.78 | M26: 19.29 | N26: 11.54 | O26: 17.13 | P26: 19.55 | Q26: 19.16 | S26: 13.06 | T26: 4.57 | U26: 8.75 | V26: 10.06 | W26: 10.84 | X26: 1.96 | Y26: 0 | Z26: 5.67 | AA26: 11.21 | AB26: 16.15 | AC26: 9.73 | AD26: 13.44 | AE26: 15.44 | AF26: 16.5 | AH26: 1
A27: 23 | B27: Bartley | D27: 14.54 | E27: 5.09 | F27: 9.74 | G27: 11.19 | H27: 12.07 | I27: 2.18 | J27: 0 | K27: 5.65 | L27: 12 | M27: 16.26 | N27: 9.96 | O27: 15.05 | P27: 17.7 | Q27: 15.55 | S27: 9.48 | T27: 3.32 | U27: 6.35 | V27: 7.3 | W27: 7.86 | X27: 1.42 | Y27: 0 | Z27: 1.98 | AA27: 7.82 | AB27: 11.14 | AC27: 6.41 | AD27: 9.95 | AE27: 12.56 | AF27: 10.43 | AH27: 1
A28: 24 | B28: Bath | D28: 15.08 | E28: 5.28 | F28: 10.1 | G28: 11.61 | H28: 12.52 | I28: 2.26 | J28: 0 | K28: 5.48 | L28: 11.95 | M28: 17.2 | N28: 9.45 | O28: 15.7 | P28: 18.98 | Q28: 16.31 | S28: 10.33 | T28: 3.62 | U28: 6.92 | V28: 7.95 | W28: 8.57 | X28: 1.55 | Y28: 0 | Z28: 2.13 | AA28: 7.5 | AB28: 12.77 | AC28: 5.14 | AD28: 11.02 | AE28: 14.87 | AF28: 11.72 | AH28: 1
A29: 25 | B29: Bayboro | D29: 0 | E29: 0 | F29: 0 | G29: 0 | H29: 0 | I29: 0 | J29: 0 | K29: 0 | L29: 0 | M29: 0 | N29: 0 | O29: 0 | P29: 0 | Q29: 0 | S29: 0 | T29: 0 | U29: 0 | V29: 0 | W29: 0 | X29: 0 | Y29: 0 | Z29: 0 | AA29: 0 | AB29: 0 | AC29: 0 | AD29: 0 | AE29: 0 | AF29: 0 | AH29: 0
A30: 26 | B30: Bedington | D30: 20.3 | E30: 7.11 | F30: 13.6 | G30: 15.63 | H30: 16.85 | I30: 3.05 | J30: 0 | K30: 10.31 | L30: 18.1 | M30: 21.92 | N30: 16.14 | O30: 21.03 | P30: 22.34 | Q30: 21.7 | S30: 16.06 | T30: 5.62 | U30: 10.76 | V30: 12.36 | W30: 13.33 | X30: 2.41 | Y30: 0 | Z30: 6.64 | AA30: 14.53 | AB30: 18.06 | AC30: 12.8 | AD30: 17.12 | AE30: 18.34 | AF30: 17.93 | AH30: 1
A31: 27 | B31: Berks | D31: 14.59 | E31: 5.11 | F31: 9.77 | G31: 11.23 | H31: 12.11 | I31: 2.19 | J31: 0 | K31: 6.28 | L31: 11.99 | M31: 16.23 | N31: 9.93 | O31: 15.08 | P31: 17.56 | Q31: 15.56 | S31: 9 | T31: 3.15 | U31: 6.03 | V31: 6.93 | W31: 7.47 | X31: 1.35 | Y31: 0 | Z31: 2.85 | AA31: 7.13 | AB31: 10.62 | AC31: 5.56 | AD31: 9.48 | AE31: 11.95 | AF31: 9.95 | AH31: 1
A32: 28 | B32: Berryland | D32: 0 | E32: 0 | F32: 0 | G32: 0 | H32: 0 | I32: 0 | J32: 0 | K32: 0 | L32: 0 | M32: 0 | N32: 0 | O32: 0 | P32: 0 | Q32: 0 | S32: 0 | T32: 0 | U32: 0 | V32: 0 | W32: 0 | X32: 0 | Y32: 0 | Z32: 0 | AA32: 0 | AB32: 0 | AC32: 0 | AD32: 0 | AE32: 0 | AF32: 0 | AH32: 0
A33: 29 | B33: Berryland Variant | D33: 0 | E33: 0 | F33: 0 | G33: 0 | H33: 0 | I33: 0 | J33: 0 | K33: 0 | L33: 0 | M33: 0 | N33: 0 | O33: 0 | P33: 0 | Q33: 0 | S33: 0 | T33: 0 | U33: 0 | V33: 0 | W33: 0 | X33: 0 | Y33: 0 | Z33: 0 | AA33: 0 | AB33: 0 | AC33: 0 | AD33: 0 | AE33: 0 | AF33: 0 | AH33: 0
A34: 30 | B34: Bertie | D34: 21 | E34: 7.35 | F34: 14.07 | G34: 16.17 | H34: 17.43 | I34: 3.15 | J34: 0 | K34: 12.87 | L34: 19.32 | M34: 22.88 | N34: 18 | O34: 21.29 | P34: 22.74 | Q34: 22.95 | S34: 16.54 | T34: 5.79 | U34: 11.08 | V34: 12.74 | W34: 13.73 | X34: 2.48 | Y34: 0 | Z34: 8.72 | AA34: 15.54 | AB34: 19.05 | AC34: 14.69 | AD34: 16.81 | AE34: 18.28 | AF34: 19.43 | AH34: 1
A35: 31 | B35: Bibb | D35: 0 | E35: 0 | F35: 0 | G35: 0 | H35: 0 | I35: 0 | J35: 0 | K35: 0 | L35: 0 | M35: 0 | N35: 0 | O35: 0 | P35: 0 | Q35: 0 | S35: 0 | T35: 0 | U35: 0 | V35: 0 | W35: 0 | X35: 0 | Y35: 0 | Z35: 0 | AA35: 0 | AB35: 0 | AC35: 0 | AD35: 0 | AE35: 0 | AF35: 0 | AH35: 0
A36: 32 | B36: Biddeford | D36: 0 | E36: 0 | F36: 0 | G36: 0 | H36: 0 | I36: 0 | J36: 0 | K36: 0 | L36: 0 | M36: 0 | N36: 0 | O36: 0 | P36: 0 | Q36: 0 | S36: 0 | T36: 0 | U36: 0 | V36: 0 | W36: 0 | X36: 0 | Y36: 0 | Z36: 0 | AA36: 0 | AB36: 0 | AC36: 0 | AD36: 0 | AE36: 0 | AF36: 0 | AH36: 0
A37: 33 | B37: Bigapple | D37: 16.62 | E37: 5.82 | F37: 11.14 | G37: 12.8 | H37: 13.8 | I37: 2.49 | J37: 0 | K37: 11.22 | L37: 15.43 | M37: 18.57 | N37: 14.21 | O37: 17.27 | P37: 17.39 | Q37: 19.15 | S37: 7.77 | T37: 2.72 | U37: 5.21 | V37: 5.99 | W37: 6.45 | X37: 1.17 | Y37: 0 | Z37: 2.28 | AA37: 6.78 | AB37: 11.23 | AC37: 5.34 | AD37: 8.93 | AE37: 9.09 | AF37: 12.3 | AH37: 1
A38: 34 | B38: Bigapple-urban land | D38: 0 | E38: 0 | F38: 0 | G38: 0 | H38: 0 | I38: 0 | J38: 0 | K38: 0 | L38: 0 | M38: 0 | N38: 0 | O38: 0 | P38: 0 | Q38: 0 | S38: 0 | T38: 0 | U38: 0 | V38: 0 | W38: 0 | X38: 0 | Y38: 0 | Z38: 0 | AA38: 0 | AB38: 0 | AC38: 0 | AD38: 0 | AE38: 0 | AF38: 0 | AH38: 0
A39: 35 | B39: Birdsboro | D39: 19.41 | E39: 6.8 | F39: 13.01 | G39: 14.95 | H39: 16.11 | I39: 2.91 | J39: 0 | K39: 9.69 | L39: 17.18 | M39: 21.33 | N39: 15.21 | O39: 20.14 | P39: 21.53 | Q39: 21.22 | S39: 14.63 | T39: 5.12 | U39: 9.8 | V39: 11.26 | W39: 12.14 | X39: 2.19 | Y39: 0 | Z39: 5.86 | AA39: 13.1 | AB39: 17.07 | AC39: 11.41 | AD39: 15.64 | AE39: 16.92 | AF39: 17.14 | AH39: =IF(SUM(D39:AF39)=0,0,1) -> 1
A40: 36 | B40: Boonton | D40: 13.43 | E40: 4.7 | F40: 9 | G40: 10.34 | H40: 11.15 | I40: 2.01 | J40: 0 | K40: 6.09 | L40: 11.17 | M40: 14.93 | N40: 9.37 | O40: 13.87 | P40: 16.18 | Q40: 14.31 | S40: 7.48 | T40: 2.62 | U40: 5.01 | V40: 5.76 | W40: 6.21 | X40: 1.12 | Y40: 0 | Z40: 3.32 | AA40: 6.16 | AB40: 8.81 | AC40: 5.03 | AD40: 7.86 | AE40: 9.95 | AF40: 8.24 | AH40: =IF(SUM(D40:AF40)=0,0,1) -> 1
A41: 37 | B41: Boonton-Rock Outcrop | D41: 10.66 | E41: 3.73 | F41: 7.14 | G41: 8.2 | H41: 8.84 | I41: 1.6 | J41: 0 | K41: 4.74 | L41: 8.8 | M41: 11.82 | N41: 7.33 | O41: 10.99 | P41: 12.8 | Q41: 11.33 | S41: 3.75 | T41: 1.31 | U41: 2.5 | V41: 2.89 | W41: 3.11 | X41: 0.56 | Y41: 0 | Z41: 0.52 | AA41: 2.67 | AB41: 4.7 | AC41: 1.77 | AD41: 4.01 | AE41: 5.55 | AF41: 4.28 | AH41: =IF(SUM(D41:AF41)=0,0,1) -> 1
A42: 38 | B42: Bowmansville | D42: 0 | E42: 0 | F42: 0 | G42: 0 | H42: 0 | I42: 0 | J42: 0 | K42: 0 | L42: 0 | M42: 0 | N42: 0 | O42: 0 | P42: 0 | Q42: 0 | S42: 0 | T42: 0 | U42: 0 | V42: 0 | W42: 0 | X42: 0 | Y42: 0 | Z42: 0 | AA42: 0 | AB42: 0 | AC42: 0 | AD42: 0 | AE42: 0 | AF42: 0 | AH42: =IF(SUM(D42:AF42)=0,0,1) -> 0
A43: 39 | B43: Braceville | D43: 14.22 | E43: 4.98 | F43: 9.53 | G43: 10.95 | H43: 11.8 | I43: 2.13 | J43: 0 | K43: 6.22 | L43: 11.44 | M43: 16.01 | N43: 9.25 | O43: 14.73 | P43: 17.55 | Q43: 15.25 | S43: 8.54 | T43: 2.99 | U43: 5.72 | V43: 6.57 | W43: 7.09 | X43: 1.28 | Y43: 0 | Z43: 2.72 | AA43: 6.1 | AB43: 10.44 | AC43: 4.13 | AD43: 9.05 | AE43: 12.14 | AF43: 9.59 | AH43: =IF(SUM(D43:AF43)=0,0,1) -> 1
A44: 40 | B44: Broadkill | D44: 0 | E44: 0 | F44: 0 | G44: 0 | H44: 0 | I44: 0 | J44: 0 | K44: 0 | L44: 0 | M44: 0 | N44: 0 | O44: 0 | P44: 0 | Q44: 0 | S44: 0 | T44: 0 | U44: 0 | V44: 0 | W44: 0 | X44: 0 | Y44: 0 | Z44: 0 | AA44: 0 | AB44: 0 | AC44: 0 | AD44: 0 | AE44: 0 | AF44: 0 | AH44: 0
A45: 41 | B45: Bucks | D45: 20.29 | E45: 7.1 | F45: 13.59 | G45: 15.62 | H45: 16.84 | I45: 3.04 | J45: 0 | K45: 10.71 | L45: 17.92 | M45: 21.67 | N45: 15.94 | O45: 20.87 | P45: 22.28 | Q45: 21.37 | S45: 16.05 | T45: 5.62 | U45: 10.75 | V45: 12.36 | W45: 13.32 | X45: 2.41 | Y45: 0 | Z45: 7.76 | AA45: 14.31 | AB45: 17.58 | AC45: 12.62 | AD45: 16.84 | AE45: 18.14 | AF45: 17.3 | AH45: =IF(SUM(D45:AF45)=0,0,1) -> 1
A46: 42 | B46: Buddtown | D46: 20.34 | E46: 7.12 | F46: 13.63 | G46: 15.66 | H46: 16.89 | I46: 3.05 | J46: 0 | K46: 9.85 | L46: 17.91 | M46: 22.78 | N46: 15.67 | O46: 21.26 | P46: 22.93 | Q46: 22.7 | S46: 16.01 | T46: 5.6 | U46: 10.72 | V46: 12.33 | W46: 13.29 | X46: 2.4 | Y46: 0 | Z46: 6.67 | AA46: 14.29 | AB46: 19.08 | AC46: 12.31 | AD46: 17.26 | AE46: 18.87 | AF46: 19.19 | AH46: 1
A47: 43 | B47: Buddtown-Deptford | D47: 20.34 | E47: 7.12 | F47: 13.63 | G47: 15.66 | H47: 16.89 | I47: 3.05 | J47: 0 | K47: 9.85 | L47: 17.91 | M47: 22.78 | N47: 15.67 | O47: 21.26 | P47: 22.93 | Q47: 22.7 | S47: 16.01 | T47: 5.6 | U47: 10.72 | V47: 12.33 | W47: 13.29 | X47: 2.4 | Y47: 0 | Z47: 6.67 | AA47: 14.29 | AB47: 19.08 | AC47: 12.31 | AD47: 17.26 | AE47: 18.87 | AF47: 19.19 | AH47: 1
A48: 44 | B48: Buddtown-urban land | D48: 0 | E48: 0 | F48: 0 | G48: 0 | H48: 0 | I48: 0 | J48: 0 | K48: 0 | L48: 0 | M48: 0 | N48: 0 | O48: 0 | P48: 0 | Q48: 0 | S48: 0 | T48: 0 | U48: 0 | V48: 0 | W48: 0 | X48: 0 | Y48: 0 | Z48: 0 | AA48: 0 | AB48: 0 | AC48: 0 | AD48: 0 | AE48: 0 | AF48: 0 | AH48: 0
A49: 45 | B49: Califon | D49: 14.2 | E49: 4.97 | F49: 9.52 | G49: 10.94 | H49: 11.79 | I49: 2.13 | J49: 0 | K49: 5.55 | L49: 11.65 | M49: 15.91 | N49: 9.61 | O49: 14.7 | P49: 17.32 | Q49: 15.2 | S49: 8.87 | T49: 3.11 | U49: 5.94 | V49: 6.83 | W49: 7.36 | X49: 1.33 | Y49: 0 | Z49: 1.99 | AA49: 7.17 | AB49: 10.5 | AC49: 5.72 | AD49: 9.34 | AE49: 11.9 | AF49: 9.8 | AH49: =IF(SUM(D49:AF49)=0,0,1) -> 1
A50: 46 | B50: Carlisle | D50: 0 | E50: 0 | F50: 0 | G50: 0 | H50: 0 | I50: 0 | J50: 0 | K50: 0 | L50: 0 | M50: 0 | N50: 0 | O50: 0 | P50: 0 | Q50: 0 | S50: 0 | T50: 0 | U50: 0 | V50: 0 | W50: 0 | X50: 0 | Y50: 0 | Z50: 0 | AA50: 0 | AB50: 0 | AC50: 0 | AD50: 0 | AE50: 0 | AF50: 0 | AH50: =IF(SUM(D50:AF50)=0,0,1) -> 0
A51: 47 | B51: Catden | D51: 0 | E51: 0 | F51: 0 | G51: 0 | H51: 0 | I51: 0 | J51: 0 | K51: 0 | L51: 0 | M51: 0 | N51: 0 | O51: 0 | P51: 0 | Q51: 0 | S51: 0 | T51: 0 | U51: 0 | V51: 0 | W51: 0 | X51: 0 | Y51: 0 | Z51: 0 | AA51: 0 | AB51: 0 | AC51: 0 | AD51: 0 | AE51: 0 | AF51: 0 | AH51: 0
A52: 48 | B52: Catden-Natchaug | D52: 0 | E52: 0 | F52: 0 | G52: 0 | H52: 0 | I52: 0 | J52: 0 | K52: 0 | L52: 0 | M52: 0 | N52: 0 | O52: 0 | P52: 0 | Q52: 0 | S52: 0 | T52: 0 | U52: 0 | V52: 0 | W52: 0 | X52: 0 | Y52: 0 | Z52: 0 | AA52: 0 | AB52: 0 | AC52: 0 | AD52: 0 | AE52: 0 | AF52: 0 | AH52: 0
A53: 49 | B53: Chalfont | D53: 13.83 | E53: 4.84 | F53: 9.27 | G53: 10.65 | H53: 11.48 | I53: 2.07 | J53: 0 | K53: 6.3 | L53: 11.42 | M53: 15.36 | N53: 9.5 | O53: 14.28 | P53: 16.63 | Q53: 14.73 | S53: 7.9 | T53: 2.77 | U53: 5.29 | V53: 6.08 | W53: 6.56 | X53: 1.19 | Y53: 0 | Z53: 3.71 | AA53: 6.34 | AB53: 9.31 | AC53: 5.03 | AD53: 8.3 | AE53: 10.5 | AF53: 8.71 | AH53: =IF(SUM(D53:AF53)=0,0,1) -> 1
A54: 50 | B54: Charlton-rock outcrop | D54: 10.77 | E54: 3.77 | F54: 7.22 | G54: 8.3 | H54: 8.94 | I54: 1.62 | J54: 0 | K54: 3.55 | L54: 8.3 | M54: 12.41 | N54: 6.33 | O54: 11.24 | P54: 13.81 | Q54: 11.71 | S54: 5.68 | T54: 1.99 | U54: 3.79 | V54: 4.38 | W54: 4.72 | X54: 0.85 | Y54: 0 | Z54: -1.63 | AA54: 2.94 | AB54: 7.75 | AC54: 0.72 | AD54: 6.26 | AE54: 9.55 | AF54: 6.85 | AH54: 1
A55: 51 | B55: Chatfield-Hollis-Rock outcrop | D55: 10.77 | E55: 3.77 | F55: 7.22 | G55: 8.3 | H55: 8.94 | I55: 1.62 | J55: 0 | K55: 3.55 | L55: 8.3 | M55: 12.41 | N55: 6.33 | O55: 11.24 | P55: 13.81 | Q55: 11.71 | S55: 5.68 | T55: 1.99 | U55: 3.79 | V55: 4.38 | W55: 4.72 | X55: 0.85 | Y55: 0 | Z55: -1.63 | AA55: 2.94 | AB55: 7.75 | AC55: 0.72 | AD55: 6.26 | AE55: 9.55 | AF55: 6.85 | AH55: 1
A56: 52 | B56: Chenango | D56: 22.62 | E56: 7.92 | F56: 15.16 | G56: 17.42 | H56: 18.78 | I56: 3.39 | J56: 0 | K56: 14.23 | L56: 20.67 | M56: 23.16 | N56: 19.19 | O56: 22.89 | P56: 23.02 | Q56: 23.22 | S56: 18.61 | T56: 6.51 | U56: 12.47 | V56: 14.33 | W56: 15.45 | X56: 2.79 | Y56: 0 | Z56: 8.87 | AA56: 16.38 | AB56: 19.43 | AC56: 14.61 | AD56: 19.02 | AE56: 19.18 | AF56: 19.55 | AH56: =IF(SUM(D56:AF56)=0,0,1) -> 1
A57: 53 | B57: Chicone | D57: 0 | E57: 0 | F57: 0 | G57: 0 | H57: 0 | I57: 0 | J57: 0 | K57: 0 | L57: 0 | M57: 0 | N57: 0 | O57: 0 | P57: 0 | Q57: 0 | S57: 0 | T57: 0 | U57: 0 | V57: 0 | W57: 0 | X57: 0 | Y57: 0 | Z57: 0 | AA57: 0 | AB57: 0 | AC57: 0 | AD57: 0 | AE57: 0 | AF57: 0 | AH57: 0
A58: 54 | B58: Chillum | D58: 22.64 | E58: 7.93 | F58: 15.17 | G58: 17.44 | H58: 18.79 | I58: 3.4 | J58: 0 | K58: 11.61 | L58: 19.96 | M58: 24.92 | N58: 17.61 | O58: 23.49 | P58: 25.05 | Q58: 24.86 | S58: 19.27 | T58: 6.74 | U58: 12.91 | V58: 14.83 | W58: 15.99 | X58: 2.89 | Y58: 0 | Z58: 9.43 | AA58: 17.29 | AB58: 22.03 | AC58: 15.24 | AD58: 20.37 | AE58: 21.8 | AF58: 22.14 | AH58: =IF(SUM(D58:AF58)=0,0,1) -> 1
A59: 55 | B59: Chippewa | D59: 0 | E59: 0 | F59: 0 | G59: 0 | H59: 0 | I59: 0 | J59: 0 | K59: 0 | L59: 0 | M59: 0 | N59: 0 | O59: 0 | P59: 0 | Q59: 0 | S59: 0 | T59: 0 | U59: 0 | V59: 0 | W59: 0 | X59: 0 | Y59: 0 | Z59: 0 | AA59: 0 | AB59: 0 | AC59: 0 | AD59: 0 | AE59: 0 | AF59: 0 | AH59: 0
A60: 56 | B60: Clay Pits | D60: 13.22 | E60: 4.63 | F60: 8.86 | G60: 10.18 | H60: 10.97 | I60: 1.98 | J60: 0 | K60: 6.61 | L60: 11.49 | M60: 15.88 | N60: 9.67 | O60: 14.22 | P60: 16.21 | Q60: 15.71 | S60: 6.69 | T60: 2.34 | U60: 4.48 | V60: 5.15 | W60: 5.55 | X60: 1 | Y60: 0 | Z60: 2.36 | AA60: 6.33 | AB60: 10.38 | AC60: 5.05 | AD60: 8.26 | AE60: 9.9 | AF60: 10.62 | AH60: 1
A61: 57 | B61: Clayey Land | D61: 14.81 | E61: 5.18 | F61: 9.92 | G61: 11.4 | H61: 12.29 | I61: 2.22 | J61: 0 | K61: 8.55 | L61: 12.97 | M61: 17.41 | N61: 11.13 | O61: 15.72 | P61: 17.78 | Q61: 17.23 | S61: 8.84 | T61: 3.09 | U61: 5.92 | V61: 6.81 | W61: 7.34 | X61: 1.33 | Y61: 0 | Z61: 5.03 | AA61: 8.36 | AB61: 12.45 | AC61: 7.07 | AD61: 10.3 | AE61: 12 | AF61: 12.68 | AH61: 1
A62: 58 | B62: Coastal Beach | D62: 19.61 | E62: 6.87 | F62: 13.14 | G62: 15.1 | H62: 16.28 | I62: 2.94 | J62: 0 | K62: 15.08 | L62: 18.66 | M62: 20.11 | N62: 17.97 | O62: 19.7 | P62: 19.75 | Q62: 20.29 | S62: 11.25 | T62: 3.94 | U62: 7.54 | V62: 8.67 | W62: 9.34 | X62: 1.69 | Y62: 0 | Z62: 7.25 | AA62: 10.53 | AB62: 12.53 | AC62: 9.86 | AD62: 11.55 | AE62: 11.6 | AF62: 13 | AH62: 1
A63: 59 | B63: Cokesbury | D63: 0 | E63: 0 | F63: 0 | G63: 0 | H63: 0 | I63: 0 | J63: 0 | K63: 0 | L63: 0 | M63: 0 | N63: 0 | O63: 0 | P63: 0 | Q63: 0 | S63: 0 | T63: 0 | U63: 0 | V63: 0 | W63: 0 | X63: 0 | Y63: 0 | Z63: 0 | AA63: 0 | AB63: 0 | AC63: 0 | AD63: 0 | AE63: 0 | AF63: 0 | AH63: 0
A64: 60 | B64: Colemantown | D64: 0 | E64: 0 | F64: 0 | G64: 0 | H64: 0 | I64: 0 | J64: 0 | K64: 0 | L64: 0 | M64: 0 | N64: 0 | O64: 0 | P64: 0 | Q64: 0 | S64: 0 | T64: 0 | U64: 0 | V64: 0 | W64: 0 | X64: 0 | Y64: 0 | Z64: 0 | AA64: 0 | AB64: 0 | AC64: 0 | AD64: 0 | AE64: 0 | AF64: 0 | AH64: 0
A65: 61 | B65: Collington | D65: 20.38 | E65: 7.13 | F65: 13.65 | G65: 15.69 | H65: 16.91 | I65: 3.06 | J65: 0 | K65: 10.19 | L65: 17.91 | M65: 22.76 | N65: 16.04 | O65: 20.71 | P65: 22.21 | Q65: 23.04 | S65: 15.99 | T65: 5.6 | U65: 10.71 | V65: 12.31 | W65: 13.27 | X65: 2.4 | Y65: 0 | Z65: 6.15 | AA65: 14.09 | AB65: 19.07 | AC65: 12.62 | AD65: 16.3 | AE65: 17.71 | AF65: 19.75 | AH65: 1
A66: 62 | B66: Colonie | D66: 26.87 | E66: 9.41 | F66: 18.01 | G66: 20.69 | H66: 22.31 | I66: 4.03 | J66: 0 | K66: 14.97 | L66: 23.95 | M66: 27.81 | N66: 21.68 | O66: 27.35 | P66: 27.62 | Q66: 27.91 | S66: 26.21 | T66: 9.17 | U66: 17.56 | V66: 20.18 | W66: 21.75 | X66: 3.93 | Y66: 0 | Z66: 9.83 | AA66: 22.21 | AB66: 27.77 | AC66: 19.01 | AD66: 27 | AE66: 27.4 | AF66: 27.96 | AH66: 1
A67: 63 | B67: Colts Neck | D67: 21.43 | E67: 7.5 | F67: 14.36 | G67: 16.5 | H67: 17.79 | I67: 3.21 | J67: 0 | K67: 11.18 | L67: 18.76 | M67: 24.17 | N67: 16.77 | O67: 21.75 | P67: 23.22 | Q67: 24.64 | S67: 17.45 | T67: 6.11 | U67: 11.69 | V67: 13.43 | W67: 14.48 | X67: 2.62 | Y67: 0 | Z67: 7.55 | AA67: 15.33 | AB67: 21.04 | AC67: 13.72 | AD67: 17.73 | AE67: 19.1 | AF67: 22.01 | AH67: 1
A68: 64 | B68: Croton | D68: 0 | E68: 0 | F68: 0 | G68: 0 | H68: 0 | I68: 0 | J68: 0 | K68: 0 | L68: 0 | M68: 0 | N68: 0 | O68: 0 | P68: 0 | Q68: 0 | S68: 0 | T68: 0 | U68: 0 | V68: 0 | W68: 0 | X68: 0 | Y68: 0 | Z68: 0 | AA68: 0 | AB68: 0 | AC68: 0 | AD68: 0 | AE68: 0 | AF68: 0 | AH68: 0
A69: 65 | B69: Cut And Fill Land* | D69: 0 | E69: 0 | F69: 0 | G69: 0 | H69: 0 | I69: 0 | J69: 0 | K69: 0 | L69: 0 | M69: 0 | N69: 0 | O69: 0 | P69: 0 | Q69: 0 | S69: 0 | T69: 0 | U69: 0 | V69: 0 | W69: 0 | X69: 0 | Y69: 0 | Z69: 0 | AA69: 0 | AB69: 0 | AC69: 0 | AD69: 0 | AE69: 0 | AF69: 0 | AH69: 0
A70: 66 | B70: Delaware | D70: 17.67 | E70: 6.19 | F70: 11.84 | G70: 13.61 | H70: 14.67 | I70: 2.65 | J70: 0 | K70: 8.43 | L70: 15.21 | M70: 19.3 | N70: 13.37 | O70: 17.97 | P70: 19.36 | Q70: 19.27 | S70: 11.71 | T70: 4.1 | U70: 7.84 | V70: 9.02 | W70: 9.72 | X70: 1.76 | Y70: 0 | Z70: 2.8 | AA70: 9.59 | AB70: 13.73 | AC70: 7.99 | AD70: 11.99 | AE70: 13.37 | AF70: 13.92 | AH70: 1
A71: 67 | B71: Dennisville | D71: 16.97 | E71: 5.94 | F71: 11.37 | G71: 13.07 | H71: 14.08 | I71: 2.55 | J71: 0 | K71: 10.16 | L71: 15.46 | M71: 20.15 | N71: 13.84 | O71: 17.9 | P71: 19.29 | Q71: 20.58 | S71: 10.08 | T71: 3.53 | U71: 6.76 | V71: 7.76 | W71: 8.37 | X71: 1.51 | Y71: 0 | Z71: 4.96 | AA71: 9.41 | AB71: 14.78 | AC71: 8.01 | AD71: 11.51 | AE71: 12.89 | AF71: 15.73 | AH71: 1
A72: 68 | B72: Donlonton | D72: 16.69 | E72: 5.84 | F72: 11.18 | G72: 12.85 | H72: 13.85 | I72: 2.5 | J72: 0 | K72: 6.77 | L72: 14.38 | M72: 20.07 | N72: 11.73 | O72: 18.35 | P72: 20.84 | Q72: 19.69 | S72: 13.17 | T72: 4.61 | U72: 8.82 | V72: 10.14 | W72: 10.93 | X72: 1.98 | Y72: 0 | Z72: 4.17 | AA72: 12.43 | AB72: 17.57 | AC72: 10.27 | AD72: 15.67 | AE72: 17.69 | AF72: 17.5 | AH72: =IF(SUM(D72:AF72)=0,0,1) -> 1
A73: 69 | B73: Downer | D73: 16.97 | E73: 5.94 | F73: 11.37 | G73: 13.07 | H73: 14.08 | I73: 2.55 | J73: 0 | K73: 10.16 | L73: 15.46 | M73: 20.15 | N73: 13.84 | O73: 17.9 | P73: 19.29 | Q73: 20.58 | S73: 10.08 | T73: 3.53 | U73: 6.76 | V73: 7.76 | W73: 8.37 | X73: 1.51 | Y73: 0 | Z73: 4.96 | AA73: 9.41 | AB73: 14.78 | AC73: 8.01 | AD73: 11.51 | AE73: 12.89 | AF73: 15.73 | AH73: 1
A74: 70 | B74: Doylestown | D74: 0 | E74: 0 | F74: 0 | G74: 0 | H74: 0 | I74: 0 | J74: 0 | K74: 0 | L74: 0 | M74: 0 | N74: 0 | O74: 0 | P74: 0 | Q74: 0 | S74: 0 | T74: 0 | U74: 0 | V74: 0 | W74: 0 | X74: 0 | Y74: 0 | Z74: 0 | AA74: 0 | AB74: 0 | AC74: 0 | AD74: 0 | AE74: 0 | AF74: 0 | AH74: 0
A75: 71 | B75: Dragston | D75: 15.8 | E75: 5.53 | F75: 10.59 | G75: 12.17 | H75: 13.12 | I75: 2.37 | J75: 0 | K75: 8.83 | L75: 13.62 | M75: 18.12 | N75: 11.95 | O75: 16.13 | P75: 17.83 | Q75: 18.27 | S75: 11.14 | T75: 3.9 | U75: 7.46 | V75: 8.58 | W75: 9.24 | X75: 1.67 | Y75: 0 | Z75: 6.29 | AA75: 10.01 | AB75: 14.06 | AC75: 9.12 | AD75: 11.35 | AE75: 12.52 | AF75: 14.83 | AH75: 1
A76: 72 | B76: Duffield | D76: 20.1 | E76: 7.03 | F76: 13.47 | G76: 15.48 | H76: 16.68 | I76: 3.01 | J76: 0 | K76: 9.46 | L76: 17.95 | M76: 21.96 | N76: 15.93 | O76: 20.99 | P76: 22.31 | Q76: 21.78 | S76: 15.68 | T76: 5.49 | U76: 10.51 | V76: 12.08 | W76: 13.02 | X76: 2.35 | Y76: 0 | Z76: 4.65 | AA76: 14.25 | AB76: 18.14 | AC76: 12.39 | AD76: 17.05 | AE76: 18.28 | AF76: 18.07 | AH76: 1
A77: 73 | B77: Dune Land | D77: 18.22 | E77: 6.38 | F77: 12.21 | G77: 14.03 | H77: 15.12 | I77: 2.73 | J77: 0 | K77: 13.96 | L77: 17.26 | M77: 18.87 | N77: 16.53 | O77: 18.34 | P77: 18.42 | Q77: 19.09 | S77: 9.62 | T77: 3.37 | U77: 6.44 | V77: 7.41 | W77: 7.98 | X77: 1.44 | Y77: 0 | Z77: 5.9 | AA77: 8.87 | AB77: 11.08 | AC77: 8.14 | AD77: 9.96 | AE77: 10.04 | AF77: 11.6 | AH77: 1
A78: 74 | B78: Dunellen | D78: 18.67 | E78: 6.53 | F78: 12.51 | G78: 14.38 | H78: 15.5 | I78: 2.8 | J78: 0 | K78: 8.88 | L78: 16.16 | M78: 20.46 | N78: 14.29 | O78: 18.98 | P78: 20.4 | Q78: 20.49 | S78: 13.3 | T78: 4.65 | U78: 8.91 | V78: 10.24 | W78: 11.04 | X78: 1.99 | Y78: 0 | Z78: 3.83 | AA78: 11.25 | AB78: 15.55 | AC78: 9.71 | AD78: 13.58 | AE78: 14.91 | AF78: 15.87 | AH78: 1
A79: 75 | B79: Dunellen Variant | D79: 18.78 | E79: 6.57 | F79: 12.58 | G79: 14.46 | H79: 15.58 | I79: 2.82 | J79: 0 | K79: 8.99 | L79: 16.28 | M79: 20.61 | N79: 14.41 | O79: 19.07 | P79: 20.42 | Q79: 20.71 | S79: 13.42 | T79: 4.7 | U79: 8.99 | V79: 10.33 | W79: 11.14 | X79: 2.01 | Y79: 0 | Z79: 3.91 | AA79: 11.34 | AB79: 15.76 | AC79: 9.78 | AD79: 13.68 | AE79: 14.93 | AF79: 16.18 | AH79: 1
A80: 76 | B80: Edneyville | D80: 18.9 | E80: 6.61 | F80: 12.66 | G80: 14.55 | H80: 15.69 | I80: 2.83 | J80: 0 | K80: 8.41 | L80: 16.1 | M80: 20.34 | N80: 14.01 | O80: 19.24 | P80: 20.86 | Q80: 20.08 | S80: 13.8 | T80: 4.83 | U80: 9.25 | V80: 10.63 | W80: 11.46 | X80: 2.07 | Y80: 0 | Z80: 2.94 | AA80: 11.24 | AB80: 15.42 | AC80: 9.31 | AD80: 14.14 | AE80: 15.81 | AF80: 15.23 | AH80: 1
A81: 77 | B81: Edneyville Material | D81: 19.8 | E81: 6.93 | F81: 13.27 | G81: 15.25 | H81: 16.44 | I81: 2.97 | J81: 0 | K81: 9.1 | L81: 17.2 | M81: 21.17 | N81: 15.25 | O81: 20.12 | P81: 21.56 | Q81: 20.98 | S81: 15.14 | T81: 5.3 | U81: 10.15 | V81: 11.66 | W81: 12.57 | X81: 2.27 | Y81: 0 | Z81: 3.71 | AA81: 12.84 | AB81: 16.71 | AC81: 11.09 | AD81: 15.45 | AE81: 16.92 | AF81: 16.6 | AH81: 1
A82: 78 | B82: Edneyville-Parker-Rock Outcrop | D82: 18.27 | E82: 6.39 | F82: 12.24 | G82: 14.07 | H82: 15.16 | I82: 2.74 | J82: 0 | K82: 8.3 | L82: 15.51 | M82: 19.59 | N82: 13.45 | O82: 18.6 | P82: 20.15 | Q82: 19.31 | S82: 14.58 | T82: 5.1 | U82: 9.76 | V82: 11.23 | W82: 12.11 | X82: 2.19 | Y82: 0 | Z82: 3.25 | AA82: 11.62 | AB82: 16.23 | AC82: 9.38 | AD82: 14.97 | AE82: 16.84 | AF82: 15.93 | AH82: 1
A83: 79 | B83: Elkton | D83: 0 | E83: 0 | F83: 0 | G83: 0 | H83: 0 | I83: 0 | J83: 0 | K83: 0 | L83: 0 | M83: 0 | N83: 0 | O83: 0 | P83: 0 | Q83: 0 | S83: 0 | T83: 0 | U83: 0 | V83: 0 | W83: 0 | X83: 0 | Y83: 0 | Z83: 0 | AA83: 0 | AB83: 0 | AC83: 0 | AD83: 0 | AE83: 0 | AF83: 0 | AH83: 0
A84: 80 | B84: Ellington (Middlesex) | D84: 17.63 | E84: 6.17 | F84: 11.81 | G84: 13.58 | H84: 14.63 | I84: 2.64 | J84: 0 | K84: 7.23 | L84: 15.32 | M84: 18.84 | N84: 13.55 | O84: 17.97 | P84: 19.52 | Q84: 18.5 | S84: 12.01 | T84: 4.2 | U84: 8.04 | V84: 9.25 | W84: 9.97 | X84: 1.8 | Y84: 0 | Z84: 1.77 | AA84: 10.28 | AB84: 13.16 | AC84: 8.92 | AD84: 12.33 | AE84: 13.82 | AF84: 12.83 | AH84: 1
A85: 81 | B85: Ellington (Morris) | D85: 19.68 | E85: 6.89 | F85: 13.18 | G85: 15.15 | H85: 16.33 | I85: 2.95 | J85: 0 | K85: 9.28 | L85: 17.1 | M85: 21.24 | N85: 15.19 | O85: 19.97 | P85: 21.28 | Q85: 21.23 | S85: 15.21 | T85: 5.32 | U85: 10.19 | V85: 11.71 | W85: 12.62 | X85: 2.28 | Y85: 0 | Z85: 4.76 | AA85: 13.1 | AB85: 17.08 | AC85: 11.53 | AD85: 15.46 | AE85: 16.58 | AF85: 17.33 | AH85: 1
A86: 82 | B86: Evesboro | D86: 18.05 | E86: 6.32 | F86: 12.1 | G86: 13.9 | H86: 14.98 | I86: 2.71 | J86: 0 | K86: 13.09 | L86: 17.31 | M86: 21.32 | N86: 16.07 | O86: 19.17 | P86: 19.28 | Q86: 22.33 | S86: 10.39 | T86: 3.64 | U86: 6.96 | V86: 8 | W86: 8.62 | X86: 1.56 | Y86: 0 | Z86: 5.47 | AA86: 10.13 | AB86: 15.77 | AC86: 8.7 | AD86: 12.28 | AE86: 12.4 | AF86: 17.45 | AH86: 1
A87: 83 | B87: Fallsington | D87: 0 | E87: 0 | F87: 0 | G87: 0 | H87: 0 | I87: 0 | J87: 0 | K87: 0 | L87: 0 | M87: 0 | N87: 0 | O87: 0 | P87: 0 | Q87: 0 | S87: 0 | T87: 0 | U87: 0 | V87: 0 | W87: 0 | X87: 0 | Y87: 0 | Z87: 0 | AA87: 0 | AB87: 0 | AC87: 0 | AD87: 0 | AE87: 0 | AF87: 0 | AH87: 0
A88: 84 | B88: Fallsington Variant | D88: 0 | E88: 0 | F88: 0 | G88: 0 | H88: 0 | I88: 0 | J88: 0 | K88: 0 | L88: 0 | M88: 0 | N88: 0 | O88: 0 | P88: 0 | Q88: 0 | S88: 0 | T88: 0 | U88: 0 | V88: 0 | W88: 0 | X88: 0 | Y88: 0 | Z88: 0 | AA88: 0 | AB88: 0 | AC88: 0 | AD88: 0 | AE88: 0 | AF88: 0 | AH88: 0
A89: 85 | B89: Farmington-rock outcrop | D89: 17.81 | E89: 6.23 | F89: 11.95 | G89: 13.71 | H89: 14.78 | I89: 2.67 | J89: 0 | K89: 8.05 | L89: 14.78 | M89: 19.29 | N89: 12.48 | O89: 18.22 | P89: 20.15 | Q89: 18.86 | S89: 13.4 | T89: 4.69 | U89: 8.96 | V89: 10.32 | W89: 11.12 | X89: 2.01 | Y89: 0 | Z89: 1.89 | AA89: 9.66 | AB89: 15.4 | AC89: 6.8 | AD89: 13.95 | AE89: 16.58 | AF89: 14.81 | AH89: 1
A90: 86 | B90: Farmington-Wassaic-rock outcrop | D90: 17.81 | E90: 6.23 | F90: 11.95 | G90: 13.71 | H90: 14.78 | I90: 2.67 | J90: 0 | K90: 8.05 | L90: 14.78 | M90: 19.29 | N90: 12.48 | O90: 18.22 | P90: 20.15 | Q90: 18.86 | S90: 13.4 | T90: 4.69 | U90: 8.96 | V90: 10.32 | W90: 11.12 | X90: 2.01 | Y90: 0 | Z90: 1.89 | AA90: 9.66 | AB90: 15.4 | AC90: 6.8 | AD90: 13.95 | AE90: 16.58 | AF90: 14.81 | AH90: 1
A91: 87 | B91: Fill Land * | D91: 0 | E91: 0 | F91: 0 | G91: 0 | H91: 0 | I91: 0 | J91: 0 | K91: 0 | L91: 0 | M91: 0 | N91: 0 | O91: 0 | P91: 0 | Q91: 0 | S91: 0 | T91: 0 | U91: 0 | V91: 0 | W91: 0 | X91: 0 | Y91: 0 | Z91: 0 | AA91: 0 | AB91: 0 | AC91: 0 | AD91: 0 | AE91: 0 | AF91: 0 | AH91: =IF(SUM(D91:AF91)=0,0,1) -> 0
A92: 88 | B92: Fluvaquents | D92: 0 | E92: 0 | F92: 0 | G92: 0 | H92: 0 | I92: 0 | J92: 0 | K92: 0 | L92: 0 | M92: 0 | N92: 0 | O92: 0 | P92: 0 | Q92: 0 | S92: 0 | T92: 0 | U92: 0 | V92: 0 | W92: 0 | X92: 0 | Y92: 0 | Z92: 0 | AA92: 0 | AB92: 0 | AC92: 0 | AD92: 0 | AE92: 0 | AF92: 0 | AH92: 0
A93: 89 | B93: Fort Mott | D93: 18.89 | E93: 6.61 | F93: 12.66 | G93: 14.55 | H93: 15.68 | I93: 2.83 | J93: 0 | K93: 13.47 | L93: 18.56 | M93: 22.43 | N93: 17.11 | O93: 20.74 | P93: 20.85 | Q93: 23.22 | S93: 11.8 | T93: 4.13 | U93: 7.91 | V93: 9.09 | W93: 9.79 | X93: 1.77 | Y93: 0 | Z93: 6.08 | AA93: 12.26 | AB93: 17.59 | AC93: 10.52 | AD93: 14.88 | AE93: 14.99 | AF93: 18.89 | AH93: 1
A94: 90 | B94: Fredon | D94: 0 | E94: 0 | F94: 0 | G94: 0 | H94: 0 | I94: 0 | J94: 0 | K94: 0 | L94: 0 | M94: 0 | N94: 0 | O94: 0 | P94: 0 | Q94: 0 | S94: 0 | T94: 0 | U94: 0 | V94: 0 | W94: 0 | X94: 0 | Y94: 0 | Z94: 0 | AA94: 0 | AB94: 0 | AC94: 0 | AD94: 0 | AE94: 0 | AF94: 0 | AH94: 0
A95: 91 | B95: Freehold | D95: 20.43 | E95: 7.15 | F95: 13.69 | G95: 15.73 | H95: 16.95 | I95: 3.06 | J95: 0 | K95: 10.11 | L95: 17.96 | M95: 22.88 | N95: 16.09 | O95: 20.76 | P95: 22.26 | Q95: 23.19 | S95: 16.07 | T95: 5.62 | U95: 10.77 | V95: 12.37 | W95: 13.34 | X95: 2.41 | Y95: 0 | Z95: 5.9 | AA95: 14.18 | AB95: 19.27 | AC95: 12.71 | AD95: 16.38 | AE95: 17.79 | AF95: 20 | AH95: 1
A96: 92 | B96: Fresh Water Marsh | D96: 0 | E96: 0 | F96: 0 | G96: 0 | H96: 0 | I96: 0 | J96: 0 | K96: 0 | L96: 0 | M96: 0 | N96: 0 | O96: 0 | P96: 0 | Q96: 0 | S96: 0 | T96: 0 | U96: 0 | V96: 0 | W96: 0 | X96: 0 | Y96: 0 | Z96: 0 | AA96: 0 | AB96: 0 | AC96: 0 | AD96: 0 | AE96: 0 | AF96: 0 | AH96: 0
A97: 93 | B97: Fripp | D97: 18.37 | E97: 6.43 | F97: 12.31 | G97: 14.14 | H97: 15.25 | I97: 2.76 | J97: 0 | K97: 13.91 | L97: 17.3 | M97: 19.19 | N97: 16.47 | O97: 18.55 | P97: 18.63 | Q97: 19.48 | S97: 10.02 | T97: 4.18 | U97: 7.38 | V97: 8.26 | W97: 8.75 | X97: 1.86 | Y97: 0 | Z97: 7.15 | AA97: 9.37 | AB97: 10.25 | AC97: 8.96 | AD97: 9.93 | AE97: 9.97 | AF97: 10.36 | AH97: 1
A98: 94 | B98: Galestown | D98: 18.94 | E98: 6.63 | F98: 12.69 | G98: 14.58 | H98: 15.72 | I98: 2.84 | J98: 0 | K98: 13.48 | L98: 18.05 | M98: 21.64 | N98: 16.77 | O98: 19.96 | P98: 20.07 | Q98: 22.42 | S98: 11.81 | T98: 4.13 | U98: 7.91 | V98: 9.1 | W98: 9.8 | X98: 1.77 | Y98: 0 | Z98: 6.18 | AA98: 11.31 | AB98: 16.22 | AC98: 9.84 | AD98: 13.52 | AE98: 13.64 | AF98: 17.52 | AH98: 1
A99: 95 | B99: Galloway | D99: 16.65 | E99: 5.83 | F99: 11.15 | G99: 12.82 | H99: 13.82 | I99: 2.5 | J99: 0 | K99: 10.12 | L99: 15.33 | M99: 20.68 | N99: 13.69 | O99: 17.79 | P99: 19.17 | Q99: 21.44 | S99: 9.48 | T99: 3.32 | U99: 6.35 | V99: 7.3 | W99: 7.87 | X99: 1.42 | Y99: 0 | Z99: 4.59 | AA99: 9.11 | AB99: 15.65 | AC99: 7.64 | AD99: 11.31 | AE99: 12.69 | AF99: 17.14 | AH99: 1
A100: 96 | B100: Galloway variant | D100: 16.65 | E100: 5.83 | F100: 11.15 | G100: 12.82 | H100: 13.82 | I100: 2.5 | J100: 0 | K100: 10.12 | L100: 15.33 | M100: 20.68 | N100: 13.69 | O100: 17.79 | P100: 19.17 | Q100: 21.44 | S100: 9.48 | T100: 3.32 | U100: 6.35 | V100: 7.3 | W100: 7.87 | X100: 1.42 | Y100: 0 | Z100: 4.59 | AA100: 9.11 | AB100: 15.65 | AC100: 7.64 | AD100: 11.31 | AE100: 12.69 | AF100: 17.14 | AH100: 1
A101: 97 | B101: Galway | D101: 20.71 | E101: 7.25 | F101: 13.88 | G101: 15.95 | H101: 17.19 | I101: 3.11 | J101: 0 | K101: 9.16 | L101: 17.09 | M101: 22.39 | N101: 14.37 | O101: 21.18 | P101: 23.37 | Q101: 21.91 | S101: 17.07 | T101: 5.98 | U101: 11.44 | V101: 13.15 | W101: 14.17 | X101: 2.56 | Y101: 0 | Z101: 4.64 | AA101: 12.93 | AB101: 19.18 | AC101: 9.78 | AD101: 17.65 | AE101: 20.44 | AF101: 18.55 | AH101: 1
A102: 98 | B102: Gladstone | D102: 19.08 | E102: 6.68 | F102: 12.78 | G102: 14.69 | H102: 15.83 | I102: 2.86 | J102: 0 | K102: 8.96 | L102: 16.57 | M102: 20.89 | N102: 14.42 | O102: 19.8 | P102: 21.35 | Q102: 20.66 | S102: 14.13 | T102: 4.95 | U102: 9.47 | V102: 10.88 | W102: 11.73 | X102: 2.12 | Y102: 0 | Z102: 4.39 | AA102: 12.14 | AB102: 16.43 | AC102: 10.12 | AD102: 15.17 | AE102: 16.7 | AF102: 16.29 | AH102: =IF(SUM(D102:AF102)=0,0,1) -> 1
A103: 99 | B103: Glassboro and Woodstown | D103: 15.8 | E103: 5.53 | F103: 10.59 | G103: 12.17 | H103: 13.12 | I103: 2.37 | J103: 0 | K103: 8.83 | L103: 13.62 | M103: 18.12 | N103: 11.95 | O103: 16.13 | P103: 17.83 | Q103: 18.27 | S103: 11.14 | T103: 3.9 | U103: 7.46 | V103: 8.58 | W103: 9.24 | X103: 1.67 | Y103: 0 | Z103: 6.29 | AA103: 10.01 | AB103: 14.06 | AC103: 9.12 | AD103: 11.35 | AE103: 12.52 | AF103: 14.83 | AH103: 1
A104: 100 | B104: Gravel Pits | D104: 15.96 | E104: 5.59 | F104: 10.69 | G104: 12.29 | H104: 13.25 | I104: 2.39 | J104: 0 | K104: 11.19 | L104: 14.69 | M104: 16.88 | N104: 13.68 | O104: 16.22 | P104: 16.34 | Q104: 17.15 | S104: 6.33 | T104: 2.21 | U104: 4.24 | V104: 4.87 | W104: 5.25 | X104: 0.95 | Y104: 0 | Z104: 1.89 | AA104: 5.13 | AB104: 8.07 | AC104: 4.01 | AD104: 6.82 | AE104: 6.96 | AF104: 8.62 | AH104: =IF(SUM(D104:AF104)=0,0,1) -> 1
A105: 101 | B105: Great Piece | D105: 0 | E105: 0 | F105: 0 | G105: 0 | H105: 0 | I105: 0 | J105: 0 | K105: 0 | L105: 0 | M105: 0 | N105: 0 | O105: 0 | P105: 0 | Q105: 0 | S105: 0 | T105: 0 | U105: 0 | V105: 0 | W105: 0 | X105: 0 | Y105: 0 | Z105: 0 | AA105: 0 | AB105: 0 | AC105: 0 | AD105: 0 | AE105: 0 | AF105: 0 | AH105: 0
A106: 102 | B106: Haledon | D106: 14.28 | E106: 5 | F106: 9.57 | G106: 11 | H106: 11.85 | I106: 2.14 | J106: 0 | K106: 6.42 | L106: 11.92 | M106: 15.75 | N106: 10.06 | O106: 14.72 | P106: 16.96 | Q106: 15.14 | S106: 9.11 | T106: 3.19 | U106: 6.1 | V106: 7.01 | W106: 7.56 | X106: 1.37 | Y106: 0 | Z106: 4.4 | AA106: 7.75 | AB106: 10.34 | AC106: 6.6 | AD106: 9.46 | AE106: 11.4 | AF106: 9.81 | AH106: =IF(SUM(D106:AF106)=0,0,1) -> 1
A107: 103 | B107: Haledon-Wet Variant | D107: 0 | E107: 0 | F107: 0 | G107: 0 | H107: 0 | I107: 0 | J107: 0 | K107: 0 | L107: 0 | M107: 0 | N107: 0 | O107: 0 | P107: 0 | Q107: 0 | S107: 0 | T107: 0 | U107: 0 | V107: 0 | W107: 0 | X107: 0 | Y107: 0 | Z107: 0 | AA107: 0 | AB107: 0 | AC107: 0 | AD107: 0 | AE107: 0 | AF107: 0 | AH107: 0
A108: 104 | B108: Halsey | D108: 0 | E108: 0 | F108: 0 | G108: 0 | H108: 0 | I108: 0 | J108: 0 | K108: 0 | L108: 0 | M108: 0 | N108: 0 | O108: 0 | P108: 0 | Q108: 0 | S108: 0 | T108: 0 | U108: 0 | V108: 0 | W108: 0 | X108: 0 | Y108: 0 | Z108: 0 | AA108: 0 | AB108: 0 | AC108: 0 | AD108: 0 | AE108: 0 | AF108: 0 | AH108: 0
A109: 105 | B109: Hammonton | D109: 17.59 | E109: 6.16 | F109: 11.79 | G109: 13.55 | H109: 14.6 | I109: 2.64 | J109: 0 | K109: 9.73 | L109: 16.01 | M109: 21.43 | N109: 14.12 | O109: 18.84 | P109: 20.31 | Q109: 21.98 | S109: 11.27 | T109: 3.94 | U109: 7.55 | V109: 8.68 | W109: 9.35 | X109: 1.69 | Y109: 0 | Z109: 4.49 | AA109: 10.61 | AB109: 16.91 | AC109: 8.89 | AD109: 13.19 | AE109: 14.62 | AF109: 18.05 | AH109: 1
A110: 106 | B110: Hasbrouck | D110: 0 | E110: 0 | F110: 0 | G110: 0 | H110: 0 | I110: 0 | J110: 0 | K110: 0 | L110: 0 | M110: 0 | N110: 0 | O110: 0 | P110: 0 | Q110: 0 | S110: 0 | T110: 0 | U110: 0 | V110: 0 | W110: 0 | X110: 0 | Y110: 0 | Z110: 0 | AA110: 0 | AB110: 0 | AC110: 0 | AD110: 0 | AE110: 0 | AF110: 0 | AH110: 0
A111: 107 | B111: Hazen | D111: 20.72 | E111: 7.25 | F111: 13.88 | G111: 15.96 | H111: 17.2 | I111: 3.11 | J111: 0 | K111: 8.76 | L111: 17.1 | M111: 22.68 | N111: 14.38 | O111: 21.19 | P111: 23.37 | Q111: 22.34 | S111: 17.09 | T111: 5.98 | U111: 11.45 | V111: 13.16 | W111: 14.18 | X111: 2.56 | Y111: 0 | Z111: 3.51 | AA111: 12.94 | AB111: 19.72 | AC111: 9.8 | AD111: 17.66 | AE111: 20.46 | AF111: 19.35 | AH111: 1
A112: 108 | B112: Hazleton | D112: 18.68 | E112: 6.54 | F112: 12.51 | G112: 14.38 | H112: 15.5 | I112: 2.8 | J112: 0 | K112: 8.92 | L112: 16.23 | M112: 20.47 | N112: 14.04 | O112: 19.51 | P112: 21.04 | Q112: 20.19 | S112: 13.08 | T112: 4.58 | U112: 8.76 | V112: 10.07 | W112: 10.85 | X112: 1.96 | Y112: 0 | Z112: 3.25 | AA112: 10.97 | AB112: 15.44 | AC112: 8.72 | AD112: 14.34 | AE112: 15.97 | AF112: 15.17 | AH112: 1
A113: 109 | B113: Hero | D113: 20.93 | E113: 7.33 | F113: 14.03 | G113: 16.12 | H113: 17.38 | I113: 3.14 | J113: 0 | K113: 9.04 | L113: 17.37 | M113: 22.77 | N113: 14.69 | O113: 21.39 | P113: 23.55 | Q113: 22.37 | S113: 17.48 | T113: 6.12 | U113: 11.71 | V113: 13.46 | W113: 14.51 | X113: 2.62 | Y113: 0 | Z113: 4.31 | AA113: 13.47 | AB113: 19.87 | AC113: 10.42 | AD113: 18.04 | AE113: 20.78 | AF113: 19.42 | AH113: 1
A114: 110 | B114: Hibernia | D114: 13.33 | E114: 4.67 | F114: 8.93 | G114: 10.27 | H114: 11.07 | I114: 2 | J114: 0 | K114: 6.22 | L114: 11.13 | M114: 14.92 | N114: 9.36 | O114: 13.8 | P114: 16.26 | Q114: 14.25 | S114: 7.12 | T114: 2.49 | U114: 4.77 | V114: 5.48 | W114: 5.91 | X114: 1.07 | Y114: 0 | Z114: 2.92 | AA114: 5.8 | AB114: 8.63 | AC114: 4.63 | AD114: 7.55 | AE114: 9.95 | AF114: 7.97 | AH114: 1
A115: 111 | B115: Hinckley | D115: 15.89 | E115: 5.56 | F115: 10.64 | G115: 12.23 | H115: 13.18 | I115: 2.38 | J115: 0 | K115: 10.01 | L115: 14.46 | M115: 17.05 | N115: 13.25 | O115: 16.28 | P115: 16.42 | Q115: 17.37 | S115: 6.57 | T115: 2.3 | U115: 4.4 | V115: 5.06 | W115: 5.45 | X115: 0.99 | Y115: 0 | Z115: 0.62 | AA115: 5.17 | AB115: 8.57 | AC115: 3.8 | AD115: 7.23 | AE115: 7.39 | AF115: 9.16 | AH115: 1
A116: 112 | B116: Hinckley-urban land | D116: 0 | E116: 0 | F116: 0 | G116: 0 | H116: 0 | I116: 0 | J116: 0 | K116: 0 | L116: 0 | M116: 0 | N116: 0 | O116: 0 | P116: 0 | Q116: 0 | S116: 0 | T116: 0 | U116: 0 | V116: 0 | W116: 0 | X116: 0 | Y116: 0 | Z116: 0 | AA116: 0 | AB116: 0 | AC116: 0 | AD116: 0 | AE116: 0 | AF116: 0 | AH116: 0
A117: 113 | B117: Hollis-rock outcrop-Chatfield | D117: 10.77 | E117: 3.77 | F117: 7.22 | G117: 8.3 | H117: 8.94 | I117: 1.62 | J117: 0 | K117: 3.55 | L117: 8.3 | M117: 12.41 | N117: 6.33 | O117: 11.24 | P117: 13.81 | Q117: 11.71 | S117: 5.68 | T117: 1.99 | U117: 3.79 | V117: 4.38 | W117: 4.72 | X117: 0.85 | Y117: 0 | Z117: -1.63 | AA117: 2.94 | AB117: 7.75 | AC117: 0.72 | AD117: 6.26 | AE117: 9.55 | AF117: 6.85 | AH117: 1
A118: 114 | B118: Holmdel | D118: 16.34 | E118: 5.72 | F118: 10.95 | G118: 12.58 | H118: 13.56 | I118: 2.45 | J118: 0 | K118: 7.16 | L118: 13.75 | M118: 18.85 | N118: 11.76 | O118: 16.75 | P118: 18.86 | Q118: 18.84 | S118: 12.54 | T118: 4.39 | U118: 8.4 | V118: 9.66 | W118: 10.41 | X118: 1.88 | Y118: 0 | Z118: 4.67 | AA118: 11.04 | AB118: 15.6 | AC118: 9.84 | AD118: 12.83 | AE118: 14.45 | AF118: 16.18 | AH118: =IF(SUM(D118:AF118)=0,0,1) -> 1
A119: 115 | B119: Holyoke | D119: 12.23 | E119: 4.28 | F119: 8.19 | G119: 9.41 | H119: 10.15 | I119: 1.83 | J119: 0 | K119: 5.4 | L119: 10.01 | M119: 13.73 | N119: 8.24 | O119: 12.66 | P119: 15 | Q119: 13.1 | S119: 5.23 | T119: 1.83 | U119: 3.5 | V119: 4.03 | W119: 4.34 | X119: 0.78 | Y119: 0 | Z119: 1.85 | AA119: 3.87 | AB119: 6.61 | AC119: 2.71 | AD119: 5.62 | AE119: 7.81 | AF119: 6.01 | AH119: 1
A120: 116 | B120: Holyoke-Rock Outcrop (Morris) | D120: 7.75 | E120: 2.71 | F120: 5.2 | G120: 5.96 | H120: 6.43 | I120: 1.16 | J120: 0 | K120: 3.82 | L120: 6.47 | M120: 8.61 | N120: 5.45 | O120: 8 | P120: 9.34 | Q120: 8.25 | S120: -0.07 | T120: -0.02 | U120: -0.08 | V120: -0.05 | W120: -0.06 | X120: -0.01 | Y120: 0 | Z120: -2.02 | AA120: -0.85 | AB120: 0.72 | AC120: -1.52 | AD120: 0.15 | AE120: 1.41 | AF120: 0.38 | AH120: 1
A121: 117 | B121: Holyoke-Rock Outcrop (Passaic) | D121: 9.85 | E121: 3.45 | F121: 6.6 | G121: 7.58 | H121: 8.17 | I121: 1.48 | J121: 0 | K121: 4.98 | L121: 8.13 | M121: 10.92 | N121: 6.79 | O121: 10.14 | P121: 11.87 | Q121: 10.44 | S121: 2.24 | T121: 0.78 | U121: 1.48 | V121: 1.72 | W121: 1.86 | X121: 0.34 | Y121: 0 | Z121: 0.52 | AA121: 1.22 | AB121: 3.11 | AC121: 0.41 | AD121: 2.44 | AE121: 3.98 | AF121: 2.67 | AH121: 1
A122: 118 | B122: Hooksan | D122: 22.59 | E122: 7.91 | F122: 15.14 | G122: 17.39 | H122: 18.75 | I122: 3.39 | J122: 0 | K122: 16.27 | L122: 21.07 | M122: 23.5 | N122: 19.88 | O122: 22.85 | P122: 22.96 | Q122: 23.76 | S122: 16.49 | T122: 5.77 | U122: 11.05 | V122: 12.7 | W122: 13.69 | X122: 2.47 | Y122: 0 | Z122: 9.62 | AA122: 14.92 | AB122: 18.27 | AC122: 13.52 | AD122: 17.02 | AE122: 17.15 | AF122: 18.84 | AH122: 1
A123: 119 | B123: Hooksan Variant | D123: 0 | E123: 0 | F123: 0 | G123: 0 | H123: 0 | I123: 0 | J123: 0 | K123: 0 | L123: 0 | M123: 0 | N123: 0 | O123: 0 | P123: 0 | Q123: 0 | S123: 0 | T123: 0 | U123: 0 | V123: 0 | W123: 0 | X123: 0 | Y123: 0 | Z123: 0 | AA123: 0 | AB123: 0 | AC123: 0 | AD123: 0 | AE123: 0 | AF123: 0 | AH123: 0
A124: 120 | B124: Hoosic | D124: 26.83 | E124: 9.39 | F124: 17.98 | G124: 20.66 | H124: 22.27 | I124: 4.02 | J124: 0 | K124: 14.88 | L124: 23.76 | M124: 27.53 | N124: 21.53 | O124: 27.1 | P124: 27.37 | Q124: 27.61 | S124: 26.12 | T124: 9.14 | U124: 17.5 | V124: 20.11 | W124: 21.68 | X124: 3.92 | Y124: 0 | Z124: 9.63 | AA124: 21.84 | AB124: 27.24 | AC124: 18.72 | AD124: 26.53 | AE124: 26.93 | AF124: 27.39 | AH124: 1
A125: 121 | B125: Horseneck | D125: 17.67 | E125: 6.19 | F125: 11.84 | G125: 13.61 | H125: 14.67 | I125: 2.65 | J125: 0 | K125: 8.43 | L125: 15.21 | M125: 19.3 | N125: 13.37 | O125: 17.97 | P125: 19.36 | Q125: 19.27 | S125: 11.71 | T125: 4.1 | U125: 7.84 | V125: 9.02 | W125: 9.72 | X125: 1.76 | Y125: 0 | Z125: 2.8 | AA125: 9.59 | AB125: 13.73 | AC125: 7.99 | AD125: 11.99 | AE125: 13.37 | AF125: 13.92 | AH125: 1
A126: 122 | B126: Horseneck-urban land | D126: 17.67 | E126: 6.19 | F126: 11.84 | G126: 13.61 | H126: 14.67 | I126: 2.65 | J126: 0 | K126: 8.43 | L126: 15.21 | M126: 19.3 | N126: 13.37 | O126: 17.97 | P126: 19.36 | Q126: 19.27 | S126: 11.71 | T126: 4.1 | U126: 7.84 | V126: 9.02 | W126: 9.72 | X126: 1.76 | Y126: 0 | Z126: 2.8 | AA126: 9.59 | AB126: 13.73 | AC126: 7.99 | AD126: 11.99 | AE126: 13.37 | AF126: 13.92 | AH126: 1
A127: 123 | B127: Howell | D127: 14.69 | E127: 5.14 | F127: 9.84 | G127: 11.31 | H127: 12.19 | I127: 2.2 | J127: 0 | K127: 7.24 | L127: 12.63 | M127: 17.96 | N127: 10.42 | O127: 15.95 | P127: 18.27 | Q127: 17.81 | S127: 9.36 | T127: 3.28 | U127: 6.27 | V127: 7.21 | W127: 7.77 | X127: 1.4 | Y127: 0 | Z127: 3.92 | AA127: 8.7 | AB127: 13.82 | AC127: 6.97 | AD127: 11.28 | AE127: 13.24 | AF127: 14.11 | AH127: =IF(SUM(D127:AF127)=0,0,1) -> 1
A128: 124 | B128: Humaquepts | D128: 0 | E128: 0 | F128: 0 | G128: 0 | H128: 0 | I128: 0 | J128: 0 | K128: 0 | L128: 0 | M128: 0 | N128: 0 | O128: 0 | P128: 0 | Q128: 0 | S128: 0 | T128: 0 | U128: 0 | V128: 0 | W128: 0 | X128: 0 | Y128: 0 | Z128: 0 | AA128: 0 | AB128: 0 | AC128: 0 | AD128: 0 | AE128: 0 | AF128: 0 | AH128: =IF(SUM(D128:AF128)=0,0,1) -> 0
A129: 125 | B129: Ingleside | D129: 20.01 | E129: 7 | F129: 13.41 | G129: 15.41 | H129: 16.61 | I129: 3 | J129: 0 | K129: 10.47 | L129: 17.78 | M129: 22.21 | N129: 16.09 | O129: 20.32 | P129: 21.72 | Q129: 22.45 | S129: 15.4 | T129: 5.39 | U129: 10.31 | V129: 11.85 | W129: 12.78 | X129: 2.31 | Y129: 0 | Z129: 6.22 | AA129: 13.81 | AB129: 18.2 | AC129: 12.57 | AD129: 15.67 | AE129: 16.96 | AF129: 18.83 | AH129: 1
A130: 126 | B130: Jade Run | D130: 0 | E130: 0 | F130: 0 | G130: 0 | H130: 0 | I130: 0 | J130: 0 | K130: 0 | L130: 0 | M130: 0 | N130: 0 | O130: 0 | P130: 0 | Q130: 0 | S130: 0 | T130: 0 | U130: 0 | V130: 0 | W130: 0 | X130: 0 | Y130: 0 | Z130: 0 | AA130: 0 | AB130: 0 | AC130: 0 | AD130: 0 | AE130: 0 | AF130: 0 | AH130: 0
A131: 127 | B131: Jade Run-urban land | D131: 0 | E131: 0 | F131: 0 | G131: 0 | H131: 0 | I131: 0 | J131: 0 | K131: 0 | L131: 0 | M131: 0 | N131: 0 | O131: 0 | P131: 0 | Q131: 0 | S131: 0 | T131: 0 | U131: 0 | V131: 0 | W131: 0 | X131: 0 | Y131: 0 | Z131: 0 | AA131: 0 | AB131: 0 | AC131: 0 | AD131: 0 | AE131: 0 | AF131: 0 | AH131: 0
A132: 128 | B132: Jade Run-Weeksville-urban land | D132: 0 | E132: 0 | F132: 0 | G132: 0 | H132: 0 | I132: 0 | J132: 0 | K132: 0 | L132: 0 | M132: 0 | N132: 0 | O132: 0 | P132: 0 | Q132: 0 | S132: 0 | T132: 0 | U132: 0 | V132: 0 | W132: 0 | X132: 0 | Y132: 0 | Z132: 0 | AA132: 0 | AB132: 0 | AC132: 0 | AD132: 0 | AE132: 0 | AF132: 0 | AH132: 0
A133: 129 | B133: Keansburg | D133: 0 | E133: 0 | F133: 0 | G133: 0 | H133: 0 | I133: 0 | J133: 0 | K133: 0 | L133: 0 | M133: 0 | N133: 0 | O133: 0 | P133: 0 | Q133: 0 | S133: 0 | T133: 0 | U133: 0 | V133: 0 | W133: 0 | X133: 0 | Y133: 0 | Z133: 0 | AA133: 0 | AB133: 0 | AC133: 0 | AD133: 0 | AE133: 0 | AF133: 0 | AH133: =IF(SUM(D133:AF133)=0,0,1) -> 0
A134: 130 | B134: Keyport | D134: 13.81 | E134: 4.83 | F134: 9.25 | G134: 10.63 | H134: 11.46 | I134: 2.07 | J134: 0 | K134: 6.48 | L134: 12.05 | M134: 16.65 | N134: 10.09 | O134: 14.98 | P134: 17.09 | Q134: 16.43 | S134: 7.72 | T134: 2.7 | U134: 5.18 | V134: 5.95 | W134: 6.41 | X134: 1.16 | Y134: 0 | Z134: 2.39 | AA134: 7.37 | AB134: 11.62 | AC134: 5.93 | AD134: 9.52 | AE134: 11.28 | AF134: 11.78 | AH134: =IF(SUM(D134:AF134)=0,0,1) -> 1
A135: 131 | B135: Keyport Soils | D135: 15.34 | E135: 5.37 | F135: 10.28 | G135: 11.81 | H135: 12.73 | I135: 2.3 | J135: 0 | K135: 8.56 | L135: 13.4 | M135: 18.12 | N135: 11.42 | O135: 16.37 | P135: 18.54 | Q135: 17.91 | S135: 10.04 | T135: 3.51 | U135: 6.73 | V135: 7.73 | W135: 8.33 | X135: 1.51 | Y135: 0 | Z135: 5.6 | AA135: 9.48 | AB135: 13.78 | AC135: 8.05 | AD135: 11.62 | AE135: 13.41 | AF135: 13.96 | AH135: =IF(SUM(D135:AF135)=0,0,1) -> 1
A136: 132 | B136: Klej | D136: 16.65 | E136: 5.83 | F136: 11.15 | G136: 12.82 | H136: 13.82 | I136: 2.5 | J136: 0 | K136: 10.12 | L136: 15.33 | M136: 20.68 | N136: 13.69 | O136: 17.79 | P136: 19.17 | Q136: 21.44 | S136: 9.48 | T136: 3.32 | U136: 6.35 | V136: 7.3 | W136: 7.87 | X136: 1.42 | Y136: 0 | Z136: 4.59 | AA136: 9.11 | AB136: 15.65 | AC136: 7.64 | AD136: 11.31 | AE136: 12.69 | AF136: 17.14 | AH136: =IF(SUM(D136:AF136)=0,0,1) -> 1
A137: 133 | B137: Klinesville | D137: 10.54 | E137: 3.69 | F137: 7.06 | G137: 8.12 | H137: 8.75 | I137: 1.58 | J137: 0 | K137: 5.17 | L137: 8.94 | M137: 11.97 | N137: 7.6 | O137: 10.94 | P137: 13.21 | Q137: 11.35 | S137: 1.41 | T137: 0.49 | U137: 0.95 | V137: 1.09 | W137: 1.17 | X137: 0.21 | Y137: 0 | Z137: -0.23 | AA137: 0.81 | AB137: 2.8 | AC137: 0.16 | AD137: 1.78 | AE137: 4.07 | AF137: 2.16 | AH137: =IF(SUM(D137:AF137)=0,0,1) -> 1
A138: 134 | B138: Knickerbocker | D138: 17.67 | E138: 6.19 | F138: 11.84 | G138: 13.61 | H138: 14.67 | I138: 2.65 | J138: 0 | K138: 8.43 | L138: 15.21 | M138: 19.3 | N138: 13.37 | O138: 17.97 | P138: 19.36 | Q138: 19.27 | S138: 11.71 | T138: 4.1 | U138: 7.84 | V138: 9.02 | W138: 9.72 | X138: 1.76 | Y138: 0 | Z138: 2.8 | AA138: 9.59 | AB138: 13.73 | AC138: 7.99 | AD138: 11.99 | AE138: 13.37 | AF138: 13.92 | AH138: 1
A139: 135 | B139: Kresson | D139: 15.16 | E139: 5.31 | F139: 10.16 | G139: 11.67 | H139: 12.58 | I139: 2.27 | J139: 0 | K139: 6.87 | L139: 12.95 | M139: 18.1 | N139: 10.71 | O139: 16.33 | P139: 18.48 | Q139: 17.9 | S139: 10.09 | T139: 3.53 | U139: 6.76 | V139: 7.77 | W139: 8.37 | X139: 1.51 | Y139: 0 | Z139: 3.44 | AA139: 9.21 | AB139: 14.05 | AC139: 7.44 | AD139: 11.87 | AE139: 13.61 | AF139: 14.26 | AH139: =IF(SUM(D139:AF139)=0,0,1) -> 1
A140: 136 | B140: Lackawanna | D140: 16.3 | E140: 5.71 | F140: 10.92 | G140: 12.55 | H140: 13.53 | I140: 2.45 | J140: 0 | K140: 5.15 | L140: 12.49 | M140: 18.73 | N140: 9.48 | O140: 17 | P140: 20.78 | Q140: 17.7 | S140: 12.4 | T140: 4.34 | U140: 8.31 | V140: 9.55 | W140: 10.29 | X140: 1.86 | Y140: 0 | Z140: 0.91 | AA140: 8.26 | AB140: 15.4 | AC140: 4.94 | AD140: 13.24 | AE140: 18 | AF140: 14.09 | AH140: 1
A141: 137 | B141: Lakehurst | D141: 17.41 | E141: 6.09 | F141: 11.66 | G141: 13.4 | H141: 14.45 | I141: 2.61 | J141: 0 | K141: 11.99 | L141: 16.51 | M141: 20.72 | N141: 15.1 | O141: 18.63 | P141: 18.77 | Q141: 21.69 | S141: 9.52 | T141: 3.33 | U141: 6.38 | V141: 7.33 | W141: 7.9 | X141: 1.43 | Y141: 0 | Z141: 3.97 | AA141: 9.05 | AB141: 14.92 | AC141: 7.38 | AD141: 11.55 | AE141: 11.71 | AF141: 16.53 | AH141: 1
A142: 138 | B142: Lakeland | D142: 16.31 | E142: 5.71 | F142: 10.93 | G142: 12.56 | H142: 13.54 | I142: 2.45 | J142: 0 | K142: 11.16 | L142: 15.8 | M142: 20.33 | N142: 14.52 | O142: 17.73 | P142: 17.85 | Q142: 21.57 | S142: 8.34 | T142: 2.92 | U142: 5.59 | V142: 6.42 | W142: 6.92 | X142: 1.25 | Y142: 0 | Z142: 3.13 | AA142: 8.37 | AB142: 14.58 | AC142: 6.89 | AD142: 10.59 | AE142: 10.72 | AF142: 16.51 | AH142: 1
A143: 139 | B143: Lakewood | D143: 18.23 | E143: 6.38 | F143: 12.22 | G143: 14.04 | H143: 15.13 | I143: 2.74 | J143: 0 | K143: 12.76 | L143: 17.35 | M143: 21.36 | N143: 16 | O143: 19.38 | P143: 19.51 | Q143: 22.28 | S143: 10.73 | T143: 3.76 | U143: 7.19 | V143: 8.26 | W143: 8.91 | X143: 1.61 | Y143: 0 | Z143: 5.1 | AA143: 10.28 | AB143: 15.84 | AC143: 8.7 | AD143: 12.65 | AE143: 12.79 | AF143: 17.37 | AH143: 1
A144: 140 | B144: Lamington | D144: 0 | E144: 0 | F144: 0 | G144: 0 | H144: 0 | I144: 0 | J144: 0 | K144: 0 | L144: 0 | M144: 0 | N144: 0 | O144: 0 | P144: 0 | Q144: 0 | S144: 0 | T144: 0 | U144: 0 | V144: 0 | W144: 0 | X144: 0 | Y144: 0 | Z144: 0 | AA144: 0 | AB144: 0 | AC144: 0 | AD144: 0 | AE144: 0 | AF144: 0 | AH144: 0
A145: 141 | B145: Lansdale | D145: 20.09 | E145: 7.03 | F145: 13.46 | G145: 15.47 | H145: 16.67 | I145: 3.01 | J145: 0 | K145: 10.33 | L145: 17.85 | M145: 21.66 | N145: 15.92 | O145: 20.76 | P145: 22.04 | Q145: 21.48 | S145: 15.65 | T145: 5.48 | U145: 10.49 | V145: 12.05 | W145: 12.99 | X145: 2.35 | Y145: 0 | Z145: 6.47 | AA145: 14.04 | AB145: 17.6 | AC145: 12.32 | AD145: 16.61 | AE145: 17.79 | AF145: 17.51 | AH145: 1
A146: 142 | B146: Lansdowne | D146: 14.24 | E146: 4.99 | F146: 9.54 | G146: 10.97 | H146: 11.82 | I146: 2.14 | J146: 0 | K146: 5.84 | L146: 12.2 | M146: 17.12 | N146: 10.04 | O146: 15.45 | P146: 17.72 | Q146: 16.82 | S146: 8.7 | T146: 3.04 | U146: 5.83 | V146: 6.7 | W146: 7.22 | X146: 1.3 | Y146: 0 | Z146: 1.79 | AA146: 7.95 | AB146: 12.56 | AC146: 6.25 | AD146: 10.51 | AE146: 12.5 | AF146: 12.59 | AH146: 1
A147: 143 | B147: Lansdowne Variant | D147: 15 | E147: 5.25 | F147: 10.05 | G147: 11.55 | H147: 12.45 | I147: 2.25 | J147: 0 | K147: 5.09 | L147: 12.05 | M147: 16.29 | N147: 9.83 | O147: 15.38 | P147: 17.35 | Q147: 15.76 | S147: 10.36 | T147: 3.63 | U147: 6.94 | V147: 7.98 | W147: 8.6 | X147: 1.55 | Y147: 0 | Z147: 1.72 | AA147: 8.29 | AB147: 11.3 | AC147: 6.72 | AD147: 10.63 | AE147: 12.1 | AF147: 10.9 | AH147: 1
A148: 144 | B148: Lawrenceville | D148: 15.11 | E148: 5.29 | F148: 10.12 | G148: 11.63 | H148: 12.54 | I148: 2.27 | J148: 0 | K148: 6.91 | L148: 12.52 | M148: 16.75 | N148: 10.47 | O148: 15.6 | P148: 18.1 | Q148: 16.08 | S148: 10.17 | T148: 3.56 | U148: 6.82 | V148: 7.83 | W148: 8.45 | X148: 1.53 | Y148: 0 | Z148: 5.26 | AA148: 8.44 | AB148: 11.73 | AC148: 6.99 | AD148: 10.63 | AE148: 13.03 | AF148: 11.07 | AH148: 1
A149: 145 | B149: Legore | D149: 20.11 | E149: 7.04 | F149: 13.48 | G149: 15.49 | H149: 16.69 | I149: 3.02 | J149: 0 | K149: 10.61 | L149: 17.88 | M149: 21.49 | N149: 15.95 | O149: 20.77 | P149: 22.05 | Q149: 21.2 | S149: 15.7 | T149: 5.49 | U149: 10.52 | V149: 12.09 | W149: 13.03 | X149: 2.35 | Y149: 0 | Z149: 7.13 | AA149: 14.08 | AB149: 17.28 | AC149: 12.38 | AD149: 16.63 | AE149: 17.81 | AF149: 17.01 | AH149: 1
A150: 146 | B150: Lehigh | D150: 16.3 | E150: 5.71 | F150: 10.92 | G150: 12.55 | H150: 13.53 | I150: 2.45 | J150: 0 | K150: 6.87 | L150: 13.98 | M150: 18.27 | N150: 11.8 | O150: 17.24 | P150: 19.48 | Q150: 17.67 | S150: 12.48 | T150: 4.37 | U150: 8.36 | V150: 9.61 | W150: 10.35 | X150: 1.87 | Y150: 0 | Z150: 5.14 | AA150: 11.48 | AB150: 14.59 | AC150: 9.97 | AD150: 13.75 | AE150: 15.58 | AF150: 14.1 | AH150: 1
A151: 147 | B151: Lenni | D151: 0 | E151: 0 | F151: 0 | G151: 0 | H151: 0 | I151: 0 | J151: 0 | K151: 0 | L151: 0 | M151: 0 | N151: 0 | O151: 0 | P151: 0 | Q151: 0 | S151: 0 | T151: 0 | U151: 0 | V151: 0 | W151: 0 | X151: 0 | Y151: 0 | Z151: 0 | AA151: 0 | AB151: 0 | AC151: 0 | AD151: 0 | AE151: 0 | AF151: 0 | AH151: 0
A152: 148 | B152: Lenoir | D152: 0 | E152: 0 | F152: 0 | G152: 0 | H152: 0 | I152: 0 | J152: 0 | K152: 0 | L152: 0 | M152: 0 | N152: 0 | O152: 0 | P152: 0 | Q152: 0 | S152: 0 | T152: 0 | U152: 0 | V152: 0 | W152: 0 | X152: 0 | Y152: 0 | Z152: 0 | AA152: 0 | AB152: 0 | AC152: 0 | AD152: 0 | AE152: 0 | AF152: 0 | AH152: =IF(SUM(D152:AF152)=0,0,1) -> 0
A153: 149 | B153: Leon | D153: 0 | E153: 0 | F153: 0 | G153: 0 | H153: 0 | I153: 0 | J153: 0 | K153: 0 | L153: 0 | M153: 0 | N153: 0 | O153: 0 | P153: 0 | Q153: 0 | S153: 0 | T153: 0 | U153: 0 | V153: 0 | W153: 0 | X153: 0 | Y153: 0 | Z153: 0 | AA153: 0 | AB153: 0 | AC153: 0 | AD153: 0 | AE153: 0 | AF153: 0 | AH153: =IF(SUM(D153:AF153)=0,0,1) -> 0
A154: 150 | B154: Livingston | D154: 0 | E154: 0 | F154: 0 | G154: 0 | H154: 0 | I154: 0 | J154: 0 | K154: 0 | L154: 0 | M154: 0 | N154: 0 | O154: 0 | P154: 0 | Q154: 0 | S154: 0 | T154: 0 | U154: 0 | V154: 0 | W154: 0 | X154: 0 | Y154: 0 | Z154: 0 | AA154: 0 | AB154: 0 | AC154: 0 | AD154: 0 | AE154: 0 | AF154: 0 | AH154: =IF(SUM(D154:AF154)=0,0,1) -> 0
A155: 151 | B155: Loamy Alluvial Land | D155: 0 | E155: 0 | F155: 0 | G155: 0 | H155: 0 | I155: 0 | J155: 0 | K155: 0 | L155: 0 | M155: 0 | N155: 0 | O155: 0 | P155: 0 | Q155: 0 | S155: 0 | T155: 0 | U155: 0 | V155: 0 | W155: 0 | X155: 0 | Y155: 0 | Z155: 0 | AA155: 0 | AB155: 0 | AC155: 0 | AD155: 0 | AE155: 0 | AF155: 0 | AH155: =IF(SUM(D155:AF155)=0,0,1) -> 0
A156: 152 | B156: Lordstown-Wallpack | D156: 15.39 | E156: 5.39 | F156: 10.31 | G156: 11.85 | H156: 12.77 | I156: 2.31 | J156: 0 | K156: 6.21 | L156: 12.44 | M156: 17.4 | N156: 10.08 | O156: 15.99 | P156: 19.04 | Q156: 16.58 | S156: 10.61 | T156: 3.71 | U156: 7.11 | V156: 8.17 | W156: 8.81 | X156: 1.59 | Y156: 0 | Z156: 2.48 | AA156: 8.01 | AB156: 12.9 | AC156: 5.82 | AD156: 11.29 | AE156: 14.81 | AF156: 11.95 | AH156: 1
A157: 153 | B157: Lyons | D157: 0 | E157: 0 | F157: 0 | G157: 0 | H157: 0 | I157: 0 | J157: 0 | K157: 0 | L157: 0 | M157: 0 | N157: 0 | O157: 0 | P157: 0 | Q157: 0 | S157: 0 | T157: 0 | U157: 0 | V157: 0 | W157: 0 | X157: 0 | Y157: 0 | Z157: 0 | AA157: 0 | AB157: 0 | AC157: 0 | AD157: 0 | AE157: 0 | AF157: 0 | AH157: =IF(SUM(D157:AF157)=0,0,1) -> 0
A158: 154 | B158: Made Land* | D158: 0 | E158: 0 | F158: 0 | G158: 0 | H158: 0 | I158: 0 | J158: 0 | K158: 0 | L158: 0 | M158: 0 | N158: 0 | O158: 0 | P158: 0 | Q158: 0 | S158: 0 | T158: 0 | U158: 0 | V158: 0 | W158: 0 | X158: 0 | Y158: 0 | Z158: 0 | AA158: 0 | AB158: 0 | AC158: 0 | AD158: 0 | AE158: 0 | AF158: 0 | AH158: =IF(SUM(D158:AF158)=0,0,1) -> 0
A159: 155 | B159: Manahawkin | D159: 0 | E159: 0 | F159: 0 | G159: 0 | H159: 0 | I159: 0 | J159: 0 | K159: 0 | L159: 0 | M159: 0 | N159: 0 | O159: 0 | P159: 0 | Q159: 0 | S159: 0 | T159: 0 | U159: 0 | V159: 0 | W159: 0 | X159: 0 | Y159: 0 | Z159: 0 | AA159: 0 | AB159: 0 | AC159: 0 | AD159: 0 | AE159: 0 | AF159: 0 | AH159: =IF(SUM(D159:AF159)=0,0,1) -> 0
A160: 156 | B160: Manlius-Nassau | D160: 13.32 | E160: 4.66 | F160: 8.92 | G160: 10.26 | H160: 11.05 | I160: 2 | J160: 0 | K160: 5.17 | L160: 10.63 | M160: 15.51 | N160: 8.42 | O160: 13.94 | P160: 17.38 | Q160: 14.57 | S160: 6.73 | T160: 2.36 | U160: 4.51 | V160: 5.18 | W160: 5.59 | X160: 1.01 | Y160: 0 | Z160: 0.24 | AA160: 4.26 | AB160: 9.42 | AC160: 2.11 | AD160: 7.48 | AE160: 11.77 | AF160: 8.24 | AH160: 1
A161: 157 | B161: Mannington-Nanticoke | D161: 0 | E161: 0 | F161: 0 | G161: 0 | H161: 0 | I161: 0 | J161: 0 | K161: 0 | L161: 0 | M161: 0 | N161: 0 | O161: 0 | P161: 0 | Q161: 0 | S161: 0 | T161: 0 | U161: 0 | V161: 0 | W161: 0 | X161: 0 | Y161: 0 | Z161: 0 | AA161: 0 | AB161: 0 | AC161: 0 | AD161: 0 | AE161: 0 | AF161: 0 | AH161: 0
A162: 158 | B162: Mannington-Nanticoke-Udorthents | D162: 0 | E162: 0 | F162: 0 | G162: 0 | H162: 0 | I162: 0 | J162: 0 | K162: 0 | L162: 0 | M162: 0 | N162: 0 | O162: 0 | P162: 0 | Q162: 0 | S162: 0 | T162: 0 | U162: 0 | V162: 0 | W162: 0 | X162: 0 | Y162: 0 | Z162: 0 | AA162: 0 | AB162: 0 | AC162: 0 | AD162: 0 | AE162: 0 | AF162: 0 | AH162: 0
A163: 159 | B163: Marlton | D163: 14.37 | E163: 5.03 | F163: 9.63 | G163: 11.06 | H163: 11.93 | I163: 2.16 | J163: 0 | K163: 6.99 | L163: 12.3 | M163: 16.96 | N163: 10.29 | O163: 15.32 | P163: 17.31 | Q163: 16.78 | S163: 8.45 | T163: 2.96 | U163: 5.66 | V163: 6.51 | W163: 7.02 | X163: 1.27 | Y163: 0 | Z163: 3.19 | AA163: 7.65 | AB163: 11.98 | AC163: 6.12 | AD163: 9.93 | AE163: 11.54 | AF163: 12.2 | AH163: =IF(SUM(D163:AF163)=0,0,1) -> 1
A164: 160 | B164: Marsh | D164: 0 | E164: 0 | F164: 0 | G164: 0 | H164: 0 | I164: 0 | J164: 0 | K164: 0 | L164: 0 | M164: 0 | N164: 0 | O164: 0 | P164: 0 | Q164: 0 | S164: 0 | T164: 0 | U164: 0 | V164: 0 | W164: 0 | X164: 0 | Y164: 0 | Z164: 0 | AA164: 0 | AB164: 0 | AC164: 0 | AD164: 0 | AE164: 0 | AF164: 0 | AH164: 0
A165: 161 | B165: Matapeake | D165: 20.19 | E165: 7.07 | F165: 13.53 | G165: 15.54 | H165: 16.76 | I165: 3.03 | J165: 0 | K165: 11.5 | L165: 18.69 | M165: 22.48 | N165: 17.06 | O165: 21.14 | P165: 22.41 | Q165: 22.52 | S165: 15.95 | T165: 5.58 | U165: 10.69 | V165: 12.28 | W165: 13.24 | X165: 2.39 | Y165: 0 | Z165: 9.16 | AA165: 15.6 | AB165: 18.88 | AC165: 14.47 | AD165: 17.28 | AE165: 18.31 | AF165: 19.16 | AH165: 1
A166: 162 | B166: Matawan | D166: 15.92 | E166: 5.57 | F166: 10.67 | G166: 12.26 | H166: 13.22 | I166: 2.39 | J166: 0 | K166: 7.53 | L166: 13.93 | M166: 19.43 | N166: 11.43 | O166: 17.67 | P166: 20.15 | Q166: 19.07 | S166: 11.4 | T166: 3.99 | U166: 7.64 | V166: 8.78 | W166: 9.46 | X166: 1.71 | Y166: 0 | Z166: 4.25 | AA166: 11.05 | AB166: 16.2 | AC166: 8.96 | AD166: 14.19 | AE166: 16.26 | AF166: 16.17 | AH166: 1
A167: 163 | B167: Matlock | D167: 0 | E167: 0 | F167: 0 | G167: 0 | H167: 0 | I167: 0 | J167: 0 | K167: 0 | L167: 0 | M167: 0 | N167: 0 | O167: 0 | P167: 0 | Q167: 0 | S167: 0 | T167: 0 | U167: 0 | V167: 0 | W167: 0 | X167: 0 | Y167: 0 | Z167: 0 | AA167: 0 | AB167: 0 | AC167: 0 | AD167: 0 | AE167: 0 | AF167: 0 | AH167: 0
A168: 164 | B168: Mattapex | D168: 17.61 | E168: 6.16 | F168: 11.8 | G168: 13.56 | H168: 14.62 | I168: 2.64 | J168: 0 | K168: 8.36 | L168: 15.67 | M168: 20.12 | N168: 13.64 | O168: 18.72 | P168: 20.34 | Q168: 20.02 | S168: 14.74 | T168: 5.16 | U168: 9.88 | V168: 11.35 | W168: 12.24 | X168: 2.21 | Y168: 0 | Z168: 8.13 | AA168: 14.5 | AB168: 17.72 | AC168: 13.34 | AD168: 16.25 | AE168: 17.04 | AF168: 18.06 | AH168: 1
A169: 165 | B169: Meckesville | D169: 15.51 | E169: 5.43 | F169: 10.39 | G169: 11.94 | H169: 12.87 | I169: 2.33 | J169: 0 | K169: 6.71 | L169: 12.89 | M169: 17.12 | N169: 10.83 | O169: 15.99 | P169: 18.44 | Q169: 16.46 | S169: 10.95 | T169: 3.83 | U169: 7.34 | V169: 8.43 | W169: 9.09 | X169: 1.64 | Y169: 0 | Z169: 4.65 | AA169: 9.24 | AB169: 12.43 | AC169: 7.82 | AD169: 11.38 | AE169: 13.66 | AF169: 11.81 | AH169: 1
A170: 166 | B170: Middlebury | D170: 21.08 | E170: 7.38 | F170: 14.13 | G170: 16.23 | H170: 17.5 | I170: 3.16 | J170: 0 | K170: 8.99 | L170: 17.56 | M170: 22.94 | N170: 14.91 | O170: 21.54 | P170: 23.67 | Q170: 22.57 | S170: 17.76 | T170: 6.22 | U170: 11.9 | V170: 13.68 | W170: 14.74 | X170: 2.66 | Y170: 0 | Z170: 4.15 | AA170: 13.85 | AB170: 20.19 | AC170: 10.87 | AD170: 18.31 | AE170: 21.01 | AF170: 19.78 | AH170: 1
A171: 167 | B171: Minoa | D171: 15.97 | E171: 5.59 | F171: 10.7 | G171: 12.29 | H171: 13.25 | I171: 2.39 | J171: 0 | K171: 6.33 | L171: 13.42 | M171: 18.31 | N171: 11.43 | O171: 16.42 | P171: 18.74 | Q171: 18.09 | S171: 12.19 | T171: 4.26 | U171: 8.16 | V171: 9.38 | W171: 10.11 | X171: 1.83 | Y171: 0 | Z171: 3.75 | AA171: 10.72 | AB171: 15 | AC171: 9.5 | AD171: 12.55 | AE171: 14.51 | AF171: 15.25 | AH171: 1
A172: 168 | B172: Mispillion-Transquaking-Appoquinimink | D172: 0 | E172: 0 | F172: 0 | G172: 0 | H172: 0 | I172: 0 | J172: 0 | K172: 0 | L172: 0 | M172: 0 | N172: 0 | O172: 0 | P172: 0 | Q172: 0 | S172: 0 | T172: 0 | U172: 0 | V172: 0 | W172: 0 | X172: 0 | Y172: 0 | Z172: 0 | AA172: 0 | AB172: 0 | AC172: 0 | AD172: 0 | AE172: 0 | AF172: 0 | AH172: 0
A173: 169 | B173: Moderately Wet Land | D173: 0 | E173: 0 | F173: 0 | G173: 0 | H173: 0 | I173: 0 | J173: 0 | K173: 0 | L173: 0 | M173: 0 | N173: 0 | O173: 0 | P173: 0 | Q173: 0 | S173: 0 | T173: 0 | U173: 0 | V173: 0 | W173: 0 | X173: 0 | Y173: 0 | Z173: 0 | AA173: 0 | AB173: 0 | AC173: 0 | AD173: 0 | AE173: 0 | AF173: 0 | AH173: =IF(SUM(D173:AF173)=0,0,1) -> 0
A174: 170 | B174: Mount Lucas | D174: 15.71 | E174: 5.5 | F174: 10.52 | G174: 12.09 | H174: 13.04 | I174: 2.36 | J174: 0 | K174: 6.35 | L174: 13.42 | M174: 17.98 | N174: 11.26 | O174: 16.67 | P174: 18.81 | Q174: 17.57 | S174: 11.47 | T174: 4.01 | U174: 7.68 | V174: 8.83 | W174: 9.52 | X174: 1.72 | Y174: 0 | Z174: 4.09 | AA174: 10.51 | AB174: 14.15 | AC174: 8.99 | AD174: 12.78 | AE174: 14.47 | AF174: 13.99 | AH174: 1
A175: 171 | B175: Muck | D175: 0 | E175: 0 | F175: 0 | G175: 0 | H175: 0 | I175: 0 | J175: 0 | K175: 0 | L175: 0 | M175: 0 | N175: 0 | O175: 0 | P175: 0 | Q175: 0 | S175: 0 | T175: 0 | U175: 0 | V175: 0 | W175: 0 | X175: 0 | Y175: 0 | Z175: 0 | AA175: 0 | AB175: 0 | AC175: 0 | AD175: 0 | AE175: 0 | AF175: 0 | AH175: 0
A176: 172 | B176: Muck, Shallow, Over Clay | D176: 0 | E176: 0 | F176: 0 | G176: 0 | H176: 0 | I176: 0 | J176: 0 | K176: 0 | L176: 0 | M176: 0 | N176: 0 | O176: 0 | P176: 0 | Q176: 0 | S176: 0 | T176: 0 | U176: 0 | V176: 0 | W176: 0 | X176: 0 | Y176: 0 | Z176: 0 | AA176: 0 | AB176: 0 | AC176: 0 | AD176: 0 | AE176: 0 | AF176: 0 | AH176: 0
A177: 173 | B177: Muck, Shallow, Over Loam | D177: 0 | E177: 0 | F177: 0 | G177: 0 | H177: 0 | I177: 0 | J177: 0 | K177: 0 | L177: 0 | M177: 0 | N177: 0 | O177: 0 | P177: 0 | Q177: 0 | S177: 0 | T177: 0 | U177: 0 | V177: 0 | W177: 0 | X177: 0 | Y177: 0 | Z177: 0 | AA177: 0 | AB177: 0 | AC177: 0 | AD177: 0 | AE177: 0 | AF177: 0 | AH177: 0
A178: 174 | B178: Mullica | D178: 0 | E178: 0 | F178: 0 | G178: 0 | H178: 0 | I178: 0 | J178: 0 | K178: 0 | L178: 0 | M178: 0 | N178: 0 | O178: 0 | P178: 0 | Q178: 0 | S178: 0 | T178: 0 | U178: 0 | V178: 0 | W178: 0 | X178: 0 | Y178: 0 | Z178: 0 | AA178: 0 | AB178: 0 | AC178: 0 | AD178: 0 | AE178: 0 | AF178: 0 | AH178: 0
A179: 175 | B179: Muttontown | D179: 15.94 | E179: 5.58 | F179: 10.68 | G179: 12.27 | H179: 13.23 | I179: 2.39 | J179: 0 | K179: 7.83 | L179: 13.46 | M179: 18.81 | N179: 11.56 | O179: 16.3 | P179: 18.2 | Q179: 19.12 | S179: 11.5 | T179: 4.02 | U179: 7.7 | V179: 8.85 | W179: 9.54 | X179: 1.72 | Y179: 0 | Z179: 5.06 | AA179: 10.04 | AB179: 15.3 | AC179: 8.9 | AD179: 11.75 | AE179: 13.15 | AF179: 16.37 | AH179: 1
A180: 176 | B180: Nassau | D180: 13.32 | E180: 4.66 | F180: 8.92 | G180: 10.26 | H180: 11.05 | I180: 2 | J180: 0 | K180: 5.17 | L180: 10.63 | M180: 15.51 | N180: 8.42 | O180: 13.94 | P180: 17.38 | Q180: 14.57 | S180: 6.73 | T180: 2.36 | U180: 4.51 | V180: 5.18 | W180: 5.59 | X180: 1.01 | Y180: 0 | Z180: 0.24 | AA180: 4.26 | AB180: 9.42 | AC180: 2.11 | AD180: 7.48 | AE180: 11.77 | AF180: 8.24 | AH180: =IF(SUM(D180:AF180)=0,0,1) -> 1
A181: 177 | B181: Nassau-Rock Outcrop (Sussex) | D181: 13.24 | E181: 4.63 | F181: 8.87 | G181: 10.19 | H181: 10.99 | I181: 1.99 | J181: 0 | K181: 4.76 | L181: 10.34 | M181: 15.24 | N181: 8.03 | O181: 13.81 | P181: 16.96 | Q181: 14.38 | S181: 7.32 | T181: 2.56 | U181: 4.89 | V181: 5.63 | W181: 6.07 | X181: 1.1 | Y181: 0 | Z181: -1.16 | AA181: 4.07 | AB181: 9.89 | AC181: 1.43 | AD181: 8.03 | AE181: 12.15 | AF181: 8.76 | AH181: =IF(SUM(D181:AF181)=0,0,1) -> 1
A182: 178 | B182: Nassau-Rock Outcrop (Warren) | D182: 12.1 | E182: 4.23 | F182: 8.11 | G182: 9.31 | H182: 10.04 | I182: 1.81 | J182: 0 | K182: 5.65 | L182: 9.98 | M182: 13.84 | N182: 8.23 | O182: 12.61 | P182: 15.28 | Q182: 13.12 | S182: 5.04 | T182: 1.76 | U182: 3.37 | V182: 3.88 | W182: 4.18 | X182: 0.76 | Y182: 0 | Z182: 0.34 | AA182: 3.23 | AB182: 7.14 | AC182: 1.61 | AD182: 5.65 | AE182: 8.91 | AF182: 6.25 | AH182: =IF(SUM(D182:AF182)=0,0,1) -> 1
A183: 179 | B183: Natchaug | D183: 0 | E183: 0 | F183: 0 | G183: 0 | H183: 0 | I183: 0 | J183: 0 | K183: 0 | L183: 0 | M183: 0 | N183: 0 | O183: 0 | P183: 0 | Q183: 0 | S183: 0 | T183: 0 | U183: 0 | V183: 0 | W183: 0 | X183: 0 | Y183: 0 | Z183: 0 | AA183: 0 | AB183: 0 | AC183: 0 | AD183: 0 | AE183: 0 | AF183: 0 | AH183: 0
A184: 180 | B184: Neshaminy | D184: 17.74 | E184: 6.21 | F184: 11.88 | G184: 13.66 | H184: 14.72 | I184: 2.66 | J184: 0 | K184: 7.79 | L184: 15.53 | M184: 20.03 | N184: 13.31 | O184: 18.86 | P184: 20.37 | Q184: 19.86 | S184: 11.78 | T184: 4.12 | U184: 7.89 | V184: 9.07 | W184: 9.77 | X184: 1.77 | Y184: 0 | Z184: 1.6 | AA184: 10.23 | AB184: 14.95 | AC184: 8.03 | AD184: 13.54 | AE184: 15.03 | AF184: 14.91 | AH184: =IF(SUM(D184:AF184)=0,0,1) -> 1
A185: 181 | B185: Neshaminy Variant | D185: 15.73 | E185: 5.51 | F185: 10.54 | G185: 12.12 | H185: 13.06 | I185: 2.36 | J185: 0 | K185: 6.59 | L185: 13.48 | M185: 17.71 | N185: 11.39 | O185: 16.62 | P185: 18.96 | Q185: 17.08 | S185: 11.33 | T185: 3.97 | U185: 7.59 | V185: 8.72 | W185: 9.4 | X185: 1.7 | Y185: 0 | Z185: 3.62 | AA185: 10.31 | AB185: 13.47 | AC185: 8.84 | AD185: 12.53 | AE185: 14.58 | AF185: 12.92 | AH185: 1
A186: 182 | B186: Netcong | D186: 19.33 | E186: 6.77 | F186: 12.95 | G186: 14.89 | H186: 16.05 | I186: 2.9 | J186: 0 | K186: 8.8 | L186: 16.62 | M186: 20.96 | N186: 14.6 | O186: 19.64 | P186: 21.05 | Q186: 20.92 | S186: 14.6 | T186: 5.11 | U186: 9.78 | V186: 11.24 | W186: 12.12 | X186: 2.19 | Y186: 0 | Z186: 3.51 | AA186: 12.17 | AB186: 16.61 | AC186: 10.35 | AD186: 14.89 | AE186: 16.22 | AF186: 16.8 | AH186: 1
A187: 183 | B187: Nixon | D187: 15.5 | E187: 5.42 | F187: 10.38 | G187: 11.93 | H187: 12.86 | I187: 2.32 | J187: 0 | K187: 6.63 | L187: 14.22 | M187: 18.72 | N187: 12.17 | O187: 17.29 | P187: 18.86 | Q187: 18.66 | S187: 8.48 | T187: 2.97 | U187: 5.68 | V187: 6.53 | W187: 7.04 | X187: 1.27 | Y187: 0 | Z187: -0.01 | AA187: 8.3 | AB187: 12.96 | AC187: 6.36 | AD187: 11.21 | AE187: 12.75 | AF187: 13.07 | AH187: 1
A188: 184 | B188: Nixon Variant | D188: 15.5 | E188: 5.42 | F188: 10.38 | G188: 11.93 | H188: 12.86 | I188: 2.32 | J188: 0 | K188: 6.63 | L188: 14.22 | M188: 18.72 | N188: 12.17 | O188: 17.29 | P188: 18.86 | Q188: 18.66 | S188: 8.48 | T188: 2.97 | U188: 5.68 | V188: 6.53 | W188: 7.04 | X188: 1.27 | Y188: 0 | Z188: -0.01 | AA188: 8.3 | AB188: 12.96 | AC188: 6.36 | AD188: 11.21 | AE188: 12.75 | AF188: 13.07 | AH188: 1
A189: 185 | B189: Nixonton | D189: 20.34 | E189: 7.12 | F189: 13.63 | G189: 15.66 | H189: 16.89 | I189: 3.05 | J189: 0 | K189: 9.85 | L189: 17.91 | M189: 22.78 | N189: 15.67 | O189: 21.26 | P189: 22.93 | Q189: 22.7 | S189: 16.01 | T189: 5.6 | U189: 10.72 | V189: 12.33 | W189: 13.29 | X189: 2.4 | Y189: 0 | Z189: 6.67 | AA189: 14.29 | AB189: 19.08 | AC189: 12.31 | AD189: 17.26 | AE189: 18.87 | AF189: 19.19 | AH189: 1
A190: 186 | B190: Norton | D190: 14.37 | E190: 5.03 | F190: 9.63 | G190: 11.06 | H190: 11.93 | I190: 2.16 | J190: 0 | K190: 6.04 | L190: 12.23 | M190: 17.17 | N190: 10.06 | O190: 15.5 | P190: 18.02 | Q190: 16.75 | S190: 8.74 | T190: 3.06 | U190: 5.86 | V190: 6.73 | W190: 7.26 | X190: 1.31 | Y190: 0 | Z190: 1.87 | AA190: 7.77 | AB190: 12.52 | AC190: 5.99 | AD190: 10.44 | AE190: 12.88 | AF190: 12.33 | AH190: 1
A191: 187 | B191: Norwich | D191: 0 | E191: 0 | F191: 0 | G191: 0 | H191: 0 | I191: 0 | J191: 0 | K191: 0 | L191: 0 | M191: 0 | N191: 0 | O191: 0 | P191: 0 | Q191: 0 | S191: 0 | T191: 0 | U191: 0 | V191: 0 | W191: 0 | X191: 0 | Y191: 0 | Z191: 0 | AA191: 0 | AB191: 0 | AC191: 0 | AD191: 0 | AE191: 0 | AF191: 0 | AH191: 0
A192: 188 | B192: Ochrepts | D192: 19.24 | E192: 6.73 | F192: 12.89 | G192: 14.81 | H192: 15.97 | I192: 2.89 | J192: 0 | K192: 9.4 | L192: 16.5 | M192: 20.73 | N192: 14.47 | O192: 19.54 | P192: 20.93 | Q192: 20.63 | S192: 14.08 | T192: 4.93 | U192: 9.43 | V192: 10.84 | W192: 11.68 | X192: 2.11 | Y192: 0 | Z192: 4.31 | AA192: 11.54 | AB192: 15.84 | AC192: 9.68 | AD192: 14.35 | AE192: 15.67 | AF192: 15.92 | AH192: 1
A193: 189 | B193: Oquaga | D193: 14.04 | E193: 4.91 | F193: 9.41 | G193: 10.81 | H193: 11.65 | I193: 2.11 | J193: 0 | K193: 5.21 | L193: 11.12 | M193: 16.23 | N193: 8.75 | O193: 14.67 | P193: 18.09 | Q193: 15.3 | S193: 8.23 | T193: 2.88 | U193: 5.51 | V193: 6.34 | W193: 6.83 | X193: 1.23 | Y193: 0 | Z193: 0.62 | AA193: 5.51 | AB193: 10.87 | AC193: 3.2 | AD193: 8.97 | AE193: 13.15 | AF193: 9.72 | AH193: 1
A194: 190 | B194: Oquaga-Rock Outcrop | D194: 14 | E194: 4.9 | F194: 9.38 | G194: 10.78 | H194: 11.62 | I194: 2.1 | J194: 0 | K194: 4.83 | L194: 10.86 | M194: 16.08 | N194: 8.36 | O194: 14.6 | P194: 17.85 | Q194: 15.19 | S194: 8.74 | T194: 3.06 | U194: 5.85 | V194: 6.73 | W194: 7.26 | X194: 1.31 | Y194: 0 | Z194: -0.66 | AA194: 5.26 | AB194: 11.36 | AC194: 2.44 | AD194: 9.48 | AE194: 13.65 | AF194: 10.22 | AH194: 1
A195: 191 | B195: Oquaga-Swartswood Rock Outcrop | D195: 12.85 | E195: 4.5 | F195: 8.61 | G195: 9.89 | H195: 10.66 | I195: 1.93 | J195: 0 | K195: 5.7 | L195: 10.5 | M195: 14.6 | N195: 8.58 | O195: 13.37 | P195: 16.03 | Q195: 13.88 | S195: 6.54 | T195: 2.29 | U195: 4.37 | V195: 5.04 | W195: 5.43 | X195: 0.98 | Y195: 0 | Z195: 0.68 | AA195: 4.45 | AB195: 8.6 | AC195: 2.66 | AD195: 7.15 | AE195: 10.32 | AF195: 7.74 | AH195: 1
A196: 192 | B196: Othello | D196: 0 | E196: 0 | F196: 0 | G196: 0 | H196: 0 | I196: 0 | J196: 0 | K196: 0 | L196: 0 | M196: 0 | N196: 0 | O196: 0 | P196: 0 | Q196: 0 | S196: 0 | T196: 0 | U196: 0 | V196: 0 | W196: 0 | X196: 0 | Y196: 0 | Z196: 0 | AA196: 0 | AB196: 0 | AC196: 0 | AD196: 0 | AE196: 0 | AF196: 0 | AH196: 0
A197: 193 | B197: Otisville | D197: 15.89 | E197: 5.56 | F197: 10.64 | G197: 12.23 | H197: 13.18 | I197: 2.38 | J197: 0 | K197: 10.01 | L197: 14.46 | M197: 17.05 | N197: 13.25 | O197: 16.28 | P197: 16.42 | Q197: 17.37 | S197: 6.57 | T197: 2.3 | U197: 4.4 | V197: 5.06 | W197: 5.45 | X197: 0.99 | Y197: 0 | Z197: 0.62 | AA197: 5.17 | AB197: 8.57 | AC197: 3.8 | AD197: 7.23 | AE197: 7.39 | AF197: 9.16 | AH197: 1
A198: 194 | B198: Palms | D198: 0 | E198: 0 | F198: 0 | G198: 0 | H198: 0 | I198: 0 | J198: 0 | K198: 0 | L198: 0 | M198: 0 | N198: 0 | O198: 0 | P198: 0 | Q198: 0 | S198: 0 | T198: 0 | U198: 0 | V198: 0 | W198: 0 | X198: 0 | Y198: 0 | Z198: 0 | AA198: 0 | AB198: 0 | AC198: 0 | AD198: 0 | AE198: 0 | AF198: 0 | AH198: 0
A199: 195 | B199: Palmyra | D199: 20.44 | E199: 7.16 | F199: 13.7 | G199: 15.74 | H199: 16.97 | I199: 3.07 | J199: 0 | K199: 8.71 | L199: 16.77 | M199: 22.28 | N199: 14 | O199: 20.91 | P199: 23.14 | Q199: 21.85 | S199: 16.57 | T199: 5.8 | U199: 11.1 | V199: 12.76 | W199: 13.75 | X199: 2.48 | Y199: 0 | Z199: 3.36 | AA199: 12.28 | AB199: 18.97 | AC199: 9.03 | AD199: 17.15 | AE199: 20.02 | AF199: 18.44 | AH199: =IF(SUM(D199:AF199)=0,0,1) -> 1
A200: 196 | B200: Parker | D200: 18.27 | E200: 6.39 | F200: 12.24 | G200: 14.06 | H200: 15.16 | I200: 2.74 | J200: 0 | K200: 8.13 | L200: 15.37 | M200: 19.74 | N200: 13.19 | O200: 18.62 | P200: 20.31 | Q200: 19.46 | S200: 12.62 | T200: 4.42 | U200: 8.45 | V200: 9.71 | W200: 10.47 | X200: 1.89 | Y200: 0 | Z200: 2.14 | AA200: 9.8 | AB200: 14.32 | AC200: 7.68 | AD200: 12.99 | AE200: 14.8 | AF200: 14.08 | AH200: 1
A201: 197 | B201: Parker-Rock Outcrop | D201: 14.6 | E201: 5.11 | F201: 9.78 | G201: 11.24 | H201: 12.12 | I201: 2.19 | J201: 0 | K201: 6.89 | L201: 12.43 | M201: 15.62 | N201: 10.81 | O201: 14.85 | P201: 15.98 | Q201: 15.44 | S201: 9.12 | T201: 3.19 | U201: 6.1 | V201: 7.02 | W201: 7.57 | X201: 1.37 | Y201: 0 | Z201: 1.22 | AA201: 7.07 | AB201: 10.23 | AC201: 5.54 | AD201: 9.36 | AE201: 10.46 | AF201: 10.11 | AH201: 1
A202: 198 | B202: Parsippany | D202: 0 | E202: 0 | F202: 0 | G202: 0 | H202: 0 | I202: 0 | J202: 0 | K202: 0 | L202: 0 | M202: 0 | N202: 0 | O202: 0 | P202: 0 | Q202: 0 | S202: 0 | T202: 0 | U202: 0 | V202: 0 | W202: 0 | X202: 0 | Y202: 0 | Z202: 0 | AA202: 0 | AB202: 0 | AC202: 0 | AD202: 0 | AE202: 0 | AF202: 0 | AH202: 0
... 131 more rows

Sheet New Soil-Old Soil
A1: SSURGO soil series name | B1: Counties | C1: Assumed equivalent soil from county soil series
A2: Alden | B2: Warren, Sussex, Passaic, Morris | C2: Whitman
A3: Alloway | B3: Salem | C3: Keyport
A4: Appoquinimink-Broadkill | B4: Salem | C4: tidal marsh
A5: Appoquinimink-Transquaking-Mispillion | B5: Ocean, Monmouth, Cumberland, Cape May, Atlantic | C5: sulfaquents and sulfihemists, tidal marshes
A6: Arnot-Lordstown | B6: Warren, Sussex | C6: Nassau-Manlius
A7: Arnot-Lordstown rock outcrop | B7: Sussex, Sussex | C7: Nassau-Manlius rock outcrop
A8: Bigapple | B8: Essex | C8: sand pit
A9: Bigapple-urban land | B9: Essex | C9: urban land
A10: Broadkill | B10: Cumberland | C10: tidal marsh
A11: Buddtown | B11: Burlington | C11: Nixonton
A12: Buddtown-Deptford | B12: Gloucester, Camden, Burlington | C12: Nixonton-Barclay
A13: Buddtown-urban land | B13: Gloucester | C13: urban land
A14: Catden | B14: Warren, Sussex, Passaic, Morris, Essex | C14: Carlisle
A15: Catden-Natchaug | B15: Essex | C15: Carlisle-Palms
A16: Charlton-rock outcrop | B16: Passaic | C16: Rockaway rock outcrop (Warren/Sussex Co.)
A17: Chatfield-Hollis-Rock outcrop | B17: Warren, Sussex, Passaic, Morris | C17: Rockaway rock outcrop (Warren/Sussex Co.)
A18: Chicone | B18: Salem, Gloucester, Cumberland | C18: swamp
A19: Delaware | B19: Warren, Sussex | C19: Riverhead
A20: Dennisville | B20: Cape May | C20: Downer
A21: Farmington-rock outcrop | B21: Warren, Sussex | C21: Wassaic-rock outcrop
A22: Farmington-Wassaic-rock outcrop | B22: Warren, Sussex | C22: Wassaic-rock outcrop
A23: Galloway | B23: Salem, Ocean, Middlesex, Cumberland, Cape May, Camden, Atlantic, Burlington | C23: Klej
A24: Galloway variant | B24: Mercer | C24: Klej
A25: Galway | B25: Sussex | C25: Wassaic
A26: Glassboro and Woodstown | B26: Mercer | C26: Dragston and Woodstown
A27: Great Piece | B27: Essex | C27: Passaic
A28: Hinckley | B28: Warren, Sussex, Essex | C28: Otisville
A29: Hinckley-urban land | B29: Essex | C29: urban land
A30: Hollis-rock outcrop-Chatfield | B30: Warren, Sussex, Passaic, Morris | C30: Rockaway rock outcrop (Warren/Sussex Co.)
A31: Horseneck | B31: Essex | C31: Riverhead
A32: Horseneck-urban land | B32: Essex | C32: urban land
A33: Ingleside | B33: Cape May | C33: Sassafras
A34: Jade Run | B34: Gloucester, Camden, Burlington | C34: Pasquotank
A35: Jade Run-urban land | B35: Gloucester | C35: urban land
A36: Jade Run-Weeksville-urban land | B36: Camden | C36: urban land
A37: Knickerbocker | B37: Essex | C37: Riverhead
A38: Lenni | B38: Gloucester | C38: Bayboro, Elkton
A39: Lordstown-Wallpack | B39: Sussex | C39: Stiensburg-Wooster
A40: Manlius-Nassau | B40: Sussex | C40: Nassau-Manlius
A41: Mannington-Nanticoke | B41: Salem, Gloucester, Burlington | C41: fresh water marsh
A42: Mannington-Nanticoke-Udorthents | B42: Gloucester, Camden, Burlington | C42: fresh water marsh
A43: Mispillion-Transquaking-Appoquinimink | B43: Cumberland, Cape May | C43: tidal marsh
A44: Muttontown | B44: Salem | C44: Woodstown
A45: Natchaug | B45: Essex | C45: Palms
A46: Palms | B46: Somerset, Morris | C46: muck
A47: Pawcatuck-Transquaking | B47: Middlesex, Cumberland, Cape May | C47: tidal marsh
A48: Paxton | B48: Passaic | C48: Rockaway
A49: Peckmantown | B49: Essex | C49: Boonton
A50: Peckmantown-urban land | B50: Essex | C50: Boonton-urban land
A51: Pedricktown, Askecksy, and Mullica | B51: Gloucester, Salem | C51: Pokomoke
A52: Riker | B52: Essex | C52: Otisville
A53: Rock outcrop - Arnot-rubble land | B53: Warren, Sussex | C53: Rock outcrop-Nassau
A54: Rock outcrop-Farmington-Galway | B54: Warren, Sussex | C54: Rock outcrop-Wassaic
A55: Scio | B55: Warren, Sussex | C55: Unadilla
A56: Sharptown | B56: Salem | C56: Mattapex
A57: Timakawa | B57: Warren | C57: Adrian
A58: Transquaking | B58: Salem, Union, Middlesex, Cumberland, Cape May, Burlington, Bergen, Atlantic | C58: sulfaquents and sulfihemists, tidal marshes
A59: Udorthents | B59: Essex | C59: Udorthents*
A60: Udorthents-Horseneck | B60: Essex | C60: Udorthents*
A61: Udorthents-Peckmantown | B61: Union, Essex | C61: Udorthents*
A62: Urban land-Bigapple | B62: Union | C62: urban land
A63: Urban land-Chatfield-Rock Outcrop | B63: Warren, Sussex | C63: urban land
A64: Urban land-Farmington-rock outcrop | B64: Warren, Sussex | C64: urban land
A65: Urban land-Farmington-Wassaic | B65: Sussex | C65: urban land
A66: Urban land-Horseneck | B66: Essex | C66: urban land
A67: Urban land-Knickerbocker | B67: Essex | C67: urban land
A68: Urban land-Peckmantown | B68: Essex | C68: urban land
A69: Urban land-Yalesvile-rock outcrop | B69: Essex | C69: urban land
A70: Wallpack | B70: Sussex | C70: Wooster
A71: Wellsboro | B71: Warren, Sussex | C71: Wurtsboro
A72: Willette | B72: Morris | C72: muck
A73: Yalesville | B73: Essex | C73: Steinsburg
A74: Yalesville-Boonton-Holyoke | B74: Essex | C74: Steinsburg-Boonton-Holyoke
A75: Yalesville-Holyoke | B75: Essex | C75: Steinsburg-Holyoke
A76: Yalesville-rock outcrop | B76: Essex | C76: Steinsburg-rock outcropt
A77: Yalesville-urban land | B77: Essex | C77: urban land
A78: Swedesboro | C78: Downer
